{"text_format":"1","workbook":"xlsx","n_sheets":11,"sheets":["Principal","Main","ali","mohamed","mustafa","ahmed","salim","murad","mahmoud","tamer","أدخل اسم العميل"],"not_rendered":{"charts":0,"images":0,"macros":1,"external_links":0,"defined_names":0,"comments":0,"pivot_tables":0},"unopened":[],"bounds":{"document_bytes":16777216,"sheet_cells":100000,"rows_first":2000,"rows_last":500,"rows_between":2000,"halvings":0,"cell_chars":16384,"cell_head_chars":4096},"cells_cut":0,"cells_raw":0,"read":"whole","date_system":"1900"}

{"sheet":"Principal","index":0,"n_rows":302,"n_cols":9,"rows_kept":302,"cut":false,"hidden":false,"merged":[]}
["م","العملاء","الإجمالى","الواصل","المتبقي","عدد الكميات","تاريخ آخر سداد","عام","حالة السداد"]
[1,"ali",8500,900,{"$f":"C2-D2","v":7600},1,{"$error":"#VALUE!"}]
[2,"mohamed",17000,800,16200,2,{"$error":"#VALUE!"}]
[3,"mustafa",34000,1800,32200,4,{"$error":"#VALUE!"}]
[4,"ahmed",4500,300,4200,0.5,{"$error":"#VALUE!"}]
[5,"salim",8500,500,8000,1,{"$error":"#VALUE!"}]
[6,"murad",25500,9000,16500,3,"00:00:00"]
[7,"mahmoud",55000,5800,49200,10,0]
[8,"tamer",34000,2500,31500,4,43431]
[9,"أدخل اسم العميل",0,0,0,0,43431]
[10,"أدخل اسم العميل",0,0,0,0,0]
[11,"أدخل اسم العميل",0,0,0,0,0]
[12,"أدخل اسم العميل",0,0,0,0,0]
[13,"أدخل اسم العميل",0,0,0,0,0]
[14,"أدخل اسم العميل",0,0,0,0,0]
[15,"أدخل اسم العميل",0,0,0,0,0]
[16,"أدخل اسم العميل",0,0,0,0,0]
[17,"أدخل اسم العميل",0,0,0,0,0]
[18,"أدخل اسم العميل",0,0,0,0,0]
[19,"أدخل اسم العميل",0,0,0,0,0]
[20,"أدخل اسم العميل",0,0,0,0,0]
[21,"أدخل اسم العميل",0,0,0,0,0]
[22,"أدخل اسم العميل",0,0,0,0,0]
[23,"أدخل اسم العميل",0,0,0,0,0]
[24,"أدخل اسم العميل",0,0,0,0,0]
[25,"أدخل اسم العميل",0,0,0,0,0]
[26,"أدخل اسم العميل",0,0,0,0,0]
[27,"أدخل اسم العميل",0,0,0,0,0]
[28,"أدخل اسم العميل",0,0,0,0,0]
[29,"أدخل اسم العميل",0,0,0,0,0]
[30,null,0,0,0,0,0]
[31,null,0,0,0,0,0]
[32,null,0,0,0,0,0]
[33,null,0,0,0,0,0]
[34,null,0,0,0,0,0]
[35,null,0,0,0,0,0]
[36,null,0,0,0,0,0]
[37,null,0,0,0,0,0]
[38,null,0,0,0,0,0]
[39,null,0,0,0,0,0]
[40,null,0,0,0,0,0]
[41,null,0,0,0,0,0]
[42,null,0,0,0,0,0]
[43,null,0,0,0,0,0]
[44,null,0,0,0,0,0]
[45,null,0,0,0,0,0]
[46,null,0,0,0,0,0]
[47,null,0,0,0,0,0]
[48,null,0,0,0,0,0]
[49,null,0,0,0,0,0]
[50,null,0,0,0]
[51,null,0,0,0]
[52,null,0,0,0]
[53,null,0,0,0]
[54,null,0,0,0]
[55,null,0,0,0]
[56,null,0,0,0]
[57,null,0,0,0]
[58,null,0,0,0]
[59,null,0,0,0]
[60,null,0,0,0]
[61,null,0,0,0]
[62,null,0,0,0]
[63,null,0,0,0]
[64,null,0,0,0]
[65,null,0,0,{"$f":"C66-D66","v":0}]
[66,null,0,0,0]
[67,null,0,0,0]
[68,null,0,0,0]
[69,null,0,0,0]
[70,null,0,0,0]
[71,null,0,0,0]
[72,null,0,0,0]
[73,null,0,0,0]
[74,null,0,0,0]
[75,null,0,0,0]
[76,null,0,0,0]
[77,null,0,0,0]
[78,null,0,0,0]
[79,null,0,0,0]
[80,null,0,0,0]
[81,null,0,0,0]
[82,null,0,0,0]
[83,null,0,0,0]
[84,null,0,0,0]
[85,null,0,0,0]
[86,null,0,0,0]
[87,null,0,0,0]
[88,null,0,0,0]
[89,null,0,0,0]
[90,null,0,0,0]
[91,null,0,0,0]
[92,null,0,0,0]
[93,null,0,0,0]
[94,null,0,0,0]
[95,null,0,0,0]
[96,null,0,0,0]
[97,null,0,0,0]
[98,null,0,0,0]
[99,null,0,0,0]
[100,null,0,0,0]
[101,null,0,0,0]
[102,null,0,0,0]
[103,null,0,0,0]
[104,null,0,0,0]
[105,null,0,0,0]
[106,null,0,0,0]
[107,null,0,0,0]
[108,null,0,0,0]
[109,null,0,0,0]
[110,null,0,0,0]
[111,null,0,0,0]
[112,null,0,0,0]
[113,null,0,0,0]
[114,null,0,0,0]
[115,null,0,0,0]
[116,null,0,0,0]
[117,null,0,0,0]
[118,null,0,0,0]
[119,null,0,0,0]
[120,null,0,0,0]
[121,null,0,0,0]
[122,null,0,0,0]
[123,null,0,0,0]
[124,null,0,0,0]
[125,null,0,0,0]
[126,null,0,0,0]
[127,null,0,0,0]
[128,null,0,0,0]
[129,null,0,0,{"$f":"C130-D130","v":0}]
[130,null,0,0,0]
[131,null,0,0,0]
[132,null,0,0,0]
[133,null,0,0,0]
[134,null,0,0,0]
[135,null,0,0,0]
[136,null,0,0,0]
[137,null,0,0,0]
[138,null,0,0,0]
[139,null,0,0,0]
[140,null,0,0,0]
[141,null,0,0,0]
[142,null,0,0,0]
[143,null,0,0,0]
[144,null,0,0,0]
[145,null,0,0,0]
[146,null,0,0,0]
[147,null,0,0,0]
[148,null,0,0,0]
[149,null,0,0,0]
[150,null,0,0,0]
[151,null,0,0,0]
[152,null,0,0,0]
[153,null,0,0,0]
[154,null,0,0,0]
[155,null,0,0,0]
[156,null,0,0,0]
[157,null,0,0,0]
[158,null,0,0,0]
[159,null,0,0,0]
[160,null,0,0,0]
[161,null,0,0,0]
[162,null,0,0,0]
[163,null,0,0,0]
[164,null,0,0,0]
[165,null,0,0,0]
[166,null,0,0,0]
[167,null,0,0,0]
[168,null,0,0,0]
[169,null,0,0,0]
[170,null,0,0,0]
[171,null,0,0,0]
[172,null,0,0,0]
[173,null,0,0,0]
[174,null,0,0,0]
[175,null,0,0,0]
[176,null,0,0,0]
[177,null,0,0,0]
[178,null,0,0,0]
[179,null,0,0,0]
[180,null,0,0,0]
[181,null,0,0,0]
[182,null,0,0,0]
[183,null,0,0,0]
[184,null,0,0,0]
[185,null,0,0,0]
[186,null,0,0,0]
[187,null,0,0,0]
[188,null,0,0,0]
[189,null,0,0,0]
[190,null,0,0,0]
[191,null,0,0,0]
[192,null,0,0,0]
[193,null,0,0,{"$f":"C194-D194","v":0}]
[194,null,0,0,0]
[195,null,0,0,0]
[196,null,0,0,0]
[197,null,0,0,0]
[198,null,0,0,0]
[199,null,0,0,0]
[200,null,0,0,0]
[201,null,0,0,0]
[202,null,0,0,0]
[203,null,0,0,0]
[204,null,0,0,0]
[205,null,0,0,0]
[206,null,0,0,0]
[207,null,0,0,0]
[208,null,0,0,0]
[209,null,0,0,0]
[210,null,0,0,0]
[211,null,0,0,0]
[212,null,0,0,0]
[213,null,0,0,0]
[214,null,0,0,0]
[215,null,0,0,0]
[216,null,0,0,0]
[217,null,0,0,0]
[218,null,0,0,0]
[219,null,0,0,0]
[220,null,0,0,0]
[221,null,0,0,0]
[222,null,0,0,0]
[223,null,0,0,0]
[224,null,0,0,0]
[225,null,0,0,0]
[226,null,0,0,0]
[227,null,0,0,0]
[228,null,0,0,0]
[229,null,0,0,0]
[230,null,0,0,0]
[231,null,0,0,0]
[232,null,0,0,0]
[233,null,0,0,0]
[234,null,0,0,0]
[235,null,0,0,0]
[236,null,0,0,0]
[237,null,0,0,0]
[238,null,0,0,0]
[239,null,0,0,0]
[240,null,0,0,0]
[241,null,0,0,0]
[242,null,0,0,0]
[243,null,0,0,0]
[244,null,0,0,0]
[245,null,0,0,0]
[246,null,0,0,0]
[247,null,0,0,0]
[248,null,0,0,0]
[249,null,0,0,0]
[250,null,0,0,0]
[251,null,0,0,0]
[252,null,0,0,0]
[253,null,0,0,0]
[254,null,0,0,0]
[255,null,0,0,0]
[256,null,0,0,0]
[257,null,0,0,{"$f":"C258-D258","v":0}]
[258,null,0,0,0]
[259,null,0,0,0]
[260,null,0,0,0]
[261,null,0,0,0]
[262,null,0,0,0]
[263,null,0,0,0]
[264,null,0,0,0]
[265,null,0,0,0]
[266,null,0,0,0]
[267,null,0,0,0]
[268,null,0,0,0]
[269,null,0,0,0]
[270,null,0,0,0]
[271,null,0,0,0]
[272,null,0,0,0]
[273,null,0,0,0]
[274,null,0,0,0]
[275,null,0,0,0]
[276,null,0,0,0]
[277,null,0,0,0]
[278,null,0,0,0]
[279,null,0,0,0]
[280,null,0,0,0]
[281,null,0,0,0]
[282,null,0,0,0]
[283,null,0,0,0]
[284,null,0,0,0]
[285,null,0,0,0]
[286,null,0,0,0]
[287,null,0,0,0]
[288,null,0,0,0]
[289,null,0,0,0]
[290,null,0,0,0]
[291,null,0,0,0]
[292,null,0,0,0]
[293,null,0,0,0]
[294,null,0,0,0]
[295,null,0,0,0]
[296,null,0,0,0]
[297,null,0,0,0]
[298,null,0,0,0]
[299,null,0,0,0]
[300]
[301,"TOTAL",{"$f":"SUM(C2:C301)","v":187000},{"$f":"SUM(D2:D301)","v":21600},{"$f":"SUM(E2:E301)","v":165400}]

{"sheet":"Main","index":1,"n_rows":249,"n_cols":17,"rows_kept":249,"cut":false,"hidden":false,"merged":[[0,0,0,2],[0,3,0,4],[1,13,1,14]]}
[null,null,null,null,null,null,null,null,null,null,null,null,null,null,null,null,"العملاء"]
[null,{"$f":"SUBTOTAL(9,B4:B248)","v":500},null,null,null,{"$f":"SUBTOTAL(9,B4:B248)","v":500},{"$f":"H2-F2","v":8000},{"$f":"SUBTOTAL(9,H4:H248)","v":8500},{"$f":"SUBTOTAL(9,I4:I248)","v":4950},{"$f":"SUBTOTAL(9,J4:J248)","v":1}]
["م","القسط","السند","تاريخ السداد","تاريخ الاستلام","الواصل","المتبقي","بيع الكميه","شراء الكمية","الكميات","العقد","تاريخ ابتداء","قيمة القسط","اسم الكفيل","صفحات الدفتر","ملاحظلات","الرصيد"]
[1,500,15,null,null,{"$f":"B4","v":500},{"$f":"H$4-F4","v":8000},8500,4950,1,1,"2018-11-26",500,"مصطفى",null,null,{"$f":"H4-B4","v":8000}]
[2,null,null,null,null,{"$f":"F4+B5","v":500},{"$f":"H$4-F5","v":8000},null,null,null,null,null,null,null,null,null,{"$f":"Q4+H5-B5","v":8000}]
[3,null,null,null,null,{"$f":"F5+B6","v":500},{"$f":"H$4-F6","v":8000},null,null,null,null,null,null,null,null,null,8000]
[4,null,null,null,null,500,8000,null,null,null,null,null,null,null,null,null,8000]
[5,null,null,null,null,500,8000,null,null,null,null,null,null,null,null,null,8000]
[6,null,null,null,null,500,8000,null,null,null,null,null,null,null,null,null,8000]
[7,null,null,null,null,500,8000,null,null,null,null,null,null,null,null,null,8000]
[8,null,null,null,null,500,8000,null,null,null,null,null,null,null,null,null,8000]
[9,null,null,null,null,500,8000,null,null,null,null,null,null,null,null,null,8000]
[10,null,null,null,null,{"$f":"F12+B13","v":500},8000,null,null,null,null,null,null,null,null,null,8000]
[11,null,null,null,null,{"$f":"F13+B14","v":500},8000,null,null,null,null,null,null,null,null,null,8000]
[12,null,null,null,null,{"$f":"F14+B15","v":500},8000,null,null,null,null,null,null,null,null,null,8000]
[null,null,null,null,null,null,null,null,null,null,null,null,null,null,null,null,8000]
[1,0,null,null,null,null,null,null,null,null,null,null,null,null,null,null,8000]
[null,null,null,null,null,null,null,null,null,null,null,null,null,null,null,null,8000]
[null,null,null,null,null,null,null,null,null,null,null,null,null,null,null,null,8000]
[null,null,null,null,null,null,null,null,null,null,null,null,null,null,null,null,8000]
[null,null,null,null,null,null,null,null,null,null,null,null,null,null,null,null,8000]
[null,null,null,null,null,null,null,null,null,null,null,null,null,null,null,null,8000]
[null,null,null,null,null,null,null,null,null,null,null,null,null,null,null,null,8000]
[null,null,null,null,null,null,null,null,null,null,null,null,null,null,null,null,8000]
[null,null,null,null,null,null,null,null,null,null,null,null,null,null,null,null,8000]
[null,null,null,null,null,null,null,null,null,null,null,null,null,null,null,null,8000]
[null,null,null,null,null,null,null,null,null,null,null,null,null,null,null,null,8000]
[null,null,null,null,null,null,null,null,null,null,null,null,null,null,null,null,8000]
[null,null,null,null,null,null,null,null,null,null,null,null,null,null,null,null,8000]
[null,null,null,null,null,null,null,null,null,null,null,null,null,null,null,null,8000]
[null,null,null,null,null,null,null,null,null,null,null,null,null,null,null,null,8000]
[null,null,null,null,null,null,null,null,null,null,null,null,null,null,null,null,8000]
[null,null,null,null,null,null,null,null,null,null,null,null,null,null,null,null,8000]
[null,null,null,null,null,null,null,null,null,null,null,null,null,null,null,null,8000]
[null,null,null,null,null,null,null,null,null,null,null,null,null,null,null,null,8000]
[null,null,null,null,null,null,null,null,null,null,null,null,null,null,null,null,8000]
[null,null,null,null,null,null,null,null,null,null,null,null,null,null,null,null,8000]
[null,null,null,null,null,null,null,null,null,null,null,null,null,null,null,null,8000]
[null,null,null,null,null,null,null,null,null,null,null,null,null,null,null,null,8000]
[null,null,null,null,null,null,null,null,null,null,null,null,null,null,null,null,8000]
[null,null,null,null,null,null,null,null,null,null,null,null,null,null,null,null,8000]
[null,null,null,null,null,null,null,null,null,null,null,null,null,null,null,null,8000]
[null,null,null,null,null,null,null,null,null,null,null,null,null,null,null,null,8000]
[null,null,null,null,null,null,null,null,null,null,null,null,null,null,null,null,8000]
[null,null,null,null,null,null,null,null,null,null,null,null,null,null,null,null,8000]
[null,null,null,null,null,null,null,null,null,null,null,null,null,null,null,null,8000]
[null,null,null,null,null,null,null,null,null,null,null,null,null,null,null,null,8000]
[null,null,null,null,null,null,null,null,null,null,null,null,null,null,null,null,8000]
[null,null,null,null,null,null,null,null,null,null,null,null,null,null,null,null,8000]
[null,null,null,null,null,null,null,null,null,null,null,null,null,null,null,null,8000]
[null,null,null,null,null,null,null,null,null,null,null,null,null,null,null,null,8000]
[null,null,null,null,null,null,null,null,null,null,null,null,null,null,null,null,8000]
[null,null,null,null,null,null,null,null,null,null,null,null,null,null,null,null,8000]
[null,null,null,null,null,null,null,null,null,null,null,null,null,null,null,null,8000]
[null,0,null,null,null,null,null,null,null,null,null,null,null,null,null,null,8000]
[null,0,null,null,null,null,null,null,null,null,null,null,null,null,null,null,8000]
[null,0,null,null,null,null,null,null,null,null,null,null,null,null,null,null,8000]
[null,null,null,null,null,null,null,null,null,null,null,null,null,null,null,null,8000]
[null,null,null,null,null,null,null,null,null,null,null,null,null,null,null,null,8000]
[null,null,null,null,null,null,null,null,null,null,null,null,null,null,null,null,8000]
[null,0,null,null,null,null,null,null,null,null,null,null,null,null,null,null,8000]
[null,0,null,null,null,null,null,null,null,null,null,null,null,null,null,null,8000]
[null,0,null,null,null,null,null,null,null,null,null,null,null,null,null,null,8000]
[null,0,null,null,null,null,null,null,null,null,null,null,null,null,null,null,8000]
[null,null,null,null,null,null,null,null,null,null,null,null,null,null,null,null,8000]
[null,null,null,null,null,null,null,null,null,null,null,null,null,null,null,null,8000]
[null,null,null,null,null,null,null,null,null,null,null,null,null,null,null,null,8000]
[null,null,null,null,null,null,null,null,null,null,null,null,null,null,null,null,8000]
[null,null,null,null,null,null,null,null,null,null,null,null,null,null,null,null,{"$f":"Q68+H69-B69","v":8000}]
[null,null,null,null,null,null,null,null,null,null,null,null,null,null,null,null,8000]
[null,null,null,null,null,null,null,null,null,null,null,null,null,null,null,null,8000]
[null,null,null,null,null,null,null,null,null,null,null,null,null,null,null,null,8000]
[null,null,null,null,null,null,null,null,null,null,null,null,null,null,null,null,8000]
[null,null,null,null,null,null,null,null,null,null,null,null,null,null,null,null,8000]
[null,null,null,null,null,null,null,null,null,null,null,null,null,null,null,null,8000]
[null,null,null,null,null,null,null,null,null,null,null,null,null,null,null,null,8000]
[null,null,null,null,null,null,null,null,null,null,null,null,null,null,null,null,8000]
[null,null,null,null,null,null,null,null,null,null,null,null,null,null,null,null,8000]
[null,null,null,null,null,null,null,null,null,null,null,null,null,null,null,null,8000]
[null,null,null,null,null,null,null,null,null,null,null,null,null,null,null,null,8000]
[null,null,null,null,null,null,null,null,null,null,null,null,null,null,null,null,8000]
[null,null,null,null,null,null,null,null,null,null,null,null,null,null,null,null,8000]
[null,null,null,null,null,null,null,null,null,null,null,null,null,null,null,null,8000]
[null,null,null,null,null,null,null,null,null,null,null,null,null,null,null,null,8000]
[null,null,null,null,null,null,null,null,null,null,null,null,null,null,null,null,8000]
[null,null,null,null,null,null,null,null,null,null,null,null,null,null,null,null,8000]
[null,null,null,null,null,null,null,null,null,null,null,null,null,null,null,null,8000]
[null,null,null,null,null,null,null,null,null,null,null,null,null,null,null,null,8000]
[null,null,null,null,null,null,null,null,null,null,null,null,null,null,null,null,8000]
[null,null,null,null,null,null,null,null,null,null,null,null,null,null,null,null,8000]
[null,null,null,null,null,null,null,null,null,null,null,null,null,null,null,null,8000]
[null,null,null,null,null,null,null,null,null,null,null,null,null,null,null,null,8000]
[null,null,null,null,null,null,null,null,null,null,null,null,null,null,null,null,8000]
[null,null,null,null,null,null,null,null,null,null,null,null,null,null,null,null,8000]
[null,null,null,null,null,null,null,null,null,null,null,null,null,null,null,null,8000]
[null,null,null,null,null,null,null,null,null,null,null,null,null,null,null,null,8000]
[null,null,null,null,null,null,null,null,null,null,null,null,null,null,null,null,8000]
[null,null,null,null,null,null,null,null,null,null,null,null,null,null,null,null,8000]
[null,null,null,null,null,null,null,null,null,null,null,null,null,null,null,null,8000]
[null,null,null,null,null,null,null,null,null,null,null,null,null,null,null,null,8000]
[null,null,null,null,null,null,null,null,null,null,null,null,null,null,null,null,8000]
[null,null,null,null,null,null,null,null,null,null,null,null,null,null,null,null,8000]
[null,null,null,null,null,null,null,null,null,null,null,null,null,null,null,null,8000]
[null,null,null,null,null,null,null,null,null,null,null,null,null,null,null,null,8000]
[null,null,null,null,null,null,null,null,null,null,null,null,null,null,null,null,8000]
[null,null,null,null,null,null,null,null,null,null,null,null,null,null,null,null,8000]
[null,null,null,null,null,null,null,null,null,null,null,null,null,null,null,null,8000]
[null,null,null,null,null,null,null,null,null,null,null,null,null,null,null,null,8000]
[null,null,null,null,null,null,null,null,null,null,null,null,null,null,null,null,8000]
[null,null,null,null,null,null,null,null,null,null,null,null,null,null,null,null,8000]
[null,null,null,null,null,null,null,null,null,null,null,null,null,null,null,null,8000]
[null,null,null,null,null,null,null,null,null,null,null,null,null,null,null,null,8000]
[null,null,null,null,null,null,null,null,null,null,null,null,null,null,null,null,8000]
[null,null,null,null,null,null,null,null,null,null,null,null,null,null,null,null,8000]
[null,null,null,null,null,null,null,null,null,null,null,null,null,null,null,null,8000]
[null,null,null,null,null,null,null,null,null,null,null,null,null,null,null,null,8000]
[null,null,null,null,null,null,null,null,null,null,null,null,null,null,null,null,8000]
[null,null,null,null,null,null,null,null,null,null,null,null,null,null,null,null,8000]
[null,null,null,null,null,null,null,null,null,null,null,null,null,null,null,null,8000]
[null,null,null,null,null,null,null,null,null,null,null,null,null,null,null,null,8000]
[null,null,null,null,null,null,null,null,null,null,null,null,null,null,null,null,8000]
[null,null,null,null,null,null,null,null,null,null,null,null,null,null,null,null,8000]
[null,null,null,null,null,null,null,null,null,null,null,null,null,null,null,null,8000]
[null,null,null,null,null,null,null,null,null,null,null,null,null,null,null,null,8000]
[null,null,null,null,null,null,null,null,null,null,null,null,null,null,null,null,8000]
[null,null,null,null,null,null,null,null,null,null,null,null,null,null,null,null,8000]
[null,null,null,null,null,null,null,null,null,null,null,null,null,null,null,null,8000]
[null,null,null,null,null,null,null,null,null,null,null,null,null,null,null,null,8000]
[null,null,null,null,null,null,null,null,null,null,null,null,null,null,null,null,8000]
[null,null,null,null,null,null,null,null,null,null,null,null,null,null,null,null,8000]
[null,null,null,null,null,null,null,null,null,null,null,null,null,null,null,null,8000]
[null,null,null,null,null,null,null,null,null,null,null,null,null,null,null,null,8000]
[null,null,null,null,null,null,null,null,null,null,null,null,null,null,null,null,{"$f":"Q132+H133-B133","v":8000}]
[null,null,null,null,null,null,null,null,null,null,null,null,null,null,null,null,8000]
[null,null,null,null,null,null,null,null,null,null,null,null,null,null,null,null,8000]
[null,null,null,null,null,null,null,null,null,null,null,null,null,null,null,null,8000]
[null,null,null,null,null,null,null,null,null,null,null,null,null,null,null,null,8000]
[null,null,null,null,null,null,null,null,null,null,null,null,null,null,null,null,8000]
[null,null,null,null,null,null,null,null,null,null,null,null,null,null,null,null,8000]
[null,null,null,null,null,null,null,null,null,null,null,null,null,null,null,null,8000]
[null,null,null,null,null,null,null,null,null,null,null,null,null,null,null,null,8000]
[null,null,null,null,null,null,null,null,null,null,null,null,null,null,null,null,8000]
[null,null,null,null,null,null,null,null,null,null,null,null,null,null,null,null,8000]
[null,null,null,null,null,null,null,null,null,null,null,null,null,null,null,null,8000]
[null,null,null,null,null,null,null,null,null,null,null,null,null,null,null,null,8000]
[null,null,null,null,null,null,null,null,null,null,null,null,null,null,null,null,8000]
[null,null,null,null,null,null,null,null,null,null,null,null,null,null,null,null,8000]
[null,null,null,null,null,null,null,null,null,null,null,null,null,null,null,null,8000]
[null,null,null,null,null,null,null,null,null,null,null,null,null,null,null,null,8000]
[null,null,null,null,null,null,null,null,null,null,null,null,null,null,null,null,8000]
[null,null,null,null,null,null,null,null,null,null,null,null,null,null,null,null,8000]
[null,null,null,null,null,null,null,null,null,null,null,null,null,null,null,null,8000]
[null,null,null,null,null,null,null,null,null,null,null,null,null,null,null,null,8000]
[null,null,null,null,null,null,null,null,null,null,null,null,null,null,null,null,8000]
[null,null,null,null,null,null,null,null,null,null,null,null,null,null,null,null,8000]
[null,null,null,null,null,null,null,null,null,null,null,null,null,null,null,null,8000]
[null,null,null,null,null,null,null,null,null,null,null,null,null,null,null,null,8000]
[null,null,null,null,null,null,null,null,null,null,null,null,null,null,null,null,8000]
[null,null,null,null,null,null,null,null,null,null,null,null,null,null,null,null,8000]
[null,null,null,null,null,null,null,null,null,null,null,null,null,null,null,null,8000]
[null,null,null,null,null,null,null,null,null,null,null,null,null,null,null,null,8000]
[null,null,null,null,null,null,null,null,null,null,null,null,null,null,null,null,8000]
[null,null,null,null,null,null,null,null,null,null,null,null,null,null,null,null,8000]
[null,null,null,null,null,null,null,null,null,null,null,null,null,null,null,null,8000]
[null,null,null,null,null,null,null,null,null,null,null,null,null,null,null,null,8000]
[null,null,null,null,null,null,null,null,null,null,null,null,null,null,null,null,8000]
[null,null,null,null,null,null,null,null,null,null,null,null,null,null,null,null,8000]
[null,null,null,null,null,null,null,null,null,null,null,null,null,null,null,null,8000]
[null,null,null,null,null,null,null,null,null,null,null,null,null,null,null,null,8000]
[null,null,null,null,null,null,null,null,null,null,null,null,null,null,null,null,8000]
[null,null,null,null,null,null,null,null,null,null,null,null,null,null,null,null,8000]
[null,null,null,null,null,null,null,null,null,null,null,null,null,null,null,null,8000]
[null,null,null,null,null,null,null,null,null,null,null,null,null,null,null,null,8000]
[null,null,null,null,null,null,null,null,null,null,null,null,null,null,null,null,8000]
[null,null,null,null,null,null,null,null,null,null,null,null,null,null,null,null,8000]
[null,null,null,null,null,null,null,null,null,null,null,null,null,null,null,null,8000]
[null,null,null,null,null,null,null,null,null,null,null,null,null,null,null,null,8000]
[null,null,null,null,null,null,null,null,null,null,null,null,null,null,null,null,8000]
[null,null,null,null,null,null,null,null,null,null,null,null,null,null,null,null,8000]
[null,null,null,null,null,null,null,null,null,null,null,null,null,null,null,null,8000]
[null,null,null,null,null,null,null,null,null,null,null,null,null,null,null,null,8000]
[null,null,null,null,null,null,null,null,null,null,null,null,null,null,null,null,8000]
[null,null,null,null,null,null,null,null,null,null,null,null,null,null,null,null,8000]
[null,null,null,null,null,null,null,null,null,null,null,null,null,null,null,null,8000]
[null,null,null,null,null,null,null,null,null,null,null,null,null,null,null,null,8000]
[null,null,null,null,null,null,null,null,null,null,null,null,null,null,null,null,8000]
[null,null,null,null,null,null,null,null,null,null,null,null,null,null,null,null,8000]
[null,null,null,null,null,null,null,null,null,null,null,null,null,null,null,null,8000]
[null,null,null,null,null,null,null,null,null,null,null,null,null,null,null,null,8000]
[null,null,null,null,null,null,null,null,null,null,null,null,null,null,null,null,8000]
[null,null,null,null,null,null,null,null,null,null,null,null,null,null,null,null,8000]
[null,null,null,null,null,null,null,null,null,null,null,null,null,null,null,null,8000]
[null,null,null,null,null,null,null,null,null,null,null,null,null,null,null,null,8000]
[null,null,null,null,null,null,null,null,null,null,null,null,null,null,null,null,8000]
[null,null,null,null,null,null,null,null,null,null,null,null,null,null,null,null,8000]
[null,null,null,null,null,null,null,null,null,null,null,null,null,null,null,null,8000]
[null,null,null,null,null,null,null,null,null,null,null,null,null,null,null,null,{"$f":"Q196+H197-B197","v":8000}]
[null,null,null,null,null,null,null,null,null,null,null,null,null,null,null,null,8000]
[null,null,null,null,null,null,null,null,null,null,null,null,null,null,null,null,8000]
[null,null,null,null,null,null,null,null,null,null,null,null,null,null,null,null,8000]
[null,null,null,null,null,null,null,null,null,null,null,null,null,null,null,null,8000]
[null,null,null,null,null,null,null,null,null,null,null,null,null,null,null,null,8000]
[null,null,null,null,null,null,null,null,null,null,null,null,null,null,null,null,8000]
[null,null,null,null,null,null,null,null,null,null,null,null,null,null,null,null,8000]
[null,null,null,null,null,null,null,null,null,null,null,null,null,null,null,null,8000]
[null,null,null,null,null,null,null,null,null,null,null,null,null,null,null,null,8000]
[null,null,null,null,null,null,null,null,null,null,null,null,null,null,null,null,8000]
[null,null,null,null,null,null,null,null,null,null,null,null,null,null,null,null,8000]
[null,null,null,null,null,null,null,null,null,null,null,null,null,null,null,null,8000]
[null,null,null,null,null,null,null,null,null,null,null,null,null,null,null,null,8000]
[null,null,null,null,null,null,null,null,null,null,null,null,null,null,null,null,8000]
[null,null,null,null,null,null,null,null,null,null,null,null,null,null,null,null,8000]
[null,null,null,null,null,null,null,null,null,null,null,null,null,null,null,null,8000]
[null,null,null,null,null,null,null,null,null,null,null,null,null,null,null,null,8000]
[null,null,null,null,null,null,null,null,null,null,null,null,null,null,null,null,8000]
[null,null,null,null,null,null,null,null,null,null,null,null,null,null,null,null,8000]
[null,null,null,null,null,null,null,null,null,null,null,null,null,null,null,null,8000]
[null,null,null,null,null,null,null,null,null,null,null,null,null,null,null,null,8000]
[null,null,null,null,null,null,null,null,null,null,null,null,null,null,null,null,{"$f":"Q29+H219-B219","v":8000}]
[null,null,null,null,null,null,null,null,null,null,null,null,null,null,null,null,{"$f":"Q219+H220-B220","v":8000}]
[null,null,null,null,null,null,null,null,null,null,null,null,null,null,null,null,8000]
[null,null,null,null,null,null,null,null,null,null,null,null,null,null,null,null,8000]
[null,null,null,null,null,null,null,null,null,null,null,null,null,null,null,null,8000]
[null,null,null,null,null,null,null,null,null,null,null,null,null,null,null,null,8000]
[null,null,null,null,null,null,null,null,null,null,null,null,null,null,null,null,8000]
[null,null,null,null,null,null,null,null,null,null,null,null,null,null,null,null,8000]
[null,null,null,null,null,null,null,null,null,null,null,null,null,null,null,null,8000]
[null,null,null,null,null,null,null,null,null,null,null,null,null,null,null,null,8000]
[null,null,null,null,null,null,null,null,null,null,null,null,null,null,null,null,8000]
[null,null,null,null,null,null,null,null,null,null,null,null,null,null,null,null,8000]
[null,null,null,null,null,null,null,null,null,null,null,null,null,null,null,null,8000]
[null,null,null,null,null,null,null,null,null,null,null,null,null,null,null,null,8000]
[null,null,null,null,null,null,null,null,null,null,null,null,null,null,null,null,8000]
[null,null,null,null,null,null,null,null,null,null,null,null,null,null,null,null,8000]
[null,null,null,null,null,null,null,null,null,null,null,null,null,null,null,null,8000]
[null,null,null,null,null,null,null,null,null,null,null,null,null,null,null,null,8000]
[null,null,null,null,null,null,null,null,null,null,null,null,null,null,null,null,8000]
[null,null,null,null,null,null,null,null,null,null,null,null,null,null,null,null,8000]
[null,null,null,null,null,null,null,null,null,null,null,null,null,null,null,null,8000]
[null,null,null,null,null,null,null,null,null,null,null,null,null,null,null,null,8000]
[null,null,null,null,null,null,null,null,null,null,null,null,null,null,null,null,8000]
[null,null,null,null,null,null,null,null,null,null,null,null,null,null,null,null,8000]
[null,null,null,null,null,null,null,null,null,null,null,null,null,null,null,null,8000]
[null,null,null,null,null,null,null,null,null,null,null,null,null,null,null,null,8000]
[null,null,null,null,null,null,null,null,null,null,null,null,null,null,null,null,8000]
[null,null,null,null,null,null,null,null,null,null,null,null,null,null,null,null,8000]
[null,null,null,null,null,null,null,null,null,null,null,null,null,null,null,null,8000]
[null,null,null,null,null,null,null,null,null,null,null,null,null,null,null,null,8000]
["TOTAL",{"$f":"SUM(B4:B248)","v":500},null,null,null,null,{"$f":"SUM(G4:G248)","v":96000},{"$f":"SUM(H4:H248)","v":8500},{"$f":"SUM(I4:I248)","v":4950},{"$f":"SUM(J4:J248)","v":1},null,null,null,null,null,null,{"$f":"SUM(H249-B249)","v":8000}]

{"sheet":"ali","index":2,"n_rows":249,"n_cols":17,"rows_kept":249,"cut":false,"hidden":false,"merged":[[0,0,0,2],[0,3,0,4],[1,13,1,14]]}
["ali",null,null,null,null,null,null,null,null,null,null,null,null,null,null,null,"العملاء"]
[null,{"$f":"SUBTOTAL(9,B4:B248)","v":500},null,null,null,{"$f":"SUBTOTAL(9,B4:B248)","v":500},{"$f":"H2-F2","v":8000},{"$f":"SUBTOTAL(9,H4:H248)","v":8500},{"$f":"SUBTOTAL(9,I4:I248)","v":4950},{"$f":"SUBTOTAL(9,J4:J248)","v":1}]
["م","القسط","السند","تاريخ السداد","تاريخ الاستلام","الواصل","المتبقي","بيع الكميه","شراء الكمية","الكميات","العقد","تاريخ ابتداء","قيمة القسط","اسم الكفيل","صفحات الدفتر","ملاحظلات","الرصيد"]
[1,500,15,null,null,{"$f":"B4","v":500},{"$f":"H$4-F4","v":8000},8500,4950,1,1,"2018-11-26",500,"مصطفى",null,null,{"$f":"H4-B4","v":8000}]
[2,null,null,null,null,{"$f":"F4+B5","v":500},{"$f":"H$4-F5","v":8000},null,null,null,null,null,null,null,null,null,{"$f":"Q4+H5-B5","v":8000}]
[3,null,null,null,null,{"$f":"F5+B6","v":500},{"$f":"H$4-F6","v":8000},null,null,null,null,null,null,null,null,null,8000]
[4,null,null,null,null,500,8000,null,null,null,null,null,null,null,null,null,8000]
[5,null,null,null,null,500,8000,null,null,null,null,null,null,null,null,null,8000]
[6,null,null,null,null,500,8000,null,null,null,null,null,null,null,null,null,8000]
[7,null,null,null,null,500,8000,null,null,null,null,null,null,null,null,null,8000]
[8,null,null,null,null,500,8000,null,null,null,null,null,null,null,null,null,8000]
[9,null,null,null,null,500,8000,null,null,null,null,null,null,null,null,null,8000]
[10,null,null,null,null,{"$f":"F12+B13","v":500},8000,null,null,null,null,null,null,null,null,null,8000]
[11,null,null,null,null,{"$f":"F13+B14","v":500},8000,null,null,null,null,null,null,null,null,null,8000]
[12,null,null,null,null,{"$f":"F14+B15","v":500},8000,null,null,null,null,null,null,null,null,null,8000]
[null,null,null,null,null,null,null,null,null,null,null,null,null,null,null,null,8000]
[1,0,null,null,null,null,null,null,null,null,null,null,null,null,null,null,8000]
[null,null,null,null,null,null,null,null,null,null,null,null,null,null,null,null,8000]
[null,null,null,null,null,null,null,null,null,null,null,null,null,null,null,null,8000]
[null,null,null,null,null,null,null,null,null,null,null,null,null,null,null,null,8000]
[null,null,null,null,null,null,null,null,null,null,null,null,null,null,null,null,8000]
[null,null,null,null,null,null,null,null,null,null,null,null,null,null,null,null,8000]
[null,null,null,null,null,null,null,null,null,null,null,null,null,null,null,null,8000]
[null,null,null,null,null,null,null,null,null,null,null,null,null,null,null,null,8000]
[null,null,null,null,null,null,null,null,null,null,null,null,null,null,null,null,8000]
[null,null,null,null,null,null,null,null,null,null,null,null,null,null,null,null,8000]
[null,null,null,null,null,null,null,null,null,null,null,null,null,null,null,null,8000]
[null,null,null,null,null,null,null,null,null,null,null,null,null,null,null,null,8000]
[null,null,null,null,null,null,null,null,null,null,null,null,null,null,null,null,8000]
[null,null,null,null,null,null,null,null,null,null,null,null,null,null,null,null,8000]
[null,null,null,null,null,null,null,null,null,null,null,null,null,null,null,null,8000]
[null,null,null,null,null,null,null,null,null,null,null,null,null,null,null,null,8000]
[null,null,null,null,null,null,null,null,null,null,null,null,null,null,null,null,8000]
[null,null,null,null,null,null,null,null,null,null,null,null,null,null,null,null,8000]
[null,null,null,null,null,null,null,null,null,null,null,null,null,null,null,null,8000]
[null,null,null,null,null,null,null,null,null,null,null,null,null,null,null,null,8000]
[null,null,null,null,null,null,null,null,null,null,null,null,null,null,null,null,8000]
[null,null,null,null,null,null,null,null,null,null,null,null,null,null,null,null,8000]
[null,null,null,null,null,null,null,null,null,null,null,null,null,null,null,null,8000]
[null,null,null,null,null,null,null,null,null,null,null,null,null,null,null,null,8000]
[null,null,null,null,null,null,null,null,null,null,null,null,null,null,null,null,8000]
[null,null,null,null,null,null,null,null,null,null,null,null,null,null,null,null,8000]
[null,null,null,null,null,null,null,null,null,null,null,null,null,null,null,null,8000]
[null,null,null,null,null,null,null,null,null,null,null,null,null,null,null,null,8000]
[null,null,null,null,null,null,null,null,null,null,null,null,null,null,null,null,8000]
[null,null,null,null,null,null,null,null,null,null,null,null,null,null,null,null,8000]
[null,null,null,null,null,null,null,null,null,null,null,null,null,null,null,null,8000]
[null,null,null,null,null,null,null,null,null,null,null,null,null,null,null,null,8000]
[null,null,null,null,null,null,null,null,null,null,null,null,null,null,null,null,8000]
[null,null,null,null,null,null,null,null,null,null,null,null,null,null,null,null,8000]
[null,null,null,null,null,null,null,null,null,null,null,null,null,null,null,null,8000]
[null,null,null,null,null,null,null,null,null,null,null,null,null,null,null,null,8000]
[null,null,null,null,null,null,null,null,null,null,null,null,null,null,null,null,8000]
[null,null,null,null,null,null,null,null,null,null,null,null,null,null,null,null,8000]
[null,0,null,null,null,null,null,null,null,null,null,null,null,null,null,null,8000]
[null,0,null,null,null,null,null,null,null,null,null,null,null,null,null,null,8000]
[null,0,null,null,null,null,null,null,null,null,null,null,null,null,null,null,8000]
[null,null,null,null,null,null,null,null,null,null,null,null,null,null,null,null,8000]
[null,null,null,null,null,null,null,null,null,null,null,null,null,null,null,null,8000]
[null,null,null,null,null,null,null,null,null,null,null,null,null,null,null,null,8000]
[null,0,null,null,null,null,null,null,null,null,null,null,null,null,null,null,8000]
[null,0,null,null,null,null,null,null,null,null,null,null,null,null,null,null,8000]
[null,0,null,null,null,null,null,null,null,null,null,null,null,null,null,null,8000]
[null,0,null,null,null,null,null,null,null,null,null,null,null,null,null,null,8000]
[null,null,null,null,null,null,null,null,null,null,null,null,null,null,null,null,8000]
[null,null,null,null,null,null,null,null,null,null,null,null,null,null,null,null,8000]
[null,null,null,null,null,null,null,null,null,null,null,null,null,null,null,null,8000]
[null,null,null,null,null,null,null,null,null,null,null,null,null,null,null,null,8000]
[null,null,null,null,null,null,null,null,null,null,null,null,null,null,null,null,{"$f":"Q68+H69-B69","v":8000}]
[null,null,null,null,null,null,null,null,null,null,null,null,null,null,null,null,8000]
[null,null,null,null,null,null,null,null,null,null,null,null,null,null,null,null,8000]
[null,null,null,null,null,null,null,null,null,null,null,null,null,null,null,null,8000]
[null,null,null,null,null,null,null,null,null,null,null,null,null,null,null,null,8000]
[null,null,null,null,null,null,null,null,null,null,null,null,null,null,null,null,8000]
[null,null,null,null,null,null,null,null,null,null,null,null,null,null,null,null,8000]
[null,null,null,null,null,null,null,null,null,null,null,null,null,null,null,null,8000]
[null,null,null,null,null,null,null,null,null,null,null,null,null,null,null,null,8000]
[null,null,null,null,null,null,null,null,null,null,null,null,null,null,null,null,8000]
[null,null,null,null,null,null,null,null,null,null,null,null,null,null,null,null,8000]
[null,null,null,null,null,null,null,null,null,null,null,null,null,null,null,null,8000]
[null,null,null,null,null,null,null,null,null,null,null,null,null,null,null,null,8000]
[null,null,null,null,null,null,null,null,null,null,null,null,null,null,null,null,8000]
[null,null,null,null,null,null,null,null,null,null,null,null,null,null,null,null,8000]
[null,null,null,null,null,null,null,null,null,null,null,null,null,null,null,null,8000]
[null,null,null,null,null,null,null,null,null,null,null,null,null,null,null,null,8000]
[null,null,null,null,null,null,null,null,null,null,null,null,null,null,null,null,8000]
[null,null,null,null,null,null,null,null,null,null,null,null,null,null,null,null,8000]
[null,null,null,null,null,null,null,null,null,null,null,null,null,null,null,null,8000]
[null,null,null,null,null,null,null,null,null,null,null,null,null,null,null,null,8000]
[null,null,null,null,null,null,null,null,null,null,null,null,null,null,null,null,8000]
[null,null,null,null,null,null,null,null,null,null,null,null,null,null,null,null,8000]
[null,null,null,null,null,null,null,null,null,null,null,null,null,null,null,null,8000]
[null,null,null,null,null,null,null,null,null,null,null,null,null,null,null,null,8000]
[null,null,null,null,null,null,null,null,null,null,null,null,null,null,null,null,8000]
[null,null,null,null,null,null,null,null,null,null,null,null,null,null,null,null,8000]
[null,null,null,null,null,null,null,null,null,null,null,null,null,null,null,null,8000]
[null,null,null,null,null,null,null,null,null,null,null,null,null,null,null,null,8000]
[null,null,null,null,null,null,null,null,null,null,null,null,null,null,null,null,8000]
[null,null,null,null,null,null,null,null,null,null,null,null,null,null,null,null,8000]
[null,null,null,null,null,null,null,null,null,null,null,null,null,null,null,null,8000]
[null,null,null,null,null,null,null,null,null,null,null,null,null,null,null,null,8000]
[null,null,null,null,null,null,null,null,null,null,null,null,null,null,null,null,8000]
[null,null,null,null,null,null,null,null,null,null,null,null,null,null,null,null,8000]
[null,null,null,null,null,null,null,null,null,null,null,null,null,null,null,null,8000]
[null,null,null,null,null,null,null,null,null,null,null,null,null,null,null,null,8000]
[null,null,null,null,null,null,null,null,null,null,null,null,null,null,null,null,8000]
[null,null,null,null,null,null,null,null,null,null,null,null,null,null,null,null,8000]
[null,null,null,null,null,null,null,null,null,null,null,null,null,null,null,null,8000]
[null,null,null,null,null,null,null,null,null,null,null,null,null,null,null,null,8000]
[null,null,null,null,null,null,null,null,null,null,null,null,null,null,null,null,8000]
[null,null,null,null,null,null,null,null,null,null,null,null,null,null,null,null,8000]
[null,null,null,null,null,null,null,null,null,null,null,null,null,null,null,null,8000]
[null,null,null,null,null,null,null,null,null,null,null,null,null,null,null,null,8000]
[null,null,null,null,null,null,null,null,null,null,null,null,null,null,null,null,8000]
[null,null,null,null,null,null,null,null,null,null,null,null,null,null,null,null,8000]
[null,null,null,null,null,null,null,null,null,null,null,null,null,null,null,null,8000]
[null,null,null,null,null,null,null,null,null,null,null,null,null,null,null,null,8000]
[null,null,null,null,null,null,null,null,null,null,null,null,null,null,null,null,8000]
[null,null,null,null,null,null,null,null,null,null,null,null,null,null,null,null,8000]
[null,null,null,null,null,null,null,null,null,null,null,null,null,null,null,null,8000]
[null,null,null,null,null,null,null,null,null,null,null,null,null,null,null,null,8000]
[null,null,null,null,null,null,null,null,null,null,null,null,null,null,null,null,8000]
[null,null,null,null,null,null,null,null,null,null,null,null,null,null,null,null,8000]
[null,null,null,null,null,null,null,null,null,null,null,null,null,null,null,null,8000]
[null,null,null,null,null,null,null,null,null,null,null,null,null,null,null,null,8000]
[null,null,null,null,null,null,null,null,null,null,null,null,null,null,null,null,8000]
[null,null,null,null,null,null,null,null,null,null,null,null,null,null,null,null,8000]
[null,null,null,null,null,null,null,null,null,null,null,null,null,null,null,null,8000]
[null,null,null,null,null,null,null,null,null,null,null,null,null,null,null,null,8000]
[null,null,null,null,null,null,null,null,null,null,null,null,null,null,null,null,8000]
[null,null,null,null,null,null,null,null,null,null,null,null,null,null,null,null,8000]
[null,null,null,null,null,null,null,null,null,null,null,null,null,null,null,null,8000]
[null,null,null,null,null,null,null,null,null,null,null,null,null,null,null,null,{"$f":"Q132+H133-B133","v":8000}]
[null,null,null,null,null,null,null,null,null,null,null,null,null,null,null,null,8000]
[null,null,null,null,null,null,null,null,null,null,null,null,null,null,null,null,8000]
[null,null,null,null,null,null,null,null,null,null,null,null,null,null,null,null,8000]
[null,null,null,null,null,null,null,null,null,null,null,null,null,null,null,null,8000]
[null,null,null,null,null,null,null,null,null,null,null,null,null,null,null,null,8000]
[null,null,null,null,null,null,null,null,null,null,null,null,null,null,null,null,8000]
[null,null,null,null,null,null,null,null,null,null,null,null,null,null,null,null,8000]
[null,null,null,null,null,null,null,null,null,null,null,null,null,null,null,null,8000]
[null,null,null,null,null,null,null,null,null,null,null,null,null,null,null,null,8000]
[null,null,null,null,null,null,null,null,null,null,null,null,null,null,null,null,8000]
[null,null,null,null,null,null,null,null,null,null,null,null,null,null,null,null,8000]
[null,null,null,null,null,null,null,null,null,null,null,null,null,null,null,null,8000]
[null,null,null,null,null,null,null,null,null,null,null,null,null,null,null,null,8000]
[null,null,null,null,null,null,null,null,null,null,null,null,null,null,null,null,8000]
[null,null,null,null,null,null,null,null,null,null,null,null,null,null,null,null,8000]
[null,null,null,null,null,null,null,null,null,null,null,null,null,null,null,null,8000]
[null,null,null,null,null,null,null,null,null,null,null,null,null,null,null,null,8000]
[null,null,null,null,null,null,null,null,null,null,null,null,null,null,null,null,8000]
[null,null,null,null,null,null,null,null,null,null,null,null,null,null,null,null,8000]
[null,null,null,null,null,null,null,null,null,null,null,null,null,null,null,null,8000]
[null,null,null,null,null,null,null,null,null,null,null,null,null,null,null,null,8000]
[null,null,null,null,null,null,null,null,null,null,null,null,null,null,null,null,8000]
[null,null,null,null,null,null,null,null,null,null,null,null,null,null,null,null,8000]
[null,null,null,null,null,null,null,null,null,null,null,null,null,null,null,null,8000]
[null,null,null,null,null,null,null,null,null,null,null,null,null,null,null,null,8000]
[null,null,null,null,null,null,null,null,null,null,null,null,null,null,null,null,8000]
[null,null,null,null,null,null,null,null,null,null,null,null,null,null,null,null,8000]
[null,null,null,null,null,null,null,null,null,null,null,null,null,null,null,null,8000]
[null,null,null,null,null,null,null,null,null,null,null,null,null,null,null,null,8000]
[null,null,null,null,null,null,null,null,null,null,null,null,null,null,null,null,8000]
[null,null,null,null,null,null,null,null,null,null,null,null,null,null,null,null,8000]
[null,null,null,null,null,null,null,null,null,null,null,null,null,null,null,null,8000]
[null,null,null,null,null,null,null,null,null,null,null,null,null,null,null,null,8000]
[null,null,null,null,null,null,null,null,null,null,null,null,null,null,null,null,8000]
[null,null,null,null,null,null,null,null,null,null,null,null,null,null,null,null,8000]
[null,null,null,null,null,null,null,null,null,null,null,null,null,null,null,null,8000]
[null,null,null,null,null,null,null,null,null,null,null,null,null,null,null,null,8000]
[null,null,null,null,null,null,null,null,null,null,null,null,null,null,null,null,8000]
[null,null,null,null,null,null,null,null,null,null,null,null,null,null,null,null,8000]
[null,null,null,null,null,null,null,null,null,null,null,null,null,null,null,null,8000]
[null,null,null,null,null,null,null,null,null,null,null,null,null,null,null,null,8000]
[null,null,null,null,null,null,null,null,null,null,null,null,null,null,null,null,8000]
[null,null,null,null,null,null,null,null,null,null,null,null,null,null,null,null,8000]
[null,null,null,null,null,null,null,null,null,null,null,null,null,null,null,null,8000]
[null,null,null,null,null,null,null,null,null,null,null,null,null,null,null,null,8000]
[null,null,null,null,null,null,null,null,null,null,null,null,null,null,null,null,8000]
[null,null,null,null,null,null,null,null,null,null,null,null,null,null,null,null,8000]
[null,null,null,null,null,null,null,null,null,null,null,null,null,null,null,null,8000]
[null,null,null,null,null,null,null,null,null,null,null,null,null,null,null,null,8000]
[null,null,null,null,null,null,null,null,null,null,null,null,null,null,null,null,8000]
[null,null,null,null,null,null,null,null,null,null,null,null,null,null,null,null,8000]
[null,null,null,null,null,null,null,null,null,null,null,null,null,null,null,null,8000]
[null,null,null,null,null,null,null,null,null,null,null,null,null,null,null,null,8000]
[null,null,null,null,null,null,null,null,null,null,null,null,null,null,null,null,8000]
[null,null,null,null,null,null,null,null,null,null,null,null,null,null,null,null,8000]
[null,null,null,null,null,null,null,null,null,null,null,null,null,null,null,null,8000]
[null,null,null,null,null,null,null,null,null,null,null,null,null,null,null,null,8000]
[null,null,null,null,null,null,null,null,null,null,null,null,null,null,null,null,8000]
[null,null,null,null,null,null,null,null,null,null,null,null,null,null,null,null,8000]
[null,null,null,null,null,null,null,null,null,null,null,null,null,null,null,null,8000]
[null,null,null,null,null,null,null,null,null,null,null,null,null,null,null,null,8000]
[null,null,null,null,null,null,null,null,null,null,null,null,null,null,null,null,8000]
[null,null,null,null,null,null,null,null,null,null,null,null,null,null,null,null,8000]
[null,null,null,null,null,null,null,null,null,null,null,null,null,null,null,null,{"$f":"Q196+H197-B197","v":8000}]
[null,null,null,null,null,null,null,null,null,null,null,null,null,null,null,null,8000]
[null,null,null,null,null,null,null,null,null,null,null,null,null,null,null,null,8000]
[null,null,null,null,null,null,null,null,null,null,null,null,null,null,null,null,8000]
[null,null,null,null,null,null,null,null,null,null,null,null,null,null,null,null,8000]
[null,null,null,null,null,null,null,null,null,null,null,null,null,null,null,null,8000]
[null,null,null,null,null,null,null,null,null,null,null,null,null,null,null,null,8000]
[null,null,null,null,null,null,null,null,null,null,null,null,null,null,null,null,8000]
[null,null,null,null,null,null,null,null,null,null,null,null,null,null,null,null,8000]
[null,null,null,null,null,null,null,null,null,null,null,null,null,null,null,null,8000]
[null,null,null,null,null,null,null,null,null,null,null,null,null,null,null,null,8000]
[null,null,null,null,null,null,null,null,null,null,null,null,null,null,null,null,8000]
[null,null,null,null,null,null,null,null,null,null,null,null,null,null,null,null,8000]
[null,null,null,null,null,null,null,null,null,null,null,null,null,null,null,null,8000]
[null,null,null,null,null,null,null,null,null,null,null,null,null,null,null,null,8000]
[null,null,null,null,null,null,null,null,null,null,null,null,null,null,null,null,8000]
[null,null,null,null,null,null,null,null,null,null,null,null,null,null,null,null,8000]
[null,null,null,null,null,null,null,null,null,null,null,null,null,null,null,null,8000]
[null,null,null,null,null,null,null,null,null,null,null,null,null,null,null,null,8000]
[null,null,null,null,null,null,null,null,null,null,null,null,null,null,null,null,8000]
[null,null,null,null,null,null,null,null,null,null,null,null,null,null,null,null,8000]
[null,null,null,null,null,null,null,null,null,null,null,null,null,null,null,null,8000]
[null,null,null,null,null,null,null,null,null,null,null,null,null,null,null,null,{"$f":"Q29+H219-B219","v":8000}]
[null,null,null,null,null,null,null,null,null,null,null,null,null,null,null,null,{"$f":"Q219+H220-B220","v":8000}]
[null,null,null,null,null,null,null,null,null,null,null,null,null,null,null,null,8000]
[null,null,null,null,null,null,null,null,null,null,null,null,null,null,null,null,8000]
[null,null,null,null,null,null,null,null,null,null,null,null,null,null,null,null,8000]
[null,null,null,null,null,null,null,null,null,null,null,null,null,null,null,null,8000]
[null,null,null,null,null,null,null,null,null,null,null,null,null,null,null,null,8000]
[null,null,null,null,null,null,null,null,null,null,null,null,null,null,null,null,8000]
[null,null,null,null,null,null,null,null,null,null,null,null,null,null,null,null,8000]
[null,null,null,null,null,null,null,null,null,null,null,null,null,null,null,null,8000]
[null,null,null,null,null,null,null,null,null,null,null,null,null,null,null,null,8000]
[null,null,null,null,null,null,null,null,null,null,null,null,null,null,null,null,8000]
[null,null,null,null,null,null,null,null,null,null,null,null,null,null,null,null,8000]
[null,null,null,null,null,null,null,null,null,null,null,null,null,null,null,null,8000]
[null,null,null,null,null,null,null,null,null,null,null,null,null,null,null,null,8000]
[null,null,null,null,null,null,null,null,null,null,null,null,null,null,null,null,8000]
[null,null,null,null,null,null,null,null,null,null,null,null,null,null,null,null,8000]
[null,null,null,null,null,null,null,null,null,null,null,null,null,null,null,null,8000]
[null,null,null,null,null,null,null,null,null,null,null,null,null,null,null,null,8000]
[null,null,null,null,null,null,null,null,null,null,null,null,null,null,null,null,8000]
[null,null,null,null,null,null,null,null,null,null,null,null,null,null,null,null,8000]
[null,null,null,null,null,null,null,null,null,null,null,null,null,null,null,null,8000]
[null,null,null,null,null,null,null,null,null,null,null,null,null,null,null,null,8000]
[null,null,null,null,null,null,null,null,null,null,null,null,null,null,null,null,8000]
[null,null,null,null,null,null,null,null,null,null,null,null,null,null,null,null,8000]
[null,null,null,null,null,null,null,null,null,null,null,null,null,null,null,null,8000]
[null,null,null,null,null,null,null,null,null,null,null,null,null,null,null,null,8000]
[null,null,null,null,null,null,null,null,null,null,null,null,null,null,null,null,8000]
[null,null,null,null,null,null,null,null,null,null,null,null,null,null,null,null,8000]
[null,null,null,null,null,null,null,null,null,null,null,null,null,null,null,null,8000]
["TOTAL",{"$f":"SUM(B4:B248)","v":500},null,null,null,null,{"$f":"SUM(G4:G248)","v":96000},{"$f":"SUM(H4:H248)","v":8500},{"$f":"SUM(I4:I248)","v":4950},{"$f":"SUM(J4:J248)","v":1},null,null,null,null,null,null,{"$f":"SUM(H249-B249)","v":8000}]

{"sheet":"mohamed","index":3,"n_rows":249,"n_cols":17,"rows_kept":249,"cut":false,"hidden":false,"merged":[[0,0,0,2],[0,3,0,4],[1,13,1,14]]}
["mohamed",null,null,null,null,null,null,null,null,null,null,null,null,null,null,null,"العملاء"]
[null,{"$f":"SUBTOTAL(9,B4:B248)","v":500},null,null,null,{"$f":"SUBTOTAL(9,B4:B248)","v":500},{"$f":"H2-F2","v":8000},{"$f":"SUBTOTAL(9,H4:H248)","v":8500},{"$f":"SUBTOTAL(9,I4:I248)","v":4950},{"$f":"SUBTOTAL(9,J4:J248)","v":1}]
["م","القسط","السند","تاريخ السداد","تاريخ الاستلام","الواصل","المتبقي","بيع الكميه","شراء الكمية","الكميات","العقد","تاريخ ابتداء","قيمة القسط","اسم الكفيل","صفحات الدفتر","ملاحظلات","الرصيد"]
[1,500,15,null,null,{"$f":"B4","v":500},{"$f":"H$4-F4","v":8000},8500,4950,1,1,"2018-11-26",500,"مصطفى",null,null,{"$f":"H4-B4","v":8000}]
[2,null,null,null,null,{"$f":"F4+B5","v":500},{"$f":"H$4-F5","v":8000},null,null,null,null,null,null,null,null,null,{"$f":"Q4+H5-B5","v":8000}]
[3,null,null,null,null,{"$f":"F5+B6","v":500},{"$f":"H$4-F6","v":8000},null,null,null,null,null,null,null,null,null,8000]
[4,null,null,null,null,500,8000,null,null,null,null,null,null,null,null,null,8000]
[5,null,null,null,null,500,8000,null,null,null,null,null,null,null,null,null,8000]
[6,null,null,null,null,500,8000,null,null,null,null,null,null,null,null,null,8000]
[7,null,null,null,null,500,8000,null,null,null,null,null,null,null,null,null,8000]
[8,null,null,null,null,500,8000,null,null,null,null,null,null,null,null,null,8000]
[9,null,null,null,null,500,8000,null,null,null,null,null,null,null,null,null,8000]
[10,null,null,null,null,{"$f":"F12+B13","v":500},8000,null,null,null,null,null,null,null,null,null,8000]
[11,null,null,null,null,{"$f":"F13+B14","v":500},8000,null,null,null,null,null,null,null,null,null,8000]
[12,null,null,null,null,{"$f":"F14+B15","v":500},8000,null,null,null,null,null,null,null,null,null,8000]
[null,null,null,null,null,null,null,null,null,null,null,null,null,null,null,null,8000]
[1,0,null,null,null,null,null,null,null,null,null,null,null,null,null,null,8000]
[null,null,null,null,null,null,null,null,null,null,null,null,null,null,null,null,8000]
[null,null,null,null,null,null,null,null,null,null,null,null,null,null,null,null,8000]
[null,null,null,null,null,null,null,null,null,null,null,null,null,null,null,null,8000]
[null,null,null,null,null,null,null,null,null,null,null,null,null,null,null,null,8000]
[null,null,null,null,null,null,null,null,null,null,null,null,null,null,null,null,8000]
[null,null,null,null,null,null,null,null,null,null,null,null,null,null,null,null,8000]
[null,null,null,null,null,null,null,null,null,null,null,null,null,null,null,null,8000]
[null,null,null,null,null,null,null,null,null,null,null,null,null,null,null,null,8000]
[null,null,null,null,null,null,null,null,null,null,null,null,null,null,null,null,8000]
[null,null,null,null,null,null,null,null,null,null,null,null,null,null,null,null,8000]
[null,null,null,null,null,null,null,null,null,null,null,null,null,null,null,null,8000]
[null,null,null,null,null,null,null,null,null,null,null,null,null,null,null,null,8000]
[null,null,null,null,null,null,null,null,null,null,null,null,null,null,null,null,8000]
[null,null,null,null,null,null,null,null,null,null,null,null,null,null,null,null,8000]
[null,null,null,null,null,null,null,null,null,null,null,null,null,null,null,null,8000]
[null,null,null,null,null,null,null,null,null,null,null,null,null,null,null,null,8000]
[null,null,null,null,null,null,null,null,null,null,null,null,null,null,null,null,8000]
[null,null,null,null,null,null,null,null,null,null,null,null,null,null,null,null,8000]
[null,null,null,null,null,null,null,null,null,null,null,null,null,null,null,null,8000]
[null,null,null,null,null,null,null,null,null,null,null,null,null,null,null,null,8000]
[null,null,null,null,null,null,null,null,null,null,null,null,null,null,null,null,8000]
[null,null,null,null,null,null,null,null,null,null,null,null,null,null,null,null,8000]
[null,null,null,null,null,null,null,null,null,null,null,null,null,null,null,null,8000]
[null,null,null,null,null,null,null,null,null,null,null,null,null,null,null,null,8000]
[null,null,null,null,null,null,null,null,null,null,null,null,null,null,null,null,8000]
[null,null,null,null,null,null,null,null,null,null,null,null,null,null,null,null,8000]
[null,null,null,null,null,null,null,null,null,null,null,null,null,null,null,null,8000]
[null,null,null,null,null,null,null,null,null,null,null,null,null,null,null,null,8000]
[null,null,null,null,null,null,null,null,null,null,null,null,null,null,null,null,8000]
[null,null,null,null,null,null,null,null,null,null,null,null,null,null,null,null,8000]
[null,null,null,null,null,null,null,null,null,null,null,null,null,null,null,null,8000]
[null,null,null,null,null,null,null,null,null,null,null,null,null,null,null,null,8000]
[null,null,null,null,null,null,null,null,null,null,null,null,null,null,null,null,8000]
[null,null,null,null,null,null,null,null,null,null,null,null,null,null,null,null,8000]
[null,null,null,null,null,null,null,null,null,null,null,null,null,null,null,null,8000]
[null,null,null,null,null,null,null,null,null,null,null,null,null,null,null,null,8000]
[null,null,null,null,null,null,null,null,null,null,null,null,null,null,null,null,8000]
[null,0,null,null,null,null,null,null,null,null,null,null,null,null,null,null,8000]
[null,0,null,null,null,null,null,null,null,null,null,null,null,null,null,null,8000]
[null,0,null,null,null,null,null,null,null,null,null,null,null,null,null,null,8000]
[null,null,null,null,null,null,null,null,null,null,null,null,null,null,null,null,8000]
[null,null,null,null,null,null,null,null,null,null,null,null,null,null,null,null,8000]
[null,null,null,null,null,null,null,null,null,null,null,null,null,null,null,null,8000]
[null,0,null,null,null,null,null,null,null,null,null,null,null,null,null,null,8000]
[null,0,null,null,null,null,null,null,null,null,null,null,null,null,null,null,8000]
[null,0,null,null,null,null,null,null,null,null,null,null,null,null,null,null,8000]
[null,0,null,null,null,null,null,null,null,null,null,null,null,null,null,null,8000]
[null,null,null,null,null,null,null,null,null,null,null,null,null,null,null,null,8000]
[null,null,null,null,null,null,null,null,null,null,null,null,null,null,null,null,8000]
[null,null,null,null,null,null,null,null,null,null,null,null,null,null,null,null,8000]
[null,null,null,null,null,null,null,null,null,null,null,null,null,null,null,null,8000]
[null,null,null,null,null,null,null,null,null,null,null,null,null,null,null,null,{"$f":"Q68+H69-B69","v":8000}]
[null,null,null,null,null,null,null,null,null,null,null,null,null,null,null,null,8000]
[null,null,null,null,null,null,null,null,null,null,null,null,null,null,null,null,8000]
[null,null,null,null,null,null,null,null,null,null,null,null,null,null,null,null,8000]
[null,null,null,null,null,null,null,null,null,null,null,null,null,null,null,null,8000]
[null,null,null,null,null,null,null,null,null,null,null,null,null,null,null,null,8000]
[null,null,null,null,null,null,null,null,null,null,null,null,null,null,null,null,8000]
[null,null,null,null,null,null,null,null,null,null,null,null,null,null,null,null,8000]
[null,null,null,null,null,null,null,null,null,null,null,null,null,null,null,null,8000]
[null,null,null,null,null,null,null,null,null,null,null,null,null,null,null,null,8000]
[null,null,null,null,null,null,null,null,null,null,null,null,null,null,null,null,8000]
[null,null,null,null,null,null,null,null,null,null,null,null,null,null,null,null,8000]
[null,null,null,null,null,null,null,null,null,null,null,null,null,null,null,null,8000]
[null,null,null,null,null,null,null,null,null,null,null,null,null,null,null,null,8000]
[null,null,null,null,null,null,null,null,null,null,null,null,null,null,null,null,8000]
[null,null,null,null,null,null,null,null,null,null,null,null,null,null,null,null,8000]
[null,null,null,null,null,null,null,null,null,null,null,null,null,null,null,null,8000]
[null,null,null,null,null,null,null,null,null,null,null,null,null,null,null,null,8000]
[null,null,null,null,null,null,null,null,null,null,null,null,null,null,null,null,8000]
[null,null,null,null,null,null,null,null,null,null,null,null,null,null,null,null,8000]
[null,null,null,null,null,null,null,null,null,null,null,null,null,null,null,null,8000]
[null,null,null,null,null,null,null,null,null,null,null,null,null,null,null,null,8000]
[null,null,null,null,null,null,null,null,null,null,null,null,null,null,null,null,8000]
[null,null,null,null,null,null,null,null,null,null,null,null,null,null,null,null,8000]
[null,null,null,null,null,null,null,null,null,null,null,null,null,null,null,null,8000]
[null,null,null,null,null,null,null,null,null,null,null,null,null,null,null,null,8000]
[null,null,null,null,null,null,null,null,null,null,null,null,null,null,null,null,8000]
[null,null,null,null,null,null,null,null,null,null,null,null,null,null,null,null,8000]
[null,null,null,null,null,null,null,null,null,null,null,null,null,null,null,null,8000]
[null,null,null,null,null,null,null,null,null,null,null,null,null,null,null,null,8000]
[null,null,null,null,null,null,null,null,null,null,null,null,null,null,null,null,8000]
[null,null,null,null,null,null,null,null,null,null,null,null,null,null,null,null,8000]
[null,null,null,null,null,null,null,null,null,null,null,null,null,null,null,null,8000]
[null,null,null,null,null,null,null,null,null,null,null,null,null,null,null,null,8000]
[null,null,null,null,null,null,null,null,null,null,null,null,null,null,null,null,8000]
[null,null,null,null,null,null,null,null,null,null,null,null,null,null,null,null,8000]
[null,null,null,null,null,null,null,null,null,null,null,null,null,null,null,null,8000]
[null,null,null,null,null,null,null,null,null,null,null,null,null,null,null,null,8000]
[null,null,null,null,null,null,null,null,null,null,null,null,null,null,null,null,8000]
[null,null,null,null,null,null,null,null,null,null,null,null,null,null,null,null,8000]
[null,null,null,null,null,null,null,null,null,null,null,null,null,null,null,null,8000]
[null,null,null,null,null,null,null,null,null,null,null,null,null,null,null,null,8000]
[null,null,null,null,null,null,null,null,null,null,null,null,null,null,null,null,8000]
[null,null,null,null,null,null,null,null,null,null,null,null,null,null,null,null,8000]
[null,null,null,null,null,null,null,null,null,null,null,null,null,null,null,null,8000]
[null,null,null,null,null,null,null,null,null,null,null,null,null,null,null,null,8000]
[null,null,null,null,null,null,null,null,null,null,null,null,null,null,null,null,8000]
[null,null,null,null,null,null,null,null,null,null,null,null,null,null,null,null,8000]
[null,null,null,null,null,null,null,null,null,null,null,null,null,null,null,null,8000]
[null,null,null,null,null,null,null,null,null,null,null,null,null,null,null,null,8000]
[null,null,null,null,null,null,null,null,null,null,null,null,null,null,null,null,8000]
[null,null,null,null,null,null,null,null,null,null,null,null,null,null,null,null,8000]
[null,null,null,null,null,null,null,null,null,null,null,null,null,null,null,null,8000]
[null,null,null,null,null,null,null,null,null,null,null,null,null,null,null,null,8000]
[null,null,null,null,null,null,null,null,null,null,null,null,null,null,null,null,8000]
[null,null,null,null,null,null,null,null,null,null,null,null,null,null,null,null,8000]
[null,null,null,null,null,null,null,null,null,null,null,null,null,null,null,null,8000]
[null,null,null,null,null,null,null,null,null,null,null,null,null,null,null,null,8000]
[null,null,null,null,null,null,null,null,null,null,null,null,null,null,null,null,8000]
[null,null,null,null,null,null,null,null,null,null,null,null,null,null,null,null,8000]
[null,null,null,null,null,null,null,null,null,null,null,null,null,null,null,null,8000]
[null,null,null,null,null,null,null,null,null,null,null,null,null,null,null,null,8000]
[null,null,null,null,null,null,null,null,null,null,null,null,null,null,null,null,8000]
[null,null,null,null,null,null,null,null,null,null,null,null,null,null,null,null,8000]
[null,null,null,null,null,null,null,null,null,null,null,null,null,null,null,null,{"$f":"Q132+H133-B133","v":8000}]
[null,null,null,null,null,null,null,null,null,null,null,null,null,null,null,null,8000]
[null,null,null,null,null,null,null,null,null,null,null,null,null,null,null,null,8000]
[null,null,null,null,null,null,null,null,null,null,null,null,null,null,null,null,8000]
[null,null,null,null,null,null,null,null,null,null,null,null,null,null,null,null,8000]
[null,null,null,null,null,null,null,null,null,null,null,null,null,null,null,null,8000]
[null,null,null,null,null,null,null,null,null,null,null,null,null,null,null,null,8000]
[null,null,null,null,null,null,null,null,null,null,null,null,null,null,null,null,8000]
[null,null,null,null,null,null,null,null,null,null,null,null,null,null,null,null,8000]
[null,null,null,null,null,null,null,null,null,null,null,null,null,null,null,null,8000]
[null,null,null,null,null,null,null,null,null,null,null,null,null,null,null,null,8000]
[null,null,null,null,null,null,null,null,null,null,null,null,null,null,null,null,8000]
[null,null,null,null,null,null,null,null,null,null,null,null,null,null,null,null,8000]
[null,null,null,null,null,null,null,null,null,null,null,null,null,null,null,null,8000]
[null,null,null,null,null,null,null,null,null,null,null,null,null,null,null,null,8000]
[null,null,null,null,null,null,null,null,null,null,null,null,null,null,null,null,8000]
[null,null,null,null,null,null,null,null,null,null,null,null,null,null,null,null,8000]
[null,null,null,null,null,null,null,null,null,null,null,null,null,null,null,null,8000]
[null,null,null,null,null,null,null,null,null,null,null,null,null,null,null,null,8000]
[null,null,null,null,null,null,null,null,null,null,null,null,null,null,null,null,8000]
[null,null,null,null,null,null,null,null,null,null,null,null,null,null,null,null,8000]
[null,null,null,null,null,null,null,null,null,null,null,null,null,null,null,null,8000]
[null,null,null,null,null,null,null,null,null,null,null,null,null,null,null,null,8000]
[null,null,null,null,null,null,null,null,null,null,null,null,null,null,null,null,8000]
[null,null,null,null,null,null,null,null,null,null,null,null,null,null,null,null,8000]
[null,null,null,null,null,null,null,null,null,null,null,null,null,null,null,null,8000]
[null,null,null,null,null,null,null,null,null,null,null,null,null,null,null,null,8000]
[null,null,null,null,null,null,null,null,null,null,null,null,null,null,null,null,8000]
[null,null,null,null,null,null,null,null,null,null,null,null,null,null,null,null,8000]
[null,null,null,null,null,null,null,null,null,null,null,null,null,null,null,null,8000]
[null,null,null,null,null,null,null,null,null,null,null,null,null,null,null,null,8000]
[null,null,null,null,null,null,null,null,null,null,null,null,null,null,null,null,8000]
[null,null,null,null,null,null,null,null,null,null,null,null,null,null,null,null,8000]
[null,null,null,null,null,null,null,null,null,null,null,null,null,null,null,null,8000]
[null,null,null,null,null,null,null,null,null,null,null,null,null,null,null,null,8000]
[null,null,null,null,null,null,null,null,null,null,null,null,null,null,null,null,8000]
[null,null,null,null,null,null,null,null,null,null,null,null,null,null,null,null,8000]
[null,null,null,null,null,null,null,null,null,null,null,null,null,null,null,null,8000]
[null,null,null,null,null,null,null,null,null,null,null,null,null,null,null,null,8000]
[null,null,null,null,null,null,null,null,null,null,null,null,null,null,null,null,8000]
[null,null,null,null,null,null,null,null,null,null,null,null,null,null,null,null,8000]
[null,null,null,null,null,null,null,null,null,null,null,null,null,null,null,null,8000]
[null,null,null,null,null,null,null,null,null,null,null,null,null,null,null,null,8000]
[null,null,null,null,null,null,null,null,null,null,null,null,null,null,null,null,8000]
[null,null,null,null,null,null,null,null,null,null,null,null,null,null,null,null,8000]
[null,null,null,null,null,null,null,null,null,null,null,null,null,null,null,null,8000]
[null,null,null,null,null,null,null,null,null,null,null,null,null,null,null,null,8000]
[null,null,null,null,null,null,null,null,null,null,null,null,null,null,null,null,8000]
[null,null,null,null,null,null,null,null,null,null,null,null,null,null,null,null,8000]
[null,null,null,null,null,null,null,null,null,null,null,null,null,null,null,null,8000]
[null,null,null,null,null,null,null,null,null,null,null,null,null,null,null,null,8000]
[null,null,null,null,null,null,null,null,null,null,null,null,null,null,null,null,8000]
[null,null,null,null,null,null,null,null,null,null,null,null,null,null,null,null,8000]
[null,null,null,null,null,null,null,null,null,null,null,null,null,null,null,null,8000]
[null,null,null,null,null,null,null,null,null,null,null,null,null,null,null,null,8000]
[null,null,null,null,null,null,null,null,null,null,null,null,null,null,null,null,8000]
[null,null,null,null,null,null,null,null,null,null,null,null,null,null,null,null,8000]
[null,null,null,null,null,null,null,null,null,null,null,null,null,null,null,null,8000]
[null,null,null,null,null,null,null,null,null,null,null,null,null,null,null,null,8000]
[null,null,null,null,null,null,null,null,null,null,null,null,null,null,null,null,8000]
[null,null,null,null,null,null,null,null,null,null,null,null,null,null,null,null,8000]
[null,null,null,null,null,null,null,null,null,null,null,null,null,null,null,null,8000]
[null,null,null,null,null,null,null,null,null,null,null,null,null,null,null,null,8000]
[null,null,null,null,null,null,null,null,null,null,null,null,null,null,null,null,8000]
[null,null,null,null,null,null,null,null,null,null,null,null,null,null,null,null,{"$f":"Q196+H197-B197","v":8000}]
[null,null,null,null,null,null,null,null,null,null,null,null,null,null,null,null,8000]
[null,null,null,null,null,null,null,null,null,null,null,null,null,null,null,null,8000]
[null,null,null,null,null,null,null,null,null,null,null,null,null,null,null,null,8000]
[null,null,null,null,null,null,null,null,null,null,null,null,null,null,null,null,8000]
[null,null,null,null,null,null,null,null,null,null,null,null,null,null,null,null,8000]
[null,null,null,null,null,null,null,null,null,null,null,null,null,null,null,null,8000]
[null,null,null,null,null,null,null,null,null,null,null,null,null,null,null,null,8000]
[null,null,null,null,null,null,null,null,null,null,null,null,null,null,null,null,8000]
[null,null,null,null,null,null,null,null,null,null,null,null,null,null,null,null,8000]
[null,null,null,null,null,null,null,null,null,null,null,null,null,null,null,null,8000]
[null,null,null,null,null,null,null,null,null,null,null,null,null,null,null,null,8000]
[null,null,null,null,null,null,null,null,null,null,null,null,null,null,null,null,8000]
[null,null,null,null,null,null,null,null,null,null,null,null,null,null,null,null,8000]
[null,null,null,null,null,null,null,null,null,null,null,null,null,null,null,null,8000]
[null,null,null,null,null,null,null,null,null,null,null,null,null,null,null,null,8000]
[null,null,null,null,null,null,null,null,null,null,null,null,null,null,null,null,8000]
[null,null,null,null,null,null,null,null,null,null,null,null,null,null,null,null,8000]
[null,null,null,null,null,null,null,null,null,null,null,null,null,null,null,null,8000]
[null,null,null,null,null,null,null,null,null,null,null,null,null,null,null,null,8000]
[null,null,null,null,null,null,null,null,null,null,null,null,null,null,null,null,8000]
[null,null,null,null,null,null,null,null,null,null,null,null,null,null,null,null,8000]
[null,null,null,null,null,null,null,null,null,null,null,null,null,null,null,null,{"$f":"Q29+H219-B219","v":8000}]
[null,null,null,null,null,null,null,null,null,null,null,null,null,null,null,null,{"$f":"Q219+H220-B220","v":8000}]
[null,null,null,null,null,null,null,null,null,null,null,null,null,null,null,null,8000]
[null,null,null,null,null,null,null,null,null,null,null,null,null,null,null,null,8000]
[null,null,null,null,null,null,null,null,null,null,null,null,null,null,null,null,8000]
[null,null,null,null,null,null,null,null,null,null,null,null,null,null,null,null,8000]
[null,null,null,null,null,null,null,null,null,null,null,null,null,null,null,null,8000]
[null,null,null,null,null,null,null,null,null,null,null,null,null,null,null,null,8000]
[null,null,null,null,null,null,null,null,null,null,null,null,null,null,null,null,8000]
[null,null,null,null,null,null,null,null,null,null,null,null,null,null,null,null,8000]
[null,null,null,null,null,null,null,null,null,null,null,null,null,null,null,null,8000]
[null,null,null,null,null,null,null,null,null,null,null,null,null,null,null,null,8000]
[null,null,null,null,null,null,null,null,null,null,null,null,null,null,null,null,8000]
[null,null,null,null,null,null,null,null,null,null,null,null,null,null,null,null,8000]
[null,null,null,null,null,null,null,null,null,null,null,null,null,null,null,null,8000]
[null,null,null,null,null,null,null,null,null,null,null,null,null,null,null,null,8000]
[null,null,null,null,null,null,null,null,null,null,null,null,null,null,null,null,8000]
[null,null,null,null,null,null,null,null,null,null,null,null,null,null,null,null,8000]
[null,null,null,null,null,null,null,null,null,null,null,null,null,null,null,null,8000]
[null,null,null,null,null,null,null,null,null,null,null,null,null,null,null,null,8000]
[null,null,null,null,null,null,null,null,null,null,null,null,null,null,null,null,8000]
[null,null,null,null,null,null,null,null,null,null,null,null,null,null,null,null,8000]
[null,null,null,null,null,null,null,null,null,null,null,null,null,null,null,null,8000]
[null,null,null,null,null,null,null,null,null,null,null,null,null,null,null,null,8000]
[null,null,null,null,null,null,null,null,null,null,null,null,null,null,null,null,8000]
[null,null,null,null,null,null,null,null,null,null,null,null,null,null,null,null,8000]
[null,null,null,null,null,null,null,null,null,null,null,null,null,null,null,null,8000]
[null,null,null,null,null,null,null,null,null,null,null,null,null,null,null,null,8000]
[null,null,null,null,null,null,null,null,null,null,null,null,null,null,null,null,8000]
[null,null,null,null,null,null,null,null,null,null,null,null,null,null,null,null,8000]
["TOTAL",{"$f":"SUM(B4:B248)","v":500},null,null,null,null,{"$f":"SUM(G4:G248)","v":96000},{"$f":"SUM(H4:H248)","v":8500},{"$f":"SUM(I4:I248)","v":4950},{"$f":"SUM(J4:J248)","v":1},null,null,null,null,null,null,{"$f":"SUM(H249-B249)","v":8000}]

{"sheet":"mustafa","index":4,"n_rows":249,"n_cols":17,"rows_kept":249,"cut":false,"hidden":false,"merged":[[0,0,0,2],[0,3,0,4],[1,13,1,14]]}
["mustafa",null,null,null,null,null,null,null,null,null,null,null,null,null,null,null,"العملاء"]
[null,{"$f":"SUBTOTAL(9,B4:B248)","v":500},null,null,null,{"$f":"SUBTOTAL(9,B4:B248)","v":500},{"$f":"H2-F2","v":8000},{"$f":"SUBTOTAL(9,H4:H248)","v":8500},{"$f":"SUBTOTAL(9,I4:I248)","v":4950},{"$f":"SUBTOTAL(9,J4:J248)","v":1}]
["م","القسط","السند","تاريخ السداد","تاريخ الاستلام","الواصل","المتبقي","بيع الكميه","شراء الكمية","الكميات","العقد","تاريخ ابتداء","قيمة القسط","اسم الكفيل","صفحات الدفتر","ملاحظلات","الرصيد"]
[1,500,15,null,null,{"$f":"B4","v":500},{"$f":"H$4-F4","v":8000},8500,4950,1,1,"2018-11-26",500,"مصطفى",null,null,{"$f":"H4-B4","v":8000}]
[2,null,null,null,null,{"$f":"F4+B5","v":500},{"$f":"H$4-F5","v":8000},null,null,null,null,null,null,null,null,null,{"$f":"Q4+H5-B5","v":8000}]
[3,null,null,null,null,{"$f":"F5+B6","v":500},{"$f":"H$4-F6","v":8000},null,null,null,null,null,null,null,null,null,8000]
[4,null,null,null,null,500,8000,null,null,null,null,null,null,null,null,null,8000]
[5,null,null,null,null,500,8000,null,null,null,null,null,null,null,null,null,8000]
[6,null,null,null,null,500,8000,null,null,null,null,null,null,null,null,null,8000]
[7,null,null,null,null,500,8000,null,null,null,null,null,null,null,null,null,8000]
[8,null,null,null,null,500,8000,null,null,null,null,null,null,null,null,null,8000]
[9,null,null,null,null,500,8000,null,null,null,null,null,null,null,null,null,8000]
[10,null,null,null,null,{"$f":"F12+B13","v":500},8000,null,null,null,null,null,null,null,null,null,8000]
[11,null,null,null,null,{"$f":"F13+B14","v":500},8000,null,null,null,null,null,null,null,null,null,8000]
[12,null,null,null,null,{"$f":"F14+B15","v":500},8000,null,null,null,null,null,null,null,null,null,8000]
[null,null,null,null,null,null,null,null,null,null,null,null,null,null,null,null,8000]
[1,0,null,null,null,null,null,null,null,null,null,null,null,null,null,null,8000]
[null,null,null,null,null,null,null,null,null,null,null,null,null,null,null,null,8000]
[null,null,null,null,null,null,null,null,null,null,null,null,null,null,null,null,8000]
[null,null,null,null,null,null,null,null,null,null,null,null,null,null,null,null,8000]
[null,null,null,null,null,null,null,null,null,null,null,null,null,null,null,null,8000]
[null,null,null,null,null,null,null,null,null,null,null,null,null,null,null,null,8000]
[null,null,null,null,null,null,null,null,null,null,null,null,null,null,null,null,8000]
[null,null,null,null,null,null,null,null,null,null,null,null,null,null,null,null,8000]
[null,null,null,null,null,null,null,null,null,null,null,null,null,null,null,null,8000]
[null,null,null,null,null,null,null,null,null,null,null,null,null,null,null,null,8000]
[null,null,null,null,null,null,null,null,null,null,null,null,null,null,null,null,8000]
[null,null,null,null,null,null,null,null,null,null,null,null,null,null,null,null,8000]
[null,null,null,null,null,null,null,null,null,null,null,null,null,null,null,null,8000]
[null,null,null,null,null,null,null,null,null,null,null,null,null,null,null,null,8000]
[null,null,null,null,null,null,null,null,null,null,null,null,null,null,null,null,8000]
[null,null,null,null,null,null,null,null,null,null,null,null,null,null,null,null,8000]
[null,null,null,null,null,null,null,null,null,null,null,null,null,null,null,null,8000]
[null,null,null,null,null,null,null,null,null,null,null,null,null,null,null,null,8000]
[null,null,null,null,null,null,null,null,null,null,null,null,null,null,null,null,8000]
[null,null,null,null,null,null,null,null,null,null,null,null,null,null,null,null,8000]
[null,null,null,null,null,null,null,null,null,null,null,null,null,null,null,null,8000]
[null,null,null,null,null,null,null,null,null,null,null,null,null,null,null,null,8000]
[null,null,null,null,null,null,null,null,null,null,null,null,null,null,null,null,8000]
[null,null,null,null,null,null,null,null,null,null,null,null,null,null,null,null,8000]
[null,null,null,null,null,null,null,null,null,null,null,null,null,null,null,null,8000]
[null,null,null,null,null,null,null,null,null,null,null,null,null,null,null,null,8000]
[null,null,null,null,null,null,null,null,null,null,null,null,null,null,null,null,8000]
[null,null,null,null,null,null,null,null,null,null,null,null,null,null,null,null,8000]
[null,null,null,null,null,null,null,null,null,null,null,null,null,null,null,null,8000]
[null,null,null,null,null,null,null,null,null,null,null,null,null,null,null,null,8000]
[null,null,null,null,null,null,null,null,null,null,null,null,null,null,null,null,8000]
[null,null,null,null,null,null,null,null,null,null,null,null,null,null,null,null,8000]
[null,null,null,null,null,null,null,null,null,null,null,null,null,null,null,null,8000]
[null,null,null,null,null,null,null,null,null,null,null,null,null,null,null,null,8000]
[null,null,null,null,null,null,null,null,null,null,null,null,null,null,null,null,8000]
[null,null,null,null,null,null,null,null,null,null,null,null,null,null,null,null,8000]
[null,null,null,null,null,null,null,null,null,null,null,null,null,null,null,null,8000]
[null,null,null,null,null,null,null,null,null,null,null,null,null,null,null,null,8000]
[null,0,null,null,null,null,null,null,null,null,null,null,null,null,null,null,8000]
[null,0,null,null,null,null,null,null,null,null,null,null,null,null,null,null,8000]
[null,0,null,null,null,null,null,null,null,null,null,null,null,null,null,null,8000]
[null,null,null,null,null,null,null,null,null,null,null,null,null,null,null,null,8000]
[null,null,null,null,null,null,null,null,null,null,null,null,null,null,null,null,8000]
[null,null,null,null,null,null,null,null,null,null,null,null,null,null,null,null,8000]
[null,0,null,null,null,null,null,null,null,null,null,null,null,null,null,null,8000]
[null,0,null,null,null,null,null,null,null,null,null,null,null,null,null,null,8000]
[null,0,null,null,null,null,null,null,null,null,null,null,null,null,null,null,8000]
[null,0,null,null,null,null,null,null,null,null,null,null,null,null,null,null,8000]
[null,null,null,null,null,null,null,null,null,null,null,null,null,null,null,null,8000]
[null,null,null,null,null,null,null,null,null,null,null,null,null,null,null,null,8000]
[null,null,null,null,null,null,null,null,null,null,null,null,null,null,null,null,8000]
[null,null,null,null,null,null,null,null,null,null,null,null,null,null,null,null,8000]
[null,null,null,null,null,null,null,null,null,null,null,null,null,null,null,null,{"$f":"Q68+H69-B69","v":8000}]
[null,null,null,null,null,null,null,null,null,null,null,null,null,null,null,null,8000]
[null,null,null,null,null,null,null,null,null,null,null,null,null,null,null,null,8000]
[null,null,null,null,null,null,null,null,null,null,null,null,null,null,null,null,8000]
[null,null,null,null,null,null,null,null,null,null,null,null,null,null,null,null,8000]
[null,null,null,null,null,null,null,null,null,null,null,null,null,null,null,null,8000]
[null,null,null,null,null,null,null,null,null,null,null,null,null,null,null,null,8000]
[null,null,null,null,null,null,null,null,null,null,null,null,null,null,null,null,8000]
[null,null,null,null,null,null,null,null,null,null,null,null,null,null,null,null,8000]
[null,null,null,null,null,null,null,null,null,null,null,null,null,null,null,null,8000]
[null,null,null,null,null,null,null,null,null,null,null,null,null,null,null,null,8000]
[null,null,null,null,null,null,null,null,null,null,null,null,null,null,null,null,8000]
[null,null,null,null,null,null,null,null,null,null,null,null,null,null,null,null,8000]
[null,null,null,null,null,null,null,null,null,null,null,null,null,null,null,null,8000]
[null,null,null,null,null,null,null,null,null,null,null,null,null,null,null,null,8000]
[null,null,null,null,null,null,null,null,null,null,null,null,null,null,null,null,8000]
[null,null,null,null,null,null,null,null,null,null,null,null,null,null,null,null,8000]
[null,null,null,null,null,null,null,null,null,null,null,null,null,null,null,null,8000]
[null,null,null,null,null,null,null,null,null,null,null,null,null,null,null,null,8000]
[null,null,null,null,null,null,null,null,null,null,null,null,null,null,null,null,8000]
[null,null,null,null,null,null,null,null,null,null,null,null,null,null,null,null,8000]
[null,null,null,null,null,null,null,null,null,null,null,null,null,null,null,null,8000]
[null,null,null,null,null,null,null,null,null,null,null,null,null,null,null,null,8000]
[null,null,null,null,null,null,null,null,null,null,null,null,null,null,null,null,8000]
[null,null,null,null,null,null,null,null,null,null,null,null,null,null,null,null,8000]
[null,null,null,null,null,null,null,null,null,null,null,null,null,null,null,null,8000]
[null,null,null,null,null,null,null,null,null,null,null,null,null,null,null,null,8000]
[null,null,null,null,null,null,null,null,null,null,null,null,null,null,null,null,8000]
[null,null,null,null,null,null,null,null,null,null,null,null,null,null,null,null,8000]
[null,null,null,null,null,null,null,null,null,null,null,null,null,null,null,null,8000]
[null,null,null,null,null,null,null,null,null,null,null,null,null,null,null,null,8000]
[null,null,null,null,null,null,null,null,null,null,null,null,null,null,null,null,8000]
[null,null,null,null,null,null,null,null,null,null,null,null,null,null,null,null,8000]
[null,null,null,null,null,null,null,null,null,null,null,null,null,null,null,null,8000]
[null,null,null,null,null,null,null,null,null,null,null,null,null,null,null,null,8000]
[null,null,null,null,null,null,null,null,null,null,null,null,null,null,null,null,8000]
[null,null,null,null,null,null,null,null,null,null,null,null,null,null,null,null,8000]
[null,null,null,null,null,null,null,null,null,null,null,null,null,null,null,null,8000]
[null,null,null,null,null,null,null,null,null,null,null,null,null,null,null,null,8000]
[null,null,null,null,null,null,null,null,null,null,null,null,null,null,null,null,8000]
[null,null,null,null,null,null,null,null,null,null,null,null,null,null,null,null,8000]
[null,null,null,null,null,null,null,null,null,null,null,null,null,null,null,null,8000]
[null,null,null,null,null,null,null,null,null,null,null,null,null,null,null,null,8000]
[null,null,null,null,null,null,null,null,null,null,null,null,null,null,null,null,8000]
[null,null,null,null,null,null,null,null,null,null,null,null,null,null,null,null,8000]
[null,null,null,null,null,null,null,null,null,null,null,null,null,null,null,null,8000]
[null,null,null,null,null,null,null,null,null,null,null,null,null,null,null,null,8000]
[null,null,null,null,null,null,null,null,null,null,null,null,null,null,null,null,8000]
[null,null,null,null,null,null,null,null,null,null,null,null,null,null,null,null,8000]
[null,null,null,null,null,null,null,null,null,null,null,null,null,null,null,null,8000]
[null,null,null,null,null,null,null,null,null,null,null,null,null,null,null,null,8000]
[null,null,null,null,null,null,null,null,null,null,null,null,null,null,null,null,8000]
[null,null,null,null,null,null,null,null,null,null,null,null,null,null,null,null,8000]
[null,null,null,null,null,null,null,null,null,null,null,null,null,null,null,null,8000]
[null,null,null,null,null,null,null,null,null,null,null,null,null,null,null,null,8000]
[null,null,null,null,null,null,null,null,null,null,null,null,null,null,null,null,8000]
[null,null,null,null,null,null,null,null,null,null,null,null,null,null,null,null,8000]
[null,null,null,null,null,null,null,null,null,null,null,null,null,null,null,null,8000]
[null,null,null,null,null,null,null,null,null,null,null,null,null,null,null,null,8000]
[null,null,null,null,null,null,null,null,null,null,null,null,null,null,null,null,8000]
[null,null,null,null,null,null,null,null,null,null,null,null,null,null,null,null,8000]
[null,null,null,null,null,null,null,null,null,null,null,null,null,null,null,null,8000]
[null,null,null,null,null,null,null,null,null,null,null,null,null,null,null,null,8000]
[null,null,null,null,null,null,null,null,null,null,null,null,null,null,null,null,8000]
[null,null,null,null,null,null,null,null,null,null,null,null,null,null,null,null,{"$f":"Q132+H133-B133","v":8000}]
[null,null,null,null,null,null,null,null,null,null,null,null,null,null,null,null,8000]
[null,null,null,null,null,null,null,null,null,null,null,null,null,null,null,null,8000]
[null,null,null,null,null,null,null,null,null,null,null,null,null,null,null,null,8000]
[null,null,null,null,null,null,null,null,null,null,null,null,null,null,null,null,8000]
[null,null,null,null,null,null,null,null,null,null,null,null,null,null,null,null,8000]
[null,null,null,null,null,null,null,null,null,null,null,null,null,null,null,null,8000]
[null,null,null,null,null,null,null,null,null,null,null,null,null,null,null,null,8000]
[null,null,null,null,null,null,null,null,null,null,null,null,null,null,null,null,8000]
[null,null,null,null,null,null,null,null,null,null,null,null,null,null,null,null,8000]
[null,null,null,null,null,null,null,null,null,null,null,null,null,null,null,null,8000]
[null,null,null,null,null,null,null,null,null,null,null,null,null,null,null,null,8000]
[null,null,null,null,null,null,null,null,null,null,null,null,null,null,null,null,8000]
[null,null,null,null,null,null,null,null,null,null,null,null,null,null,null,null,8000]
[null,null,null,null,null,null,null,null,null,null,null,null,null,null,null,null,8000]
[null,null,null,null,null,null,null,null,null,null,null,null,null,null,null,null,8000]
[null,null,null,null,null,null,null,null,null,null,null,null,null,null,null,null,8000]
[null,null,null,null,null,null,null,null,null,null,null,null,null,null,null,null,8000]
[null,null,null,null,null,null,null,null,null,null,null,null,null,null,null,null,8000]
[null,null,null,null,null,null,null,null,null,null,null,null,null,null,null,null,8000]
[null,null,null,null,null,null,null,null,null,null,null,null,null,null,null,null,8000]
[null,null,null,null,null,null,null,null,null,null,null,null,null,null,null,null,8000]
[null,null,null,null,null,null,null,null,null,null,null,null,null,null,null,null,8000]
[null,null,null,null,null,null,null,null,null,null,null,null,null,null,null,null,8000]
[null,null,null,null,null,null,null,null,null,null,null,null,null,null,null,null,8000]
[null,null,null,null,null,null,null,null,null,null,null,null,null,null,null,null,8000]
[null,null,null,null,null,null,null,null,null,null,null,null,null,null,null,null,8000]
[null,null,null,null,null,null,null,null,null,null,null,null,null,null,null,null,8000]
[null,null,null,null,null,null,null,null,null,null,null,null,null,null,null,null,8000]
[null,null,null,null,null,null,null,null,null,null,null,null,null,null,null,null,8000]
[null,null,null,null,null,null,null,null,null,null,null,null,null,null,null,null,8000]
[null,null,null,null,null,null,null,null,null,null,null,null,null,null,null,null,8000]
[null,null,null,null,null,null,null,null,null,null,null,null,null,null,null,null,8000]
[null,null,null,null,null,null,null,null,null,null,null,null,null,null,null,null,8000]
[null,null,null,null,null,null,null,null,null,null,null,null,null,null,null,null,8000]
[null,null,null,null,null,null,null,null,null,null,null,null,null,null,null,null,8000]
[null,null,null,null,null,null,null,null,null,null,null,null,null,null,null,null,8000]
[null,null,null,null,null,null,null,null,null,null,null,null,null,null,null,null,8000]
[null,null,null,null,null,null,null,null,null,null,null,null,null,null,null,null,8000]
[null,null,null,null,null,null,null,null,null,null,null,null,null,null,null,null,8000]
[null,null,null,null,null,null,null,null,null,null,null,null,null,null,null,null,8000]
[null,null,null,null,null,null,null,null,null,null,null,null,null,null,null,null,8000]
[null,null,null,null,null,null,null,null,null,null,null,null,null,null,null,null,8000]
[null,null,null,null,null,null,null,null,null,null,null,null,null,null,null,null,8000]
[null,null,null,null,null,null,null,null,null,null,null,null,null,null,null,null,8000]
[null,null,null,null,null,null,null,null,null,null,null,null,null,null,null,null,8000]
[null,null,null,null,null,null,null,null,null,null,null,null,null,null,null,null,8000]
[null,null,null,null,null,null,null,null,null,null,null,null,null,null,null,null,8000]
[null,null,null,null,null,null,null,null,null,null,null,null,null,null,null,null,8000]
[null,null,null,null,null,null,null,null,null,null,null,null,null,null,null,null,8000]
[null,null,null,null,null,null,null,null,null,null,null,null,null,null,null,null,8000]
[null,null,null,null,null,null,null,null,null,null,null,null,null,null,null,null,8000]
[null,null,null,null,null,null,null,null,null,null,null,null,null,null,null,null,8000]
[null,null,null,null,null,null,null,null,null,null,null,null,null,null,null,null,8000]
[null,null,null,null,null,null,null,null,null,null,null,null,null,null,null,null,8000]
[null,null,null,null,null,null,null,null,null,null,null,null,null,null,null,null,8000]
[null,null,null,null,null,null,null,null,null,null,null,null,null,null,null,null,8000]
[null,null,null,null,null,null,null,null,null,null,null,null,null,null,null,null,8000]
[null,null,null,null,null,null,null,null,null,null,null,null,null,null,null,null,8000]
[null,null,null,null,null,null,null,null,null,null,null,null,null,null,null,null,8000]
[null,null,null,null,null,null,null,null,null,null,null,null,null,null,null,null,8000]
[null,null,null,null,null,null,null,null,null,null,null,null,null,null,null,null,8000]
[null,null,null,null,null,null,null,null,null,null,null,null,null,null,null,null,8000]
[null,null,null,null,null,null,null,null,null,null,null,null,null,null,null,null,8000]
[null,null,null,null,null,null,null,null,null,null,null,null,null,null,null,null,{"$f":"Q196+H197-B197","v":8000}]
[null,null,null,null,null,null,null,null,null,null,null,null,null,null,null,null,8000]
[null,null,null,null,null,null,null,null,null,null,null,null,null,null,null,null,8000]
[null,null,null,null,null,null,null,null,null,null,null,null,null,null,null,null,8000]
[null,null,null,null,null,null,null,null,null,null,null,null,null,null,null,null,8000]
[null,null,null,null,null,null,null,null,null,null,null,null,null,null,null,null,8000]
[null,null,null,null,null,null,null,null,null,null,null,null,null,null,null,null,8000]
[null,null,null,null,null,null,null,null,null,null,null,null,null,null,null,null,8000]
[null,null,null,null,null,null,null,null,null,null,null,null,null,null,null,null,8000]
[null,null,null,null,null,null,null,null,null,null,null,null,null,null,null,null,8000]
[null,null,null,null,null,null,null,null,null,null,null,null,null,null,null,null,8000]
[null,null,null,null,null,null,null,null,null,null,null,null,null,null,null,null,8000]
[null,null,null,null,null,null,null,null,null,null,null,null,null,null,null,null,8000]
[null,null,null,null,null,null,null,null,null,null,null,null,null,null,null,null,8000]
[null,null,null,null,null,null,null,null,null,null,null,null,null,null,null,null,8000]
[null,null,null,null,null,null,null,null,null,null,null,null,null,null,null,null,8000]
[null,null,null,null,null,null,null,null,null,null,null,null,null,null,null,null,8000]
[null,null,null,null,null,null,null,null,null,null,null,null,null,null,null,null,8000]
[null,null,null,null,null,null,null,null,null,null,null,null,null,null,null,null,8000]
[null,null,null,null,null,null,null,null,null,null,null,null,null,null,null,null,8000]
[null,null,null,null,null,null,null,null,null,null,null,null,null,null,null,null,8000]
[null,null,null,null,null,null,null,null,null,null,null,null,null,null,null,null,8000]
[null,null,null,null,null,null,null,null,null,null,null,null,null,null,null,null,{"$f":"Q29+H219-B219","v":8000}]
[null,null,null,null,null,null,null,null,null,null,null,null,null,null,null,null,{"$f":"Q219+H220-B220","v":8000}]
[null,null,null,null,null,null,null,null,null,null,null,null,null,null,null,null,8000]
[null,null,null,null,null,null,null,null,null,null,null,null,null,null,null,null,8000]
[null,null,null,null,null,null,null,null,null,null,null,null,null,null,null,null,8000]
[null,null,null,null,null,null,null,null,null,null,null,null,null,null,null,null,8000]
[null,null,null,null,null,null,null,null,null,null,null,null,null,null,null,null,8000]
[null,null,null,null,null,null,null,null,null,null,null,null,null,null,null,null,8000]
[null,null,null,null,null,null,null,null,null,null,null,null,null,null,null,null,8000]
[null,null,null,null,null,null,null,null,null,null,null,null,null,null,null,null,8000]
[null,null,null,null,null,null,null,null,null,null,null,null,null,null,null,null,8000]
[null,null,null,null,null,null,null,null,null,null,null,null,null,null,null,null,8000]
[null,null,null,null,null,null,null,null,null,null,null,null,null,null,null,null,8000]
[null,null,null,null,null,null,null,null,null,null,null,null,null,null,null,null,8000]
[null,null,null,null,null,null,null,null,null,null,null,null,null,null,null,null,8000]
[null,null,null,null,null,null,null,null,null,null,null,null,null,null,null,null,8000]
[null,null,null,null,null,null,null,null,null,null,null,null,null,null,null,null,8000]
[null,null,null,null,null,null,null,null,null,null,null,null,null,null,null,null,8000]
[null,null,null,null,null,null,null,null,null,null,null,null,null,null,null,null,8000]
[null,null,null,null,null,null,null,null,null,null,null,null,null,null,null,null,8000]
[null,null,null,null,null,null,null,null,null,null,null,null,null,null,null,null,8000]
[null,null,null,null,null,null,null,null,null,null,null,null,null,null,null,null,8000]
[null,null,null,null,null,null,null,null,null,null,null,null,null,null,null,null,8000]
[null,null,null,null,null,null,null,null,null,null,null,null,null,null,null,null,8000]
[null,null,null,null,null,null,null,null,null,null,null,null,null,null,null,null,8000]
[null,null,null,null,null,null,null,null,null,null,null,null,null,null,null,null,8000]
[null,null,null,null,null,null,null,null,null,null,null,null,null,null,null,null,8000]
[null,null,null,null,null,null,null,null,null,null,null,null,null,null,null,null,8000]
[null,null,null,null,null,null,null,null,null,null,null,null,null,null,null,null,8000]
[null,null,null,null,null,null,null,null,null,null,null,null,null,null,null,null,8000]
["TOTAL",{"$f":"SUM(B4:B248)","v":500},null,null,null,null,{"$f":"SUM(G4:G248)","v":96000},{"$f":"SUM(H4:H248)","v":8500},{"$f":"SUM(I4:I248)","v":4950},{"$f":"SUM(J4:J248)","v":1},null,null,null,null,null,null,{"$f":"SUM(H249-B249)","v":8000}]

{"sheet":"ahmed","index":5,"n_rows":249,"n_cols":17,"rows_kept":249,"cut":false,"hidden":false,"merged":[[0,0,0,2],[0,3,0,4],[1,13,1,14]]}
["ahmed",null,null,null,null,null,null,null,null,null,null,null,null,null,null,null,"العملاء"]
[null,{"$f":"SUBTOTAL(9,B4:B248)","v":500},null,null,null,{"$f":"SUBTOTAL(9,B4:B248)","v":500},{"$f":"H2-F2","v":8000},{"$f":"SUBTOTAL(9,H4:H248)","v":8500},{"$f":"SUBTOTAL(9,I4:I248)","v":4950},{"$f":"SUBTOTAL(9,J4:J248)","v":1}]
["م","القسط","السند","تاريخ السداد","تاريخ الاستلام","الواصل","المتبقي","بيع الكميه","شراء الكمية","الكميات","العقد","تاريخ ابتداء","قيمة القسط","اسم الكفيل","صفحات الدفتر","ملاحظلات","الرصيد"]
[1,500,15,null,null,{"$f":"B4","v":500},{"$f":"H$4-F4","v":8000},8500,4950,1,1,"2018-11-26",500,"مصطفى",null,null,{"$f":"H4-B4","v":8000}]
[2,null,null,null,null,{"$f":"F4+B5","v":500},{"$f":"H$4-F5","v":8000},null,null,null,null,null,null,null,null,null,{"$f":"Q4+H5-B5","v":8000}]
[3,null,null,null,null,{"$f":"F5+B6","v":500},{"$f":"H$4-F6","v":8000},null,null,null,null,null,null,null,null,null,8000]
[4,null,null,null,null,500,8000,null,null,null,null,null,null,null,null,null,8000]
[5,null,null,null,null,500,8000,null,null,null,null,null,null,null,null,null,8000]
[6,null,null,null,null,500,8000,null,null,null,null,null,null,null,null,null,8000]
[7,null,null,null,null,500,8000,null,null,null,null,null,null,null,null,null,8000]
[8,null,null,null,null,500,8000,null,null,null,null,null,null,null,null,null,8000]
[9,null,null,null,null,500,8000,null,null,null,null,null,null,null,null,null,8000]
[10,null,null,null,null,{"$f":"F12+B13","v":500},8000,null,null,null,null,null,null,null,null,null,8000]
[11,null,null,null,null,{"$f":"F13+B14","v":500},8000,null,null,null,null,null,null,null,null,null,8000]
[12,null,null,null,null,{"$f":"F14+B15","v":500},8000,null,null,null,null,null,null,null,null,null,8000]
[null,null,null,null,null,null,null,null,null,null,null,null,null,null,null,null,8000]
[1,0,null,null,null,null,null,null,null,null,null,null,null,null,null,null,8000]
[null,null,null,null,null,null,null,null,null,null,null,null,null,null,null,null,8000]
[null,null,null,null,null,null,null,null,null,null,null,null,null,null,null,null,8000]
[null,null,null,null,null,null,null,null,null,null,null,null,null,null,null,null,8000]
[null,null,null,null,null,null,null,null,null,null,null,null,null,null,null,null,8000]
[null,null,null,null,null,null,null,null,null,null,null,null,null,null,null,null,8000]
[null,null,null,null,null,null,null,null,null,null,null,null,null,null,null,null,8000]
[null,null,null,null,null,null,null,null,null,null,null,null,null,null,null,null,8000]
[null,null,null,null,null,null,null,null,null,null,null,null,null,null,null,null,8000]
[null,null,null,null,null,null,null,null,null,null,null,null,null,null,null,null,8000]
[null,null,null,null,null,null,null,null,null,null,null,null,null,null,null,null,8000]
[null,null,null,null,null,null,null,null,null,null,null,null,null,null,null,null,8000]
[null,null,null,null,null,null,null,null,null,null,null,null,null,null,null,null,8000]
[null,null,null,null,null,null,null,null,null,null,null,null,null,null,null,null,8000]
[null,null,null,null,null,null,null,null,null,null,null,null,null,null,null,null,8000]
[null,null,null,null,null,null,null,null,null,null,null,null,null,null,null,null,8000]
[null,null,null,null,null,null,null,null,null,null,null,null,null,null,null,null,8000]
[null,null,null,null,null,null,null,null,null,null,null,null,null,null,null,null,8000]
[null,null,null,null,null,null,null,null,null,null,null,null,null,null,null,null,8000]
[null,null,null,null,null,null,null,null,null,null,null,null,null,null,null,null,8000]
[null,null,null,null,null,null,null,null,null,null,null,null,null,null,null,null,8000]
[null,null,null,null,null,null,null,null,null,null,null,null,null,null,null,null,8000]
[null,null,null,null,null,null,null,null,null,null,null,null,null,null,null,null,8000]
[null,null,null,null,null,null,null,null,null,null,null,null,null,null,null,null,8000]
[null,null,null,null,null,null,null,null,null,null,null,null,null,null,null,null,8000]
[null,null,null,null,null,null,null,null,null,null,null,null,null,null,null,null,8000]
[null,null,null,null,null,null,null,null,null,null,null,null,null,null,null,null,8000]
[null,null,null,null,null,null,null,null,null,null,null,null,null,null,null,null,8000]
[null,null,null,null,null,null,null,null,null,null,null,null,null,null,null,null,8000]
[null,null,null,null,null,null,null,null,null,null,null,null,null,null,null,null,8000]
[null,null,null,null,null,null,null,null,null,null,null,null,null,null,null,null,8000]
[null,null,null,null,null,null,null,null,null,null,null,null,null,null,null,null,8000]
[null,null,null,null,null,null,null,null,null,null,null,null,null,null,null,null,8000]
[null,null,null,null,null,null,null,null,null,null,null,null,null,null,null,null,8000]
[null,null,null,null,null,null,null,null,null,null,null,null,null,null,null,null,8000]
[null,null,null,null,null,null,null,null,null,null,null,null,null,null,null,null,8000]
[null,null,null,null,null,null,null,null,null,null,null,null,null,null,null,null,8000]
[null,null,null,null,null,null,null,null,null,null,null,null,null,null,null,null,8000]
[null,0,null,null,null,null,null,null,null,null,null,null,null,null,null,null,8000]
[null,0,null,null,null,null,null,null,null,null,null,null,null,null,null,null,8000]
[null,0,null,null,null,null,null,null,null,null,null,null,null,null,null,null,8000]
[null,null,null,null,null,null,null,null,null,null,null,null,null,null,null,null,8000]
[null,null,null,null,null,null,null,null,null,null,null,null,null,null,null,null,8000]
[null,null,null,null,null,null,null,null,null,null,null,null,null,null,null,null,8000]
[null,0,null,null,null,null,null,null,null,null,null,null,null,null,null,null,8000]
[null,0,null,null,null,null,null,null,null,null,null,null,null,null,null,null,8000]
[null,0,null,null,null,null,null,null,null,null,null,null,null,null,null,null,8000]
[null,0,null,null,null,null,null,null,null,null,null,null,null,null,null,null,8000]
[null,null,null,null,null,null,null,null,null,null,null,null,null,null,null,null,8000]
[null,null,null,null,null,null,null,null,null,null,null,null,null,null,null,null,8000]
[null,null,null,null,null,null,null,null,null,null,null,null,null,null,null,null,8000]
[null,null,null,null,null,null,null,null,null,null,null,null,null,null,null,null,8000]
[null,null,null,null,null,null,null,null,null,null,null,null,null,null,null,null,{"$f":"Q68+H69-B69","v":8000}]
[null,null,null,null,null,null,null,null,null,null,null,null,null,null,null,null,8000]
[null,null,null,null,null,null,null,null,null,null,null,null,null,null,null,null,8000]
[null,null,null,null,null,null,null,null,null,null,null,null,null,null,null,null,8000]
[null,null,null,null,null,null,null,null,null,null,null,null,null,null,null,null,8000]
[null,null,null,null,null,null,null,null,null,null,null,null,null,null,null,null,8000]
[null,null,null,null,null,null,null,null,null,null,null,null,null,null,null,null,8000]
[null,null,null,null,null,null,null,null,null,null,null,null,null,null,null,null,8000]
[null,null,null,null,null,null,null,null,null,null,null,null,null,null,null,null,8000]
[null,null,null,null,null,null,null,null,null,null,null,null,null,null,null,null,8000]
[null,null,null,null,null,null,null,null,null,null,null,null,null,null,null,null,8000]
[null,null,null,null,null,null,null,null,null,null,null,null,null,null,null,null,8000]
[null,null,null,null,null,null,null,null,null,null,null,null,null,null,null,null,8000]
[null,null,null,null,null,null,null,null,null,null,null,null,null,null,null,null,8000]
[null,null,null,null,null,null,null,null,null,null,null,null,null,null,null,null,8000]
[null,null,null,null,null,null,null,null,null,null,null,null,null,null,null,null,8000]
[null,null,null,null,null,null,null,null,null,null,null,null,null,null,null,null,8000]
[null,null,null,null,null,null,null,null,null,null,null,null,null,null,null,null,8000]
[null,null,null,null,null,null,null,null,null,null,null,null,null,null,null,null,8000]
[null,null,null,null,null,null,null,null,null,null,null,null,null,null,null,null,8000]
[null,null,null,null,null,null,null,null,null,null,null,null,null,null,null,null,8000]
[null,null,null,null,null,null,null,null,null,null,null,null,null,null,null,null,8000]
[null,null,null,null,null,null,null,null,null,null,null,null,null,null,null,null,8000]
[null,null,null,null,null,null,null,null,null,null,null,null,null,null,null,null,8000]
[null,null,null,null,null,null,null,null,null,null,null,null,null,null,null,null,8000]
[null,null,null,null,null,null,null,null,null,null,null,null,null,null,null,null,8000]
[null,null,null,null,null,null,null,null,null,null,null,null,null,null,null,null,8000]
[null,null,null,null,null,null,null,null,null,null,null,null,null,null,null,null,8000]
[null,null,null,null,null,null,null,null,null,null,null,null,null,null,null,null,8000]
[null,null,null,null,null,null,null,null,null,null,null,null,null,null,null,null,8000]
[null,null,null,null,null,null,null,null,null,null,null,null,null,null,null,null,8000]
[null,null,null,null,null,null,null,null,null,null,null,null,null,null,null,null,8000]
[null,null,null,null,null,null,null,null,null,null,null,null,null,null,null,null,8000]
[null,null,null,null,null,null,null,null,null,null,null,null,null,null,null,null,8000]
[null,null,null,null,null,null,null,null,null,null,null,null,null,null,null,null,8000]
[null,null,null,null,null,null,null,null,null,null,null,null,null,null,null,null,8000]
[null,null,null,null,null,null,null,null,null,null,null,null,null,null,null,null,8000]
[null,null,null,null,null,null,null,null,null,null,null,null,null,null,null,null,8000]
[null,null,null,null,null,null,null,null,null,null,null,null,null,null,null,null,8000]
[null,null,null,null,null,null,null,null,null,null,null,null,null,null,null,null,8000]
[null,null,null,null,null,null,null,null,null,null,null,null,null,null,null,null,8000]
[null,null,null,null,null,null,null,null,null,null,null,null,null,null,null,null,8000]
[null,null,null,null,null,null,null,null,null,null,null,null,null,null,null,null,8000]
[null,null,null,null,null,null,null,null,null,null,null,null,null,null,null,null,8000]
[null,null,null,null,null,null,null,null,null,null,null,null,null,null,null,null,8000]
[null,null,null,null,null,null,null,null,null,null,null,null,null,null,null,null,8000]
[null,null,null,null,null,null,null,null,null,null,null,null,null,null,null,null,8000]
[null,null,null,null,null,null,null,null,null,null,null,null,null,null,null,null,8000]
[null,null,null,null,null,null,null,null,null,null,null,null,null,null,null,null,8000]
[null,null,null,null,null,null,null,null,null,null,null,null,null,null,null,null,8000]
[null,null,null,null,null,null,null,null,null,null,null,null,null,null,null,null,8000]
[null,null,null,null,null,null,null,null,null,null,null,null,null,null,null,null,8000]
[null,null,null,null,null,null,null,null,null,null,null,null,null,null,null,null,8000]
[null,null,null,null,null,null,null,null,null,null,null,null,null,null,null,null,8000]
[null,null,null,null,null,null,null,null,null,null,null,null,null,null,null,null,8000]
[null,null,null,null,null,null,null,null,null,null,null,null,null,null,null,null,8000]
[null,null,null,null,null,null,null,null,null,null,null,null,null,null,null,null,8000]
[null,null,null,null,null,null,null,null,null,null,null,null,null,null,null,null,8000]
[null,null,null,null,null,null,null,null,null,null,null,null,null,null,null,null,8000]
[null,null,null,null,null,null,null,null,null,null,null,null,null,null,null,null,8000]
[null,null,null,null,null,null,null,null,null,null,null,null,null,null,null,null,8000]
[null,null,null,null,null,null,null,null,null,null,null,null,null,null,null,null,8000]
[null,null,null,null,null,null,null,null,null,null,null,null,null,null,null,null,8000]
[null,null,null,null,null,null,null,null,null,null,null,null,null,null,null,null,8000]
[null,null,null,null,null,null,null,null,null,null,null,null,null,null,null,null,{"$f":"Q132+H133-B133","v":8000}]
[null,null,null,null,null,null,null,null,null,null,null,null,null,null,null,null,8000]
[null,null,null,null,null,null,null,null,null,null,null,null,null,null,null,null,8000]
[null,null,null,null,null,null,null,null,null,null,null,null,null,null,null,null,8000]
[null,null,null,null,null,null,null,null,null,null,null,null,null,null,null,null,8000]
[null,null,null,null,null,null,null,null,null,null,null,null,null,null,null,null,8000]
[null,null,null,null,null,null,null,null,null,null,null,null,null,null,null,null,8000]
[null,null,null,null,null,null,null,null,null,null,null,null,null,null,null,null,8000]
[null,null,null,null,null,null,null,null,null,null,null,null,null,null,null,null,8000]
[null,null,null,null,null,null,null,null,null,null,null,null,null,null,null,null,8000]
[null,null,null,null,null,null,null,null,null,null,null,null,null,null,null,null,8000]
[null,null,null,null,null,null,null,null,null,null,null,null,null,null,null,null,8000]
[null,null,null,null,null,null,null,null,null,null,null,null,null,null,null,null,8000]
[null,null,null,null,null,null,null,null,null,null,null,null,null,null,null,null,8000]
[null,null,null,null,null,null,null,null,null,null,null,null,null,null,null,null,8000]
[null,null,null,null,null,null,null,null,null,null,null,null,null,null,null,null,8000]
[null,null,null,null,null,null,null,null,null,null,null,null,null,null,null,null,8000]
[null,null,null,null,null,null,null,null,null,null,null,null,null,null,null,null,8000]
[null,null,null,null,null,null,null,null,null,null,null,null,null,null,null,null,8000]
[null,null,null,null,null,null,null,null,null,null,null,null,null,null,null,null,8000]
[null,null,null,null,null,null,null,null,null,null,null,null,null,null,null,null,8000]
[null,null,null,null,null,null,null,null,null,null,null,null,null,null,null,null,8000]
[null,null,null,null,null,null,null,null,null,null,null,null,null,null,null,null,8000]
[null,null,null,null,null,null,null,null,null,null,null,null,null,null,null,null,8000]
[null,null,null,null,null,null,null,null,null,null,null,null,null,null,null,null,8000]
[null,null,null,null,null,null,null,null,null,null,null,null,null,null,null,null,8000]
[null,null,null,null,null,null,null,null,null,null,null,null,null,null,null,null,8000]
[null,null,null,null,null,null,null,null,null,null,null,null,null,null,null,null,8000]
[null,null,null,null,null,null,null,null,null,null,null,null,null,null,null,null,8000]
[null,null,null,null,null,null,null,null,null,null,null,null,null,null,null,null,8000]
[null,null,null,null,null,null,null,null,null,null,null,null,null,null,null,null,8000]
[null,null,null,null,null,null,null,null,null,null,null,null,null,null,null,null,8000]
[null,null,null,null,null,null,null,null,null,null,null,null,null,null,null,null,8000]
[null,null,null,null,null,null,null,null,null,null,null,null,null,null,null,null,8000]
[null,null,null,null,null,null,null,null,null,null,null,null,null,null,null,null,8000]
[null,null,null,null,null,null,null,null,null,null,null,null,null,null,null,null,8000]
[null,null,null,null,null,null,null,null,null,null,null,null,null,null,null,null,8000]
[null,null,null,null,null,null,null,null,null,null,null,null,null,null,null,null,8000]
[null,null,null,null,null,null,null,null,null,null,null,null,null,null,null,null,8000]
[null,null,null,null,null,null,null,null,null,null,null,null,null,null,null,null,8000]
[null,null,null,null,null,null,null,null,null,null,null,null,null,null,null,null,8000]
[null,null,null,null,null,null,null,null,null,null,null,null,null,null,null,null,8000]
[null,null,null,null,null,null,null,null,null,null,null,null,null,null,null,null,8000]
[null,null,null,null,null,null,null,null,null,null,null,null,null,null,null,null,8000]
[null,null,null,null,null,null,null,null,null,null,null,null,null,null,null,null,8000]
[null,null,null,null,null,null,null,null,null,null,null,null,null,null,null,null,8000]
[null,null,null,null,null,null,null,null,null,null,null,null,null,null,null,null,8000]
[null,null,null,null,null,null,null,null,null,null,null,null,null,null,null,null,8000]
[null,null,null,null,null,null,null,null,null,null,null,null,null,null,null,null,8000]
[null,null,null,null,null,null,null,null,null,null,null,null,null,null,null,null,8000]
[null,null,null,null,null,null,null,null,null,null,null,null,null,null,null,null,8000]
[null,null,null,null,null,null,null,null,null,null,null,null,null,null,null,null,8000]
[null,null,null,null,null,null,null,null,null,null,null,null,null,null,null,null,8000]
[null,null,null,null,null,null,null,null,null,null,null,null,null,null,null,null,8000]
[null,null,null,null,null,null,null,null,null,null,null,null,null,null,null,null,8000]
[null,null,null,null,null,null,null,null,null,null,null,null,null,null,null,null,8000]
[null,null,null,null,null,null,null,null,null,null,null,null,null,null,null,null,8000]
[null,null,null,null,null,null,null,null,null,null,null,null,null,null,null,null,8000]
[null,null,null,null,null,null,null,null,null,null,null,null,null,null,null,null,8000]
[null,null,null,null,null,null,null,null,null,null,null,null,null,null,null,null,8000]
[null,null,null,null,null,null,null,null,null,null,null,null,null,null,null,null,8000]
[null,null,null,null,null,null,null,null,null,null,null,null,null,null,null,null,8000]
[null,null,null,null,null,null,null,null,null,null,null,null,null,null,null,null,8000]
[null,null,null,null,null,null,null,null,null,null,null,null,null,null,null,null,8000]
[null,null,null,null,null,null,null,null,null,null,null,null,null,null,null,null,{"$f":"Q196+H197-B197","v":8000}]
[null,null,null,null,null,null,null,null,null,null,null,null,null,null,null,null,8000]
[null,null,null,null,null,null,null,null,null,null,null,null,null,null,null,null,8000]
[null,null,null,null,null,null,null,null,null,null,null,null,null,null,null,null,8000]
[null,null,null,null,null,null,null,null,null,null,null,null,null,null,null,null,8000]
[null,null,null,null,null,null,null,null,null,null,null,null,null,null,null,null,8000]
[null,null,null,null,null,null,null,null,null,null,null,null,null,null,null,null,8000]
[null,null,null,null,null,null,null,null,null,null,null,null,null,null,null,null,8000]
[null,null,null,null,null,null,null,null,null,null,null,null,null,null,null,null,8000]
[null,null,null,null,null,null,null,null,null,null,null,null,null,null,null,null,8000]
[null,null,null,null,null,null,null,null,null,null,null,null,null,null,null,null,8000]
[null,null,null,null,null,null,null,null,null,null,null,null,null,null,null,null,8000]
[null,null,null,null,null,null,null,null,null,null,null,null,null,null,null,null,8000]
[null,null,null,null,null,null,null,null,null,null,null,null,null,null,null,null,8000]
[null,null,null,null,null,null,null,null,null,null,null,null,null,null,null,null,8000]
[null,null,null,null,null,null,null,null,null,null,null,null,null,null,null,null,8000]
[null,null,null,null,null,null,null,null,null,null,null,null,null,null,null,null,8000]
[null,null,null,null,null,null,null,null,null,null,null,null,null,null,null,null,8000]
[null,null,null,null,null,null,null,null,null,null,null,null,null,null,null,null,8000]
[null,null,null,null,null,null,null,null,null,null,null,null,null,null,null,null,8000]
[null,null,null,null,null,null,null,null,null,null,null,null,null,null,null,null,8000]
[null,null,null,null,null,null,null,null,null,null,null,null,null,null,null,null,8000]
[null,null,null,null,null,null,null,null,null,null,null,null,null,null,null,null,{"$f":"Q29+H219-B219","v":8000}]
[null,null,null,null,null,null,null,null,null,null,null,null,null,null,null,null,{"$f":"Q219+H220-B220","v":8000}]
[null,null,null,null,null,null,null,null,null,null,null,null,null,null,null,null,8000]
[null,null,null,null,null,null,null,null,null,null,null,null,null,null,null,null,8000]
[null,null,null,null,null,null,null,null,null,null,null,null,null,null,null,null,8000]
[null,null,null,null,null,null,null,null,null,null,null,null,null,null,null,null,8000]
[null,null,null,null,null,null,null,null,null,null,null,null,null,null,null,null,8000]
[null,null,null,null,null,null,null,null,null,null,null,null,null,null,null,null,8000]
[null,null,null,null,null,null,null,null,null,null,null,null,null,null,null,null,8000]
[null,null,null,null,null,null,null,null,null,null,null,null,null,null,null,null,8000]
[null,null,null,null,null,null,null,null,null,null,null,null,null,null,null,null,8000]
[null,null,null,null,null,null,null,null,null,null,null,null,null,null,null,null,8000]
[null,null,null,null,null,null,null,null,null,null,null,null,null,null,null,null,8000]
[null,null,null,null,null,null,null,null,null,null,null,null,null,null,null,null,8000]
[null,null,null,null,null,null,null,null,null,null,null,null,null,null,null,null,8000]
[null,null,null,null,null,null,null,null,null,null,null,null,null,null,null,null,8000]
[null,null,null,null,null,null,null,null,null,null,null,null,null,null,null,null,8000]
[null,null,null,null,null,null,null,null,null,null,null,null,null,null,null,null,8000]
[null,null,null,null,null,null,null,null,null,null,null,null,null,null,null,null,8000]
[null,null,null,null,null,null,null,null,null,null,null,null,null,null,null,null,8000]
[null,null,null,null,null,null,null,null,null,null,null,null,null,null,null,null,8000]
[null,null,null,null,null,null,null,null,null,null,null,null,null,null,null,null,8000]
[null,null,null,null,null,null,null,null,null,null,null,null,null,null,null,null,8000]
[null,null,null,null,null,null,null,null,null,null,null,null,null,null,null,null,8000]
[null,null,null,null,null,null,null,null,null,null,null,null,null,null,null,null,8000]
[null,null,null,null,null,null,null,null,null,null,null,null,null,null,null,null,8000]
[null,null,null,null,null,null,null,null,null,null,null,null,null,null,null,null,8000]
[null,null,null,null,null,null,null,null,null,null,null,null,null,null,null,null,8000]
[null,null,null,null,null,null,null,null,null,null,null,null,null,null,null,null,8000]
[null,null,null,null,null,null,null,null,null,null,null,null,null,null,null,null,8000]
["TOTAL",{"$f":"SUM(B4:B248)","v":500},null,null,null,null,{"$f":"SUM(G4:G248)","v":96000},{"$f":"SUM(H4:H248)","v":8500},{"$f":"SUM(I4:I248)","v":4950},{"$f":"SUM(J4:J248)","v":1},null,null,null,null,null,null,{"$f":"SUM(H249-B249)","v":8000}]

{"sheet":"salim","index":6,"n_rows":249,"n_cols":17,"rows_kept":249,"cut":false,"hidden":false,"merged":[[0,0,0,2],[0,3,0,4],[1,13,1,14]]}
["salim",null,null,null,null,null,null,null,null,null,null,null,null,null,null,null,"العملاء"]
[null,{"$f":"SUBTOTAL(9,B4:B248)","v":500},null,null,null,{"$f":"SUBTOTAL(9,B4:B248)","v":500},{"$f":"H2-F2","v":8000},{"$f":"SUBTOTAL(9,H4:H248)","v":8500},{"$f":"SUBTOTAL(9,I4:I248)","v":4950},{"$f":"SUBTOTAL(9,J4:J248)","v":1}]
["م","القسط","السند","تاريخ السداد","تاريخ الاستلام","الواصل","المتبقي","بيع الكميه","شراء الكمية","الكميات","العقد","تاريخ ابتداء","قيمة القسط","اسم الكفيل","صفحات الدفتر","ملاحظلات","الرصيد"]
[1,500,15,null,null,{"$f":"B4","v":500},{"$f":"H$4-F4","v":8000},8500,4950,1,1,"2018-11-26",500,"مصطفى",null,null,{"$f":"H4-B4","v":8000}]
[2,null,null,null,null,{"$f":"F4+B5","v":500},{"$f":"H$4-F5","v":8000},null,null,null,null,null,null,null,null,null,{"$f":"Q4+H5-B5","v":8000}]
[3,null,null,null,null,{"$f":"F5+B6","v":500},{"$f":"H$4-F6","v":8000},null,null,null,null,null,null,null,null,null,8000]
[4,null,null,null,null,500,8000,null,null,null,null,null,null,null,null,null,8000]
[5,null,null,null,null,500,8000,null,null,null,null,null,null,null,null,null,8000]
[6,null,null,null,null,500,8000,null,null,null,null,null,null,null,null,null,8000]
[7,null,null,null,null,500,8000,null,null,null,null,null,null,null,null,null,8000]
[8,null,null,null,null,500,8000,null,null,null,null,null,null,null,null,null,8000]
[9,null,null,null,null,500,8000,null,null,null,null,null,null,null,null,null,8000]
[10,null,null,null,null,{"$f":"F12+B13","v":500},8000,null,null,null,null,null,null,null,null,null,8000]
[11,null,null,null,null,{"$f":"F13+B14","v":500},8000,null,null,null,null,null,null,null,null,null,8000]
[12,null,null,null,null,{"$f":"F14+B15","v":500},8000,null,null,null,null,null,null,null,null,null,8000]
[null,null,null,null,null,null,null,null,null,null,null,null,null,null,null,null,8000]
[1,0,null,null,null,null,null,null,null,null,null,null,null,null,null,null,8000]
[null,null,null,null,null,null,null,null,null,null,null,null,null,null,null,null,8000]
[null,null,null,null,null,null,null,null,null,null,null,null,null,null,null,null,8000]
[null,null,null,null,null,null,null,null,null,null,null,null,null,null,null,null,8000]
[null,null,null,null,null,null,null,null,null,null,null,null,null,null,null,null,8000]
[null,null,null,null,null,null,null,null,null,null,null,null,null,null,null,null,8000]
[null,null,null,null,null,null,null,null,null,null,null,null,null,null,null,null,8000]
[null,null,null,null,null,null,null,null,null,null,null,null,null,null,null,null,8000]
[null,null,null,null,null,null,null,null,null,null,null,null,null,null,null,null,8000]
[null,null,null,null,null,null,null,null,null,null,null,null,null,null,null,null,8000]
[null,null,null,null,null,null,null,null,null,null,null,null,null,null,null,null,8000]
[null,null,null,null,null,null,null,null,null,null,null,null,null,null,null,null,8000]
[null,null,null,null,null,null,null,null,null,null,null,null,null,null,null,null,8000]
[null,null,null,null,null,null,null,null,null,null,null,null,null,null,null,null,8000]
[null,null,null,null,null,null,null,null,null,null,null,null,null,null,null,null,8000]
[null,null,null,null,null,null,null,null,null,null,null,null,null,null,null,null,8000]
[null,null,null,null,null,null,null,null,null,null,null,null,null,null,null,null,8000]
[null,null,null,null,null,null,null,null,null,null,null,null,null,null,null,null,8000]
[null,null,null,null,null,null,null,null,null,null,null,null,null,null,null,null,8000]
[null,null,null,null,null,null,null,null,null,null,null,null,null,null,null,null,8000]
[null,null,null,null,null,null,null,null,null,null,null,null,null,null,null,null,8000]
[null,null,null,null,null,null,null,null,null,null,null,null,null,null,null,null,8000]
[null,null,null,null,null,null,null,null,null,null,null,null,null,null,null,null,8000]
[null,null,null,null,null,null,null,null,null,null,null,null,null,null,null,null,8000]
[null,null,null,null,null,null,null,null,null,null,null,null,null,null,null,null,8000]
[null,null,null,null,null,null,null,null,null,null,null,null,null,null,null,null,8000]
[null,null,null,null,null,null,null,null,null,null,null,null,null,null,null,null,8000]
[null,null,null,null,null,null,null,null,null,null,null,null,null,null,null,null,8000]
[null,null,null,null,null,null,null,null,null,null,null,null,null,null,null,null,8000]
[null,null,null,null,null,null,null,null,null,null,null,null,null,null,null,null,8000]
[null,null,null,null,null,null,null,null,null,null,null,null,null,null,null,null,8000]
[null,null,null,null,null,null,null,null,null,null,null,null,null,null,null,null,8000]
[null,null,null,null,null,null,null,null,null,null,null,null,null,null,null,null,8000]
[null,null,null,null,null,null,null,null,null,null,null,null,null,null,null,null,8000]
[null,null,null,null,null,null,null,null,null,null,null,null,null,null,null,null,8000]
[null,null,null,null,null,null,null,null,null,null,null,null,null,null,null,null,8000]
[null,null,null,null,null,null,null,null,null,null,null,null,null,null,null,null,8000]
[null,null,null,null,null,null,null,null,null,null,null,null,null,null,null,null,8000]
[null,0,null,null,null,null,null,null,null,null,null,null,null,null,null,null,8000]
[null,0,null,null,null,null,null,null,null,null,null,null,null,null,null,null,8000]
[null,0,null,null,null,null,null,null,null,null,null,null,null,null,null,null,8000]
[null,null,null,null,null,null,null,null,null,null,null,null,null,null,null,null,8000]
[null,null,null,null,null,null,null,null,null,null,null,null,null,null,null,null,8000]
[null,null,null,null,null,null,null,null,null,null,null,null,null,null,null,null,8000]
[null,0,null,null,null,null,null,null,null,null,null,null,null,null,null,null,8000]
[null,0,null,null,null,null,null,null,null,null,null,null,null,null,null,null,8000]
[null,0,null,null,null,null,null,null,null,null,null,null,null,null,null,null,8000]
[null,0,null,null,null,null,null,null,null,null,null,null,null,null,null,null,8000]
[null,null,null,null,null,null,null,null,null,null,null,null,null,null,null,null,8000]
[null,null,null,null,null,null,null,null,null,null,null,null,null,null,null,null,8000]
[null,null,null,null,null,null,null,null,null,null,null,null,null,null,null,null,8000]
[null,null,null,null,null,null,null,null,null,null,null,null,null,null,null,null,8000]
[null,null,null,null,null,null,null,null,null,null,null,null,null,null,null,null,{"$f":"Q68+H69-B69","v":8000}]
[null,null,null,null,null,null,null,null,null,null,null,null,null,null,null,null,8000]
[null,null,null,null,null,null,null,null,null,null,null,null,null,null,null,null,8000]
[null,null,null,null,null,null,null,null,null,null,null,null,null,null,null,null,8000]
[null,null,null,null,null,null,null,null,null,null,null,null,null,null,null,null,8000]
[null,null,null,null,null,null,null,null,null,null,null,null,null,null,null,null,8000]
[null,null,null,null,null,null,null,null,null,null,null,null,null,null,null,null,8000]
[null,null,null,null,null,null,null,null,null,null,null,null,null,null,null,null,8000]
[null,null,null,null,null,null,null,null,null,null,null,null,null,null,null,null,8000]
[null,null,null,null,null,null,null,null,null,null,null,null,null,null,null,null,8000]
[null,null,null,null,null,null,null,null,null,null,null,null,null,null,null,null,8000]
[null,null,null,null,null,null,null,null,null,null,null,null,null,null,null,null,8000]
[null,null,null,null,null,null,null,null,null,null,null,null,null,null,null,null,8000]
[null,null,null,null,null,null,null,null,null,null,null,null,null,null,null,null,8000]
[null,null,null,null,null,null,null,null,null,null,null,null,null,null,null,null,8000]
[null,null,null,null,null,null,null,null,null,null,null,null,null,null,null,null,8000]
[null,null,null,null,null,null,null,null,null,null,null,null,null,null,null,null,8000]
[null,null,null,null,null,null,null,null,null,null,null,null,null,null,null,null,8000]
[null,null,null,null,null,null,null,null,null,null,null,null,null,null,null,null,8000]
[null,null,null,null,null,null,null,null,null,null,null,null,null,null,null,null,8000]
[null,null,null,null,null,null,null,null,null,null,null,null,null,null,null,null,8000]
[null,null,null,null,null,null,null,null,null,null,null,null,null,null,null,null,8000]
[null,null,null,null,null,null,null,null,null,null,null,null,null,null,null,null,8000]
[null,null,null,null,null,null,null,null,null,null,null,null,null,null,null,null,8000]
[null,null,null,null,null,null,null,null,null,null,null,null,null,null,null,null,8000]
[null,null,null,null,null,null,null,null,null,null,null,null,null,null,null,null,8000]
[null,null,null,null,null,null,null,null,null,null,null,null,null,null,null,null,8000]
[null,null,null,null,null,null,null,null,null,null,null,null,null,null,null,null,8000]
[null,null,null,null,null,null,null,null,null,null,null,null,null,null,null,null,8000]
[null,null,null,null,null,null,null,null,null,null,null,null,null,null,null,null,8000]
[null,null,null,null,null,null,null,null,null,null,null,null,null,null,null,null,8000]
[null,null,null,null,null,null,null,null,null,null,null,null,null,null,null,null,8000]
[null,null,null,null,null,null,null,null,null,null,null,null,null,null,null,null,8000]
[null,null,null,null,null,null,null,null,null,null,null,null,null,null,null,null,8000]
[null,null,null,null,null,null,null,null,null,null,null,null,null,null,null,null,8000]
[null,null,null,null,null,null,null,null,null,null,null,null,null,null,null,null,8000]
[null,null,null,null,null,null,null,null,null,null,null,null,null,null,null,null,8000]
[null,null,null,null,null,null,null,null,null,null,null,null,null,null,null,null,8000]
[null,null,null,null,null,null,null,null,null,null,null,null,null,null,null,null,8000]
[null,null,null,null,null,null,null,null,null,null,null,null,null,null,null,null,8000]
[null,null,null,null,null,null,null,null,null,null,null,null,null,null,null,null,8000]
[null,null,null,null,null,null,null,null,null,null,null,null,null,null,null,null,8000]
[null,null,null,null,null,null,null,null,null,null,null,null,null,null,null,null,8000]
[null,null,null,null,null,null,null,null,null,null,null,null,null,null,null,null,8000]
[null,null,null,null,null,null,null,null,null,null,null,null,null,null,null,null,8000]
[null,null,null,null,null,null,null,null,null,null,null,null,null,null,null,null,8000]
[null,null,null,null,null,null,null,null,null,null,null,null,null,null,null,null,8000]
[null,null,null,null,null,null,null,null,null,null,null,null,null,null,null,null,8000]
[null,null,null,null,null,null,null,null,null,null,null,null,null,null,null,null,8000]
[null,null,null,null,null,null,null,null,null,null,null,null,null,null,null,null,8000]
[null,null,null,null,null,null,null,null,null,null,null,null,null,null,null,null,8000]
[null,null,null,null,null,null,null,null,null,null,null,null,null,null,null,null,8000]
[null,null,null,null,null,null,null,null,null,null,null,null,null,null,null,null,8000]
[null,null,null,null,null,null,null,null,null,null,null,null,null,null,null,null,8000]
[null,null,null,null,null,null,null,null,null,null,null,null,null,null,null,null,8000]
[null,null,null,null,null,null,null,null,null,null,null,null,null,null,null,null,8000]
[null,null,null,null,null,null,null,null,null,null,null,null,null,null,null,null,8000]
[null,null,null,null,null,null,null,null,null,null,null,null,null,null,null,null,8000]
[null,null,null,null,null,null,null,null,null,null,null,null,null,null,null,null,8000]
[null,null,null,null,null,null,null,null,null,null,null,null,null,null,null,null,8000]
[null,null,null,null,null,null,null,null,null,null,null,null,null,null,null,null,8000]
[null,null,null,null,null,null,null,null,null,null,null,null,null,null,null,null,8000]
[null,null,null,null,null,null,null,null,null,null,null,null,null,null,null,null,8000]
[null,null,null,null,null,null,null,null,null,null,null,null,null,null,null,null,8000]
[null,null,null,null,null,null,null,null,null,null,null,null,null,null,null,null,{"$f":"Q132+H133-B133","v":8000}]
[null,null,null,null,null,null,null,null,null,null,null,null,null,null,null,null,8000]
[null,null,null,null,null,null,null,null,null,null,null,null,null,null,null,null,8000]
[null,null,null,null,null,null,null,null,null,null,null,null,null,null,null,null,8000]
[null,null,null,null,null,null,null,null,null,null,null,null,null,null,null,null,8000]
[null,null,null,null,null,null,null,null,null,null,null,null,null,null,null,null,8000]
[null,null,null,null,null,null,null,null,null,null,null,null,null,null,null,null,8000]
[null,null,null,null,null,null,null,null,null,null,null,null,null,null,null,null,8000]
[null,null,null,null,null,null,null,null,null,null,null,null,null,null,null,null,8000]
[null,null,null,null,null,null,null,null,null,null,null,null,null,null,null,null,8000]
[null,null,null,null,null,null,null,null,null,null,null,null,null,null,null,null,8000]
[null,null,null,null,null,null,null,null,null,null,null,null,null,null,null,null,8000]
[null,null,null,null,null,null,null,null,null,null,null,null,null,null,null,null,8000]
[null,null,null,null,null,null,null,null,null,null,null,null,null,null,null,null,8000]
[null,null,null,null,null,null,null,null,null,null,null,null,null,null,null,null,8000]
[null,null,null,null,null,null,null,null,null,null,null,null,null,null,null,null,8000]
[null,null,null,null,null,null,null,null,null,null,null,null,null,null,null,null,8000]
[null,null,null,null,null,null,null,null,null,null,null,null,null,null,null,null,8000]
[null,null,null,null,null,null,null,null,null,null,null,null,null,null,null,null,8000]
[null,null,null,null,null,null,null,null,null,null,null,null,null,null,null,null,8000]
[null,null,null,null,null,null,null,null,null,null,null,null,null,null,null,null,8000]
[null,null,null,null,null,null,null,null,null,null,null,null,null,null,null,null,8000]
[null,null,null,null,null,null,null,null,null,null,null,null,null,null,null,null,8000]
[null,null,null,null,null,null,null,null,null,null,null,null,null,null,null,null,8000]
[null,null,null,null,null,null,null,null,null,null,null,null,null,null,null,null,8000]
[null,null,null,null,null,null,null,null,null,null,null,null,null,null,null,null,8000]
[null,null,null,null,null,null,null,null,null,null,null,null,null,null,null,null,8000]
[null,null,null,null,null,null,null,null,null,null,null,null,null,null,null,null,8000]
[null,null,null,null,null,null,null,null,null,null,null,null,null,null,null,null,8000]
[null,null,null,null,null,null,null,null,null,null,null,null,null,null,null,null,8000]
[null,null,null,null,null,null,null,null,null,null,null,null,null,null,null,null,8000]
[null,null,null,null,null,null,null,null,null,null,null,null,null,null,null,null,8000]
[null,null,null,null,null,null,null,null,null,null,null,null,null,null,null,null,8000]
[null,null,null,null,null,null,null,null,null,null,null,null,null,null,null,null,8000]
[null,null,null,null,null,null,null,null,null,null,null,null,null,null,null,null,8000]
[null,null,null,null,null,null,null,null,null,null,null,null,null,null,null,null,8000]
[null,null,null,null,null,null,null,null,null,null,null,null,null,null,null,null,8000]
[null,null,null,null,null,null,null,null,null,null,null,null,null,null,null,null,8000]
[null,null,null,null,null,null,null,null,null,null,null,null,null,null,null,null,8000]
[null,null,null,null,null,null,null,null,null,null,null,null,null,null,null,null,8000]
[null,null,null,null,null,null,null,null,null,null,null,null,null,null,null,null,8000]
[null,null,null,null,null,null,null,null,null,null,null,null,null,null,null,null,8000]
[null,null,null,null,null,null,null,null,null,null,null,null,null,null,null,null,8000]
[null,null,null,null,null,null,null,null,null,null,null,null,null,null,null,null,8000]
[null,null,null,null,null,null,null,null,null,null,null,null,null,null,null,null,8000]
[null,null,null,null,null,null,null,null,null,null,null,null,null,null,null,null,8000]
[null,null,null,null,null,null,null,null,null,null,null,null,null,null,null,null,8000]
[null,null,null,null,null,null,null,null,null,null,null,null,null,null,null,null,8000]
[null,null,null,null,null,null,null,null,null,null,null,null,null,null,null,null,8000]
[null,null,null,null,null,null,null,null,null,null,null,null,null,null,null,null,8000]
[null,null,null,null,null,null,null,null,null,null,null,null,null,null,null,null,8000]
[null,null,null,null,null,null,null,null,null,null,null,null,null,null,null,null,8000]
[null,null,null,null,null,null,null,null,null,null,null,null,null,null,null,null,8000]
[null,null,null,null,null,null,null,null,null,null,null,null,null,null,null,null,8000]
[null,null,null,null,null,null,null,null,null,null,null,null,null,null,null,null,8000]
[null,null,null,null,null,null,null,null,null,null,null,null,null,null,null,null,8000]
[null,null,null,null,null,null,null,null,null,null,null,null,null,null,null,null,8000]
[null,null,null,null,null,null,null,null,null,null,null,null,null,null,null,null,8000]
[null,null,null,null,null,null,null,null,null,null,null,null,null,null,null,null,8000]
[null,null,null,null,null,null,null,null,null,null,null,null,null,null,null,null,8000]
[null,null,null,null,null,null,null,null,null,null,null,null,null,null,null,null,8000]
[null,null,null,null,null,null,null,null,null,null,null,null,null,null,null,null,8000]
[null,null,null,null,null,null,null,null,null,null,null,null,null,null,null,null,8000]
[null,null,null,null,null,null,null,null,null,null,null,null,null,null,null,null,8000]
[null,null,null,null,null,null,null,null,null,null,null,null,null,null,null,null,{"$f":"Q196+H197-B197","v":8000}]
[null,null,null,null,null,null,null,null,null,null,null,null,null,null,null,null,8000]
[null,null,null,null,null,null,null,null,null,null,null,null,null,null,null,null,8000]
[null,null,null,null,null,null,null,null,null,null,null,null,null,null,null,null,8000]
[null,null,null,null,null,null,null,null,null,null,null,null,null,null,null,null,8000]
[null,null,null,null,null,null,null,null,null,null,null,null,null,null,null,null,8000]
[null,null,null,null,null,null,null,null,null,null,null,null,null,null,null,null,8000]
[null,null,null,null,null,null,null,null,null,null,null,null,null,null,null,null,8000]
[null,null,null,null,null,null,null,null,null,null,null,null,null,null,null,null,8000]
[null,null,null,null,null,null,null,null,null,null,null,null,null,null,null,null,8000]
[null,null,null,null,null,null,null,null,null,null,null,null,null,null,null,null,8000]
[null,null,null,null,null,null,null,null,null,null,null,null,null,null,null,null,8000]
[null,null,null,null,null,null,null,null,null,null,null,null,null,null,null,null,8000]
[null,null,null,null,null,null,null,null,null,null,null,null,null,null,null,null,8000]
[null,null,null,null,null,null,null,null,null,null,null,null,null,null,null,null,8000]
[null,null,null,null,null,null,null,null,null,null,null,null,null,null,null,null,8000]
[null,null,null,null,null,null,null,null,null,null,null,null,null,null,null,null,8000]
[null,null,null,null,null,null,null,null,null,null,null,null,null,null,null,null,8000]
[null,null,null,null,null,null,null,null,null,null,null,null,null,null,null,null,8000]
[null,null,null,null,null,null,null,null,null,null,null,null,null,null,null,null,8000]
[null,null,null,null,null,null,null,null,null,null,null,null,null,null,null,null,8000]
[null,null,null,null,null,null,null,null,null,null,null,null,null,null,null,null,8000]
[null,null,null,null,null,null,null,null,null,null,null,null,null,null,null,null,{"$f":"Q29+H219-B219","v":8000}]
[null,null,null,null,null,null,null,null,null,null,null,null,null,null,null,null,{"$f":"Q219+H220-B220","v":8000}]
[null,null,null,null,null,null,null,null,null,null,null,null,null,null,null,null,8000]
[null,null,null,null,null,null,null,null,null,null,null,null,null,null,null,null,8000]
[null,null,null,null,null,null,null,null,null,null,null,null,null,null,null,null,8000]
[null,null,null,null,null,null,null,null,null,null,null,null,null,null,null,null,8000]
[null,null,null,null,null,null,null,null,null,null,null,null,null,null,null,null,8000]
[null,null,null,null,null,null,null,null,null,null,null,null,null,null,null,null,8000]
[null,null,null,null,null,null,null,null,null,null,null,null,null,null,null,null,8000]
[null,null,null,null,null,null,null,null,null,null,null,null,null,null,null,null,8000]
[null,null,null,null,null,null,null,null,null,null,null,null,null,null,null,null,8000]
[null,null,null,null,null,null,null,null,null,null,null,null,null,null,null,null,8000]
[null,null,null,null,null,null,null,null,null,null,null,null,null,null,null,null,8000]
[null,null,null,null,null,null,null,null,null,null,null,null,null,null,null,null,8000]
[null,null,null,null,null,null,null,null,null,null,null,null,null,null,null,null,8000]
[null,null,null,null,null,null,null,null,null,null,null,null,null,null,null,null,8000]
[null,null,null,null,null,null,null,null,null,null,null,null,null,null,null,null,8000]
[null,null,null,null,null,null,null,null,null,null,null,null,null,null,null,null,8000]
[null,null,null,null,null,null,null,null,null,null,null,null,null,null,null,null,8000]
[null,null,null,null,null,null,null,null,null,null,null,null,null,null,null,null,8000]
[null,null,null,null,null,null,null,null,null,null,null,null,null,null,null,null,8000]
[null,null,null,null,null,null,null,null,null,null,null,null,null,null,null,null,8000]
[null,null,null,null,null,null,null,null,null,null,null,null,null,null,null,null,8000]
[null,null,null,null,null,null,null,null,null,null,null,null,null,null,null,null,8000]
[null,null,null,null,null,null,null,null,null,null,null,null,null,null,null,null,8000]
[null,null,null,null,null,null,null,null,null,null,null,null,null,null,null,null,8000]
[null,null,null,null,null,null,null,null,null,null,null,null,null,null,null,null,8000]
[null,null,null,null,null,null,null,null,null,null,null,null,null,null,null,null,8000]
[null,null,null,null,null,null,null,null,null,null,null,null,null,null,null,null,8000]
[null,null,null,null,null,null,null,null,null,null,null,null,null,null,null,null,8000]
["TOTAL",{"$f":"SUM(B4:B248)","v":500},null,null,null,null,{"$f":"SUM(G4:G248)","v":96000},{"$f":"SUM(H4:H248)","v":8500},{"$f":"SUM(I4:I248)","v":4950},{"$f":"SUM(J4:J248)","v":1},null,null,null,null,null,null,{"$f":"SUM(H249-B249)","v":8000}]

{"sheet":"murad","index":7,"n_rows":249,"n_cols":17,"rows_kept":249,"cut":false,"hidden":false,"merged":[[0,0,0,2],[0,3,0,4],[1,13,1,14]]}
["murad",null,null,null,null,null,null,null,null,null,null,null,null,null,null,null,"العملاء"]
[null,{"$f":"SUBTOTAL(9,B4:B248)","v":500},null,null,null,{"$f":"SUBTOTAL(9,B4:B248)","v":500},{"$f":"H2-F2","v":8000},{"$f":"SUBTOTAL(9,H4:H248)","v":8500},{"$f":"SUBTOTAL(9,I4:I248)","v":4950},{"$f":"SUBTOTAL(9,J4:J248)","v":1}]
["م","القسط","السند","تاريخ السداد","تاريخ الاستلام","الواصل","المتبقي","بيع الكميه","شراء الكمية","الكميات","العقد","تاريخ ابتداء","قيمة القسط","اسم الكفيل","صفحات الدفتر","ملاحظلات","الرصيد"]
[1,500,15,null,null,{"$f":"B4","v":500},{"$f":"H$4-F4","v":8000},8500,4950,1,1,"2018-11-26",500,"مصطفى",null,null,{"$f":"H4-B4","v":8000}]
[2,null,null,null,null,{"$f":"F4+B5","v":500},{"$f":"H$4-F5","v":8000},null,null,null,null,null,null,null,null,null,{"$f":"Q4+H5-B5","v":8000}]
[3,null,null,null,null,{"$f":"F5+B6","v":500},{"$f":"H$4-F6","v":8000},null,null,null,null,null,null,null,null,null,8000]
[4,null,null,null,null,500,8000,null,null,null,null,null,null,null,null,null,8000]
[5,null,null,null,null,500,8000,null,null,null,null,null,null,null,null,null,8000]
[6,null,null,null,null,500,8000,null,null,null,null,null,null,null,null,null,8000]
[7,null,null,null,null,500,8000,null,null,null,null,null,null,null,null,null,8000]
[8,null,null,null,null,500,8000,null,null,null,null,null,null,null,null,null,8000]
[9,null,null,null,null,500,8000,null,null,null,null,null,null,null,null,null,8000]
[10,null,null,null,null,{"$f":"F12+B13","v":500},8000,null,null,null,null,null,null,null,null,null,8000]
[11,null,null,null,null,{"$f":"F13+B14","v":500},8000,null,null,null,null,null,null,null,null,null,8000]
[12,null,null,null,null,{"$f":"F14+B15","v":500},8000,null,null,null,null,null,null,null,null,null,8000]
[null,null,null,null,null,null,null,null,null,null,null,null,null,null,null,null,8000]
[1,0,null,null,null,null,null,null,null,null,null,null,null,null,null,null,8000]
[null,null,null,null,null,null,null,null,null,null,null,null,null,null,null,null,8000]
[null,null,null,null,null,null,null,null,null,null,null,null,null,null,null,null,8000]
[null,null,null,null,null,null,null,null,null,null,null,null,null,null,null,null,8000]
[null,null,null,null,null,null,null,null,null,null,null,null,null,null,null,null,8000]
[null,null,null,null,null,null,null,null,null,null,null,null,null,null,null,null,8000]
[null,null,null,null,null,null,null,null,null,null,null,null,null,null,null,null,8000]
[null,null,null,null,null,null,null,null,null,null,null,null,null,null,null,null,8000]
[null,null,null,null,null,null,null,null,null,null,null,null,null,null,null,null,8000]
[null,null,null,null,null,null,null,null,null,null,null,null,null,null,null,null,8000]
[null,null,null,null,null,null,null,null,null,null,null,null,null,null,null,null,8000]
[null,null,null,null,null,null,null,null,null,null,null,null,null,null,null,null,8000]
[null,null,null,null,null,null,null,null,null,null,null,null,null,null,null,null,8000]
[null,null,null,null,null,null,null,null,null,null,null,null,null,null,null,null,8000]
[null,null,null,null,null,null,null,null,null,null,null,null,null,null,null,null,8000]
[null,null,null,null,null,null,null,null,null,null,null,null,null,null,null,null,8000]
[null,null,null,null,null,null,null,null,null,null,null,null,null,null,null,null,8000]
[null,null,null,null,null,null,null,null,null,null,null,null,null,null,null,null,8000]
[null,null,null,null,null,null,null,null,null,null,null,null,null,null,null,null,8000]
[null,null,null,null,null,null,null,null,null,null,null,null,null,null,null,null,8000]
[null,null,null,null,null,null,null,null,null,null,null,null,null,null,null,null,8000]
[null,null,null,null,null,null,null,null,null,null,null,null,null,null,null,null,8000]
[null,null,null,null,null,null,null,null,null,null,null,null,null,null,null,null,8000]
[null,null,null,null,null,null,null,null,null,null,null,null,null,null,null,null,8000]
[null,null,null,null,null,null,null,null,null,null,null,null,null,null,null,null,8000]
[null,null,null,null,null,null,null,null,null,null,null,null,null,null,null,null,8000]
[null,null,null,null,null,null,null,null,null,null,null,null,null,null,null,null,8000]
[null,null,null,null,null,null,null,null,null,null,null,null,null,null,null,null,8000]
[null,null,null,null,null,null,null,null,null,null,null,null,null,null,null,null,8000]
[null,null,null,null,null,null,null,null,null,null,null,null,null,null,null,null,8000]
[null,null,null,null,null,null,null,null,null,null,null,null,null,null,null,null,8000]
[null,null,null,null,null,null,null,null,null,null,null,null,null,null,null,null,8000]
[null,null,null,null,null,null,null,null,null,null,null,null,null,null,null,null,8000]
[null,null,null,null,null,null,null,null,null,null,null,null,null,null,null,null,8000]
[null,null,null,null,null,null,null,null,null,null,null,null,null,null,null,null,8000]
[null,null,null,null,null,null,null,null,null,null,null,null,null,null,null,null,8000]
[null,null,null,null,null,null,null,null,null,null,null,null,null,null,null,null,8000]
[null,null,null,null,null,null,null,null,null,null,null,null,null,null,null,null,8000]
[null,0,null,null,null,null,null,null,null,null,null,null,null,null,null,null,8000]
[null,0,null,null,null,null,null,null,null,null,null,null,null,null,null,null,8000]
[null,0,null,null,null,null,null,null,null,null,null,null,null,null,null,null,8000]
[null,null,null,null,null,null,null,null,null,null,null,null,null,null,null,null,8000]
[null,null,null,null,null,null,null,null,null,null,null,null,null,null,null,null,8000]
[null,null,null,null,null,null,null,null,null,null,null,null,null,null,null,null,8000]
[null,0,null,null,null,null,null,null,null,null,null,null,null,null,null,null,8000]
[null,0,null,null,null,null,null,null,null,null,null,null,null,null,null,null,8000]
[null,0,null,null,null,null,null,null,null,null,null,null,null,null,null,null,8000]
[null,0,null,null,null,null,null,null,null,null,null,null,null,null,null,null,8000]
[null,null,null,null,null,null,null,null,null,null,null,null,null,null,null,null,8000]
[null,null,null,null,null,null,null,null,null,null,null,null,null,null,null,null,8000]
[null,null,null,null,null,null,null,null,null,null,null,null,null,null,null,null,8000]
[null,null,null,null,null,null,null,null,null,null,null,null,null,null,null,null,8000]
[null,null,null,null,null,null,null,null,null,null,null,null,null,null,null,null,{"$f":"Q68+H69-B69","v":8000}]
[null,null,null,null,null,null,null,null,null,null,null,null,null,null,null,null,8000]
[null,null,null,null,null,null,null,null,null,null,null,null,null,null,null,null,8000]
[null,null,null,null,null,null,null,null,null,null,null,null,null,null,null,null,8000]
[null,null,null,null,null,null,null,null,null,null,null,null,null,null,null,null,8000]
[null,null,null,null,null,null,null,null,null,null,null,null,null,null,null,null,8000]
[null,null,null,null,null,null,null,null,null,null,null,null,null,null,null,null,8000]
[null,null,null,null,null,null,null,null,null,null,null,null,null,null,null,null,8000]
[null,null,null,null,null,null,null,null,null,null,null,null,null,null,null,null,8000]
[null,null,null,null,null,null,null,null,null,null,null,null,null,null,null,null,8000]
[null,null,null,null,null,null,null,null,null,null,null,null,null,null,null,null,8000]
[null,null,null,null,null,null,null,null,null,null,null,null,null,null,null,null,8000]
[null,null,null,null,null,null,null,null,null,null,null,null,null,null,null,null,8000]
[null,null,null,null,null,null,null,null,null,null,null,null,null,null,null,null,8000]
[null,null,null,null,null,null,null,null,null,null,null,null,null,null,null,null,8000]
[null,null,null,null,null,null,null,null,null,null,null,null,null,null,null,null,8000]
[null,null,null,null,null,null,null,null,null,null,null,null,null,null,null,null,8000]
[null,null,null,null,null,null,null,null,null,null,null,null,null,null,null,null,8000]
[null,null,null,null,null,null,null,null,null,null,null,null,null,null,null,null,8000]
[null,null,null,null,null,null,null,null,null,null,null,null,null,null,null,null,8000]
[null,null,null,null,null,null,null,null,null,null,null,null,null,null,null,null,8000]
[null,null,null,null,null,null,null,null,null,null,null,null,null,null,null,null,8000]
[null,null,null,null,null,null,null,null,null,null,null,null,null,null,null,null,8000]
[null,null,null,null,null,null,null,null,null,null,null,null,null,null,null,null,8000]
[null,null,null,null,null,null,null,null,null,null,null,null,null,null,null,null,8000]
[null,null,null,null,null,null,null,null,null,null,null,null,null,null,null,null,8000]
[null,null,null,null,null,null,null,null,null,null,null,null,null,null,null,null,8000]
[null,null,null,null,null,null,null,null,null,null,null,null,null,null,null,null,8000]
[null,null,null,null,null,null,null,null,null,null,null,null,null,null,null,null,8000]
[null,null,null,null,null,null,null,null,null,null,null,null,null,null,null,null,8000]
[null,null,null,null,null,null,null,null,null,null,null,null,null,null,null,null,8000]
[null,null,null,null,null,null,null,null,null,null,null,null,null,null,null,null,8000]
[null,null,null,null,null,null,null,null,null,null,null,null,null,null,null,null,8000]
[null,null,null,null,null,null,null,null,null,null,null,null,null,null,null,null,8000]
[null,null,null,null,null,null,null,null,null,null,null,null,null,null,null,null,8000]
[null,null,null,null,null,null,null,null,null,null,null,null,null,null,null,null,8000]
[null,null,null,null,null,null,null,null,null,null,null,null,null,null,null,null,8000]
[null,null,null,null,null,null,null,null,null,null,null,null,null,null,null,null,8000]
[null,null,null,null,null,null,null,null,null,null,null,null,null,null,null,null,8000]
[null,null,null,null,null,null,null,null,null,null,null,null,null,null,null,null,8000]
[null,null,null,null,null,null,null,null,null,null,null,null,null,null,null,null,8000]
[null,null,null,null,null,null,null,null,null,null,null,null,null,null,null,null,8000]
[null,null,null,null,null,null,null,null,null,null,null,null,null,null,null,null,8000]
[null,null,null,null,null,null,null,null,null,null,null,null,null,null,null,null,8000]
[null,null,null,null,null,null,null,null,null,null,null,null,null,null,null,null,8000]
[null,null,null,null,null,null,null,null,null,null,null,null,null,null,null,null,8000]
[null,null,null,null,null,null,null,null,null,null,null,null,null,null,null,null,8000]
[null,null,null,null,null,null,null,null,null,null,null,null,null,null,null,null,8000]
[null,null,null,null,null,null,null,null,null,null,null,null,null,null,null,null,8000]
[null,null,null,null,null,null,null,null,null,null,null,null,null,null,null,null,8000]
[null,null,null,null,null,null,null,null,null,null,null,null,null,null,null,null,8000]
[null,null,null,null,null,null,null,null,null,null,null,null,null,null,null,null,8000]
[null,null,null,null,null,null,null,null,null,null,null,null,null,null,null,null,8000]
[null,null,null,null,null,null,null,null,null,null,null,null,null,null,null,null,8000]
[null,null,null,null,null,null,null,null,null,null,null,null,null,null,null,null,8000]
[null,null,null,null,null,null,null,null,null,null,null,null,null,null,null,null,8000]
[null,null,null,null,null,null,null,null,null,null,null,null,null,null,null,null,8000]
[null,null,null,null,null,null,null,null,null,null,null,null,null,null,null,null,8000]
[null,null,null,null,null,null,null,null,null,null,null,null,null,null,null,null,8000]
[null,null,null,null,null,null,null,null,null,null,null,null,null,null,null,null,8000]
[null,null,null,null,null,null,null,null,null,null,null,null,null,null,null,null,8000]
[null,null,null,null,null,null,null,null,null,null,null,null,null,null,null,null,8000]
[null,null,null,null,null,null,null,null,null,null,null,null,null,null,null,null,8000]
[null,null,null,null,null,null,null,null,null,null,null,null,null,null,null,null,8000]
[null,null,null,null,null,null,null,null,null,null,null,null,null,null,null,null,{"$f":"Q132+H133-B133","v":8000}]
[null,null,null,null,null,null,null,null,null,null,null,null,null,null,null,null,8000]
[null,null,null,null,null,null,null,null,null,null,null,null,null,null,null,null,8000]
[null,null,null,null,null,null,null,null,null,null,null,null,null,null,null,null,8000]
[null,null,null,null,null,null,null,null,null,null,null,null,null,null,null,null,8000]
[null,null,null,null,null,null,null,null,null,null,null,null,null,null,null,null,8000]
[null,null,null,null,null,null,null,null,null,null,null,null,null,null,null,null,8000]
[null,null,null,null,null,null,null,null,null,null,null,null,null,null,null,null,8000]
[null,null,null,null,null,null,null,null,null,null,null,null,null,null,null,null,8000]
[null,null,null,null,null,null,null,null,null,null,null,null,null,null,null,null,8000]
[null,null,null,null,null,null,null,null,null,null,null,null,null,null,null,null,8000]
[null,null,null,null,null,null,null,null,null,null,null,null,null,null,null,null,8000]
[null,null,null,null,null,null,null,null,null,null,null,null,null,null,null,null,8000]
[null,null,null,null,null,null,null,null,null,null,null,null,null,null,null,null,8000]
[null,null,null,null,null,null,null,null,null,null,null,null,null,null,null,null,8000]
[null,null,null,null,null,null,null,null,null,null,null,null,null,null,null,null,8000]
[null,null,null,null,null,null,null,null,null,null,null,null,null,null,null,null,8000]
[null,null,null,null,null,null,null,null,null,null,null,null,null,null,null,null,8000]
[null,null,null,null,null,null,null,null,null,null,null,null,null,null,null,null,8000]
[null,null,null,null,null,null,null,null,null,null,null,null,null,null,null,null,8000]
[null,null,null,null,null,null,null,null,null,null,null,null,null,null,null,null,8000]
[null,null,null,null,null,null,null,null,null,null,null,null,null,null,null,null,8000]
[null,null,null,null,null,null,null,null,null,null,null,null,null,null,null,null,8000]
[null,null,null,null,null,null,null,null,null,null,null,null,null,null,null,null,8000]
[null,null,null,null,null,null,null,null,null,null,null,null,null,null,null,null,8000]
[null,null,null,null,null,null,null,null,null,null,null,null,null,null,null,null,8000]
[null,null,null,null,null,null,null,null,null,null,null,null,null,null,null,null,8000]
[null,null,null,null,null,null,null,null,null,null,null,null,null,null,null,null,8000]
[null,null,null,null,null,null,null,null,null,null,null,null,null,null,null,null,8000]
[null,null,null,null,null,null,null,null,null,null,null,null,null,null,null,null,8000]
[null,null,null,null,null,null,null,null,null,null,null,null,null,null,null,null,8000]
[null,null,null,null,null,null,null,null,null,null,null,null,null,null,null,null,8000]
[null,null,null,null,null,null,null,null,null,null,null,null,null,null,null,null,8000]
[null,null,null,null,null,null,null,null,null,null,null,null,null,null,null,null,8000]
[null,null,null,null,null,null,null,null,null,null,null,null,null,null,null,null,8000]
[null,null,null,null,null,null,null,null,null,null,null,null,null,null,null,null,8000]
[null,null,null,null,null,null,null,null,null,null,null,null,null,null,null,null,8000]
[null,null,null,null,null,null,null,null,null,null,null,null,null,null,null,null,8000]
[null,null,null,null,null,null,null,null,null,null,null,null,null,null,null,null,8000]
[null,null,null,null,null,null,null,null,null,null,null,null,null,null,null,null,8000]
[null,null,null,null,null,null,null,null,null,null,null,null,null,null,null,null,8000]
[null,null,null,null,null,null,null,null,null,null,null,null,null,null,null,null,8000]
[null,null,null,null,null,null,null,null,null,null,null,null,null,null,null,null,8000]
[null,null,null,null,null,null,null,null,null,null,null,null,null,null,null,null,8000]
[null,null,null,null,null,null,null,null,null,null,null,null,null,null,null,null,8000]
[null,null,null,null,null,null,null,null,null,null,null,null,null,null,null,null,8000]
[null,null,null,null,null,null,null,null,null,null,null,null,null,null,null,null,8000]
[null,null,null,null,null,null,null,null,null,null,null,null,null,null,null,null,8000]
[null,null,null,null,null,null,null,null,null,null,null,null,null,null,null,null,8000]
[null,null,null,null,null,null,null,null,null,null,null,null,null,null,null,null,8000]
[null,null,null,null,null,null,null,null,null,null,null,null,null,null,null,null,8000]
[null,null,null,null,null,null,null,null,null,null,null,null,null,null,null,null,8000]
[null,null,null,null,null,null,null,null,null,null,null,null,null,null,null,null,8000]
[null,null,null,null,null,null,null,null,null,null,null,null,null,null,null,null,8000]
[null,null,null,null,null,null,null,null,null,null,null,null,null,null,null,null,8000]
[null,null,null,null,null,null,null,null,null,null,null,null,null,null,null,null,8000]
[null,null,null,null,null,null,null,null,null,null,null,null,null,null,null,null,8000]
[null,null,null,null,null,null,null,null,null,null,null,null,null,null,null,null,8000]
[null,null,null,null,null,null,null,null,null,null,null,null,null,null,null,null,8000]
[null,null,null,null,null,null,null,null,null,null,null,null,null,null,null,null,8000]
[null,null,null,null,null,null,null,null,null,null,null,null,null,null,null,null,8000]
[null,null,null,null,null,null,null,null,null,null,null,null,null,null,null,null,8000]
[null,null,null,null,null,null,null,null,null,null,null,null,null,null,null,null,8000]
[null,null,null,null,null,null,null,null,null,null,null,null,null,null,null,null,8000]
[null,null,null,null,null,null,null,null,null,null,null,null,null,null,null,null,{"$f":"Q196+H197-B197","v":8000}]
[null,null,null,null,null,null,null,null,null,null,null,null,null,null,null,null,8000]
[null,null,null,null,null,null,null,null,null,null,null,null,null,null,null,null,8000]
[null,null,null,null,null,null,null,null,null,null,null,null,null,null,null,null,8000]
[null,null,null,null,null,null,null,null,null,null,null,null,null,null,null,null,8000]
[null,null,null,null,null,null,null,null,null,null,null,null,null,null,null,null,8000]
[null,null,null,null,null,null,null,null,null,null,null,null,null,null,null,null,8000]
[null,null,null,null,null,null,null,null,null,null,null,null,null,null,null,null,8000]
[null,null,null,null,null,null,null,null,null,null,null,null,null,null,null,null,8000]
[null,null,null,null,null,null,null,null,null,null,null,null,null,null,null,null,8000]
[null,null,null,null,null,null,null,null,null,null,null,null,null,null,null,null,8000]
[null,null,null,null,null,null,null,null,null,null,null,null,null,null,null,null,8000]
[null,null,null,null,null,null,null,null,null,null,null,null,null,null,null,null,8000]
[null,null,null,null,null,null,null,null,null,null,null,null,null,null,null,null,8000]
[null,null,null,null,null,null,null,null,null,null,null,null,null,null,null,null,8000]
[null,null,null,null,null,null,null,null,null,null,null,null,null,null,null,null,8000]
[null,null,null,null,null,null,null,null,null,null,null,null,null,null,null,null,8000]
[null,null,null,null,null,null,null,null,null,null,null,null,null,null,null,null,8000]
[null,null,null,null,null,null,null,null,null,null,null,null,null,null,null,null,8000]
[null,null,null,null,null,null,null,null,null,null,null,null,null,null,null,null,8000]
[null,null,null,null,null,null,null,null,null,null,null,null,null,null,null,null,8000]
[null,null,null,null,null,null,null,null,null,null,null,null,null,null,null,null,8000]
[null,null,null,null,null,null,null,null,null,null,null,null,null,null,null,null,{"$f":"Q29+H219-B219","v":8000}]
[null,null,null,null,null,null,null,null,null,null,null,null,null,null,null,null,{"$f":"Q219+H220-B220","v":8000}]
[null,null,null,null,null,null,null,null,null,null,null,null,null,null,null,null,8000]
[null,null,null,null,null,null,null,null,null,null,null,null,null,null,null,null,8000]
[null,null,null,null,null,null,null,null,null,null,null,null,null,null,null,null,8000]
[null,null,null,null,null,null,null,null,null,null,null,null,null,null,null,null,8000]
[null,null,null,null,null,null,null,null,null,null,null,null,null,null,null,null,8000]
[null,null,null,null,null,null,null,null,null,null,null,null,null,null,null,null,8000]
[null,null,null,null,null,null,null,null,null,null,null,null,null,null,null,null,8000]
[null,null,null,null,null,null,null,null,null,null,null,null,null,null,null,null,8000]
[null,null,null,null,null,null,null,null,null,null,null,null,null,null,null,null,8000]
[null,null,null,null,null,null,null,null,null,null,null,null,null,null,null,null,8000]
[null,null,null,null,null,null,null,null,null,null,null,null,null,null,null,null,8000]
[null,null,null,null,null,null,null,null,null,null,null,null,null,null,null,null,8000]
[null,null,null,null,null,null,null,null,null,null,null,null,null,null,null,null,8000]
[null,null,null,null,null,null,null,null,null,null,null,null,null,null,null,null,8000]
[null,null,null,null,null,null,null,null,null,null,null,null,null,null,null,null,8000]
[null,null,null,null,null,null,null,null,null,null,null,null,null,null,null,null,8000]
[null,null,null,null,null,null,null,null,null,null,null,null,null,null,null,null,8000]
[null,null,null,null,null,null,null,null,null,null,null,null,null,null,null,null,8000]
[null,null,null,null,null,null,null,null,null,null,null,null,null,null,null,null,8000]
[null,null,null,null,null,null,null,null,null,null,null,null,null,null,null,null,8000]
[null,null,null,null,null,null,null,null,null,null,null,null,null,null,null,null,8000]
[null,null,null,null,null,null,null,null,null,null,null,null,null,null,null,null,8000]
[null,null,null,null,null,null,null,null,null,null,null,null,null,null,null,null,8000]
[null,null,null,null,null,null,null,null,null,null,null,null,null,null,null,null,8000]
[null,null,null,null,null,null,null,null,null,null,null,null,null,null,null,null,8000]
[null,null,null,null,null,null,null,null,null,null,null,null,null,null,null,null,8000]
[null,null,null,null,null,null,null,null,null,null,null,null,null,null,null,null,8000]
[null,null,null,null,null,null,null,null,null,null,null,null,null,null,null,null,8000]
["TOTAL",{"$f":"SUM(B4:B248)","v":500},null,null,null,null,{"$f":"SUM(G4:G248)","v":96000},{"$f":"SUM(H4:H248)","v":8500},{"$f":"SUM(I4:I248)","v":4950},{"$f":"SUM(J4:J248)","v":1},null,null,null,null,null,null,{"$f":"SUM(H249-B249)","v":8000}]

{"sheet":"mahmoud","index":8,"n_rows":249,"n_cols":17,"rows_kept":249,"cut":false,"hidden":false,"merged":[[0,0,0,2],[0,3,0,4],[1,13,1,14]]}
["mahmoud",null,null,null,null,null,null,null,null,null,null,null,null,null,null,null,"العملاء"]
[null,{"$f":"SUBTOTAL(9,B4:B248)","v":500},null,null,null,{"$f":"SUBTOTAL(9,B4:B248)","v":500},{"$f":"H2-F2","v":8000},{"$f":"SUBTOTAL(9,H4:H248)","v":8500},{"$f":"SUBTOTAL(9,I4:I248)","v":4950},{"$f":"SUBTOTAL(9,J4:J248)","v":1}]
["م","القسط","السند","تاريخ السداد","تاريخ الاستلام","الواصل","المتبقي","بيع الكميه","شراء الكمية","الكميات","العقد","تاريخ ابتداء","قيمة القسط","اسم الكفيل","صفحات الدفتر","ملاحظلات","الرصيد"]
[1,500,15,null,null,{"$f":"B4","v":500},{"$f":"H$4-F4","v":8000},8500,4950,1,1,"2018-11-26",500,"مصطفى",null,null,{"$f":"H4-B4","v":8000}]
[2,null,null,null,null,{"$f":"F4+B5","v":500},{"$f":"H$4-F5","v":8000},null,null,null,null,null,null,null,null,null,{"$f":"Q4+H5-B5","v":8000}]
[3,null,null,null,null,{"$f":"F5+B6","v":500},{"$f":"H$4-F6","v":8000},null,null,null,null,null,null,null,null,null,8000]
[4,null,null,null,null,500,8000,null,null,null,null,null,null,null,null,null,8000]
[5,null,null,null,null,500,8000,null,null,null,null,null,null,null,null,null,8000]
[6,null,null,null,null,500,8000,null,null,null,null,null,null,null,null,null,8000]
[7,null,null,null,null,500,8000,null,null,null,null,null,null,null,null,null,8000]
[8,null,null,null,null,500,8000,null,null,null,null,null,null,null,null,null,8000]
[9,null,null,null,null,500,8000,null,null,null,null,null,null,null,null,null,8000]
[10,null,null,null,null,{"$f":"F12+B13","v":500},8000,null,null,null,null,null,null,null,null,null,8000]
[11,null,null,null,null,{"$f":"F13+B14","v":500},8000,null,null,null,null,null,null,null,null,null,8000]
[12,null,null,null,null,{"$f":"F14+B15","v":500},8000,null,null,null,null,null,null,null,null,null,8000]
[null,null,null,null,null,null,null,null,null,null,null,null,null,null,null,null,8000]
[1,0,null,null,null,null,null,null,null,null,null,null,null,null,null,null,8000]
[null,null,null,null,null,null,null,null,null,null,null,null,null,null,null,null,8000]
[null,null,null,null,null,null,null,null,null,null,null,null,null,null,null,null,8000]
[null,null,null,null,null,null,null,null,null,null,null,null,null,null,null,null,8000]
[null,null,null,null,null,null,null,null,null,null,null,null,null,null,null,null,8000]
[null,null,null,null,null,null,null,null,null,null,null,null,null,null,null,null,8000]
[null,null,null,null,null,null,null,null,null,null,null,null,null,null,null,null,8000]
[null,null,null,null,null,null,null,null,null,null,null,null,null,null,null,null,8000]
[null,null,null,null,null,null,null,null,null,null,null,null,null,null,null,null,8000]
[null,null,null,null,null,null,null,null,null,null,null,null,null,null,null,null,8000]
[null,null,null,null,null,null,null,null,null,null,null,null,null,null,null,null,8000]
[null,null,null,null,null,null,null,null,null,null,null,null,null,null,null,null,8000]
[null,null,null,null,null,null,null,null,null,null,null,null,null,null,null,null,8000]
[null,null,null,null,null,null,null,null,null,null,null,null,null,null,null,null,8000]
[null,null,null,null,null,null,null,null,null,null,null,null,null,null,null,null,8000]
[null,null,null,null,null,null,null,null,null,null,null,null,null,null,null,null,8000]
[null,null,null,null,null,null,null,null,null,null,null,null,null,null,null,null,8000]
[null,null,null,null,null,null,null,null,null,null,null,null,null,null,null,null,8000]
[null,null,null,null,null,null,null,null,null,null,null,null,null,null,null,null,8000]
[null,null,null,null,null,null,null,null,null,null,null,null,null,null,null,null,8000]
[null,null,null,null,null,null,null,null,null,null,null,null,null,null,null,null,8000]
[null,null,null,null,null,null,null,null,null,null,null,null,null,null,null,null,8000]
[null,null,null,null,null,null,null,null,null,null,null,null,null,null,null,null,8000]
[null,null,null,null,null,null,null,null,null,null,null,null,null,null,null,null,8000]
[null,null,null,null,null,null,null,null,null,null,null,null,null,null,null,null,8000]
[null,null,null,null,null,null,null,null,null,null,null,null,null,null,null,null,8000]
[null,null,null,null,null,null,null,null,null,null,null,null,null,null,null,null,8000]
[null,null,null,null,null,null,null,null,null,null,null,null,null,null,null,null,8000]
[null,null,null,null,null,null,null,null,null,null,null,null,null,null,null,null,8000]
[null,null,null,null,null,null,null,null,null,null,null,null,null,null,null,null,8000]
[null,null,null,null,null,null,null,null,null,null,null,null,null,null,null,null,8000]
[null,null,null,null,null,null,null,null,null,null,null,null,null,null,null,null,8000]
[null,null,null,null,null,null,null,null,null,null,null,null,null,null,null,null,8000]
[null,null,null,null,null,null,null,null,null,null,null,null,null,null,null,null,8000]
[null,null,null,null,null,null,null,null,null,null,null,null,null,null,null,null,8000]
[null,null,null,null,null,null,null,null,null,null,null,null,null,null,null,null,8000]
[null,null,null,null,null,null,null,null,null,null,null,null,null,null,null,null,8000]
[null,null,null,null,null,null,null,null,null,null,null,null,null,null,null,null,8000]
[null,0,null,null,null,null,null,null,null,null,null,null,null,null,null,null,8000]
[null,0,null,null,null,null,null,null,null,null,null,null,null,null,null,null,8000]
[null,0,null,null,null,null,null,null,null,null,null,null,null,null,null,null,8000]
[null,null,null,null,null,null,null,null,null,null,null,null,null,null,null,null,8000]
[null,null,null,null,null,null,null,null,null,null,null,null,null,null,null,null,8000]
[null,null,null,null,null,null,null,null,null,null,null,null,null,null,null,null,8000]
[null,0,null,null,null,null,null,null,null,null,null,null,null,null,null,null,8000]
[null,0,null,null,null,null,null,null,null,null,null,null,null,null,null,null,8000]
[null,0,null,null,null,null,null,null,null,null,null,null,null,null,null,null,8000]
[null,0,null,null,null,null,null,null,null,null,null,null,null,null,null,null,8000]
[null,null,null,null,null,null,null,null,null,null,null,null,null,null,null,null,8000]
[null,null,null,null,null,null,null,null,null,null,null,null,null,null,null,null,8000]
[null,null,null,null,null,null,null,null,null,null,null,null,null,null,null,null,8000]
[null,null,null,null,null,null,null,null,null,null,null,null,null,null,null,null,8000]
[null,null,null,null,null,null,null,null,null,null,null,null,null,null,null,null,{"$f":"Q68+H69-B69","v":8000}]
[null,null,null,null,null,null,null,null,null,null,null,null,null,null,null,null,8000]
[null,null,null,null,null,null,null,null,null,null,null,null,null,null,null,null,8000]
[null,null,null,null,null,null,null,null,null,null,null,null,null,null,null,null,8000]
[null,null,null,null,null,null,null,null,null,null,null,null,null,null,null,null,8000]
[null,null,null,null,null,null,null,null,null,null,null,null,null,null,null,null,8000]
[null,null,null,null,null,null,null,null,null,null,null,null,null,null,null,null,8000]
[null,null,null,null,null,null,null,null,null,null,null,null,null,null,null,null,8000]
[null,null,null,null,null,null,null,null,null,null,null,null,null,null,null,null,8000]
[null,null,null,null,null,null,null,null,null,null,null,null,null,null,null,null,8000]
[null,null,null,null,null,null,null,null,null,null,null,null,null,null,null,null,8000]
[null,null,null,null,null,null,null,null,null,null,null,null,null,null,null,null,8000]
[null,null,null,null,null,null,null,null,null,null,null,null,null,null,null,null,8000]
[null,null,null,null,null,null,null,null,null,null,null,null,null,null,null,null,8000]
[null,null,null,null,null,null,null,null,null,null,null,null,null,null,null,null,8000]
[null,null,null,null,null,null,null,null,null,null,null,null,null,null,null,null,8000]
[null,null,null,null,null,null,null,null,null,null,null,null,null,null,null,null,8000]
[null,null,null,null,null,null,null,null,null,null,null,null,null,null,null,null,8000]
[null,null,null,null,null,null,null,null,null,null,null,null,null,null,null,null,8000]
[null,null,null,null,null,null,null,null,null,null,null,null,null,null,null,null,8000]
[null,null,null,null,null,null,null,null,null,null,null,null,null,null,null,null,8000]
[null,null,null,null,null,null,null,null,null,null,null,null,null,null,null,null,8000]
[null,null,null,null,null,null,null,null,null,null,null,null,null,null,null,null,8000]
[null,null,null,null,null,null,null,null,null,null,null,null,null,null,null,null,8000]
[null,null,null,null,null,null,null,null,null,null,null,null,null,null,null,null,8000]
[null,null,null,null,null,null,null,null,null,null,null,null,null,null,null,null,8000]
[null,null,null,null,null,null,null,null,null,null,null,null,null,null,null,null,8000]
[null,null,null,null,null,null,null,null,null,null,null,null,null,null,null,null,8000]
[null,null,null,null,null,null,null,null,null,null,null,null,null,null,null,null,8000]
[null,null,null,null,null,null,null,null,null,null,null,null,null,null,null,null,8000]
[null,null,null,null,null,null,null,null,null,null,null,null,null,null,null,null,8000]
[null,null,null,null,null,null,null,null,null,null,null,null,null,null,null,null,8000]
[null,null,null,null,null,null,null,null,null,null,null,null,null,null,null,null,8000]
[null,null,null,null,null,null,null,null,null,null,null,null,null,null,null,null,8000]
[null,null,null,null,null,null,null,null,null,null,null,null,null,null,null,null,8000]
[null,null,null,null,null,null,null,null,null,null,null,null,null,null,null,null,8000]
[null,null,null,null,null,null,null,null,null,null,null,null,null,null,null,null,8000]
[null,null,null,null,null,null,null,null,null,null,null,null,null,null,null,null,8000]
[null,null,null,null,null,null,null,null,null,null,null,null,null,null,null,null,8000]
[null,null,null,null,null,null,null,null,null,null,null,null,null,null,null,null,8000]
[null,null,null,null,null,null,null,null,null,null,null,null,null,null,null,null,8000]
[null,null,null,null,null,null,null,null,null,null,null,null,null,null,null,null,8000]
[null,null,null,null,null,null,null,null,null,null,null,null,null,null,null,null,8000]
[null,null,null,null,null,null,null,null,null,null,null,null,null,null,null,null,8000]
[null,null,null,null,null,null,null,null,null,null,null,null,null,null,null,null,8000]
[null,null,null,null,null,null,null,null,null,null,null,null,null,null,null,null,8000]
[null,null,null,null,null,null,null,null,null,null,null,null,null,null,null,null,8000]
[null,null,null,null,null,null,null,null,null,null,null,null,null,null,null,null,8000]
[null,null,null,null,null,null,null,null,null,null,null,null,null,null,null,null,8000]
[null,null,null,null,null,null,null,null,null,null,null,null,null,null,null,null,8000]
[null,null,null,null,null,null,null,null,null,null,null,null,null,null,null,null,8000]
[null,null,null,null,null,null,null,null,null,null,null,null,null,null,null,null,8000]
[null,null,null,null,null,null,null,null,null,null,null,null,null,null,null,null,8000]
[null,null,null,null,null,null,null,null,null,null,null,null,null,null,null,null,8000]
[null,null,null,null,null,null,null,null,null,null,null,null,null,null,null,null,8000]
[null,null,null,null,null,null,null,null,null,null,null,null,null,null,null,null,8000]
[null,null,null,null,null,null,null,null,null,null,null,null,null,null,null,null,8000]
[null,null,null,null,null,null,null,null,null,null,null,null,null,null,null,null,8000]
[null,null,null,null,null,null,null,null,null,null,null,null,null,null,null,null,8000]
[null,null,null,null,null,null,null,null,null,null,null,null,null,null,null,null,8000]
[null,null,null,null,null,null,null,null,null,null,null,null,null,null,null,null,8000]
[null,null,null,null,null,null,null,null,null,null,null,null,null,null,null,null,8000]
[null,null,null,null,null,null,null,null,null,null,null,null,null,null,null,null,8000]
[null,null,null,null,null,null,null,null,null,null,null,null,null,null,null,null,8000]
[null,null,null,null,null,null,null,null,null,null,null,null,null,null,null,null,{"$f":"Q132+H133-B133","v":8000}]
[null,null,null,null,null,null,null,null,null,null,null,null,null,null,null,null,8000]
[null,null,null,null,null,null,null,null,null,null,null,null,null,null,null,null,8000]
[null,null,null,null,null,null,null,null,null,null,null,null,null,null,null,null,8000]
[null,null,null,null,null,null,null,null,null,null,null,null,null,null,null,null,8000]
[null,null,null,null,null,null,null,null,null,null,null,null,null,null,null,null,8000]
[null,null,null,null,null,null,null,null,null,null,null,null,null,null,null,null,8000]
[null,null,null,null,null,null,null,null,null,null,null,null,null,null,null,null,8000]
[null,null,null,null,null,null,null,null,null,null,null,null,null,null,null,null,8000]
[null,null,null,null,null,null,null,null,null,null,null,null,null,null,null,null,8000]
[null,null,null,null,null,null,null,null,null,null,null,null,null,null,null,null,8000]
[null,null,null,null,null,null,null,null,null,null,null,null,null,null,null,null,8000]
[null,null,null,null,null,null,null,null,null,null,null,null,null,null,null,null,8000]
[null,null,null,null,null,null,null,null,null,null,null,null,null,null,null,null,8000]
[null,null,null,null,null,null,null,null,null,null,null,null,null,null,null,null,8000]
[null,null,null,null,null,null,null,null,null,null,null,null,null,null,null,null,8000]
[null,null,null,null,null,null,null,null,null,null,null,null,null,null,null,null,8000]
[null,null,null,null,null,null,null,null,null,null,null,null,null,null,null,null,8000]
[null,null,null,null,null,null,null,null,null,null,null,null,null,null,null,null,8000]
[null,null,null,null,null,null,null,null,null,null,null,null,null,null,null,null,8000]
[null,null,null,null,null,null,null,null,null,null,null,null,null,null,null,null,8000]
[null,null,null,null,null,null,null,null,null,null,null,null,null,null,null,null,8000]
[null,null,null,null,null,null,null,null,null,null,null,null,null,null,null,null,8000]
[null,null,null,null,null,null,null,null,null,null,null,null,null,null,null,null,8000]
[null,null,null,null,null,null,null,null,null,null,null,null,null,null,null,null,8000]
[null,null,null,null,null,null,null,null,null,null,null,null,null,null,null,null,8000]
[null,null,null,null,null,null,null,null,null,null,null,null,null,null,null,null,8000]
[null,null,null,null,null,null,null,null,null,null,null,null,null,null,null,null,8000]
[null,null,null,null,null,null,null,null,null,null,null,null,null,null,null,null,8000]
[null,null,null,null,null,null,null,null,null,null,null,null,null,null,null,null,8000]
[null,null,null,null,null,null,null,null,null,null,null,null,null,null,null,null,8000]
[null,null,null,null,null,null,null,null,null,null,null,null,null,null,null,null,8000]
[null,null,null,null,null,null,null,null,null,null,null,null,null,null,null,null,8000]
[null,null,null,null,null,null,null,null,null,null,null,null,null,null,null,null,8000]
[null,null,null,null,null,null,null,null,null,null,null,null,null,null,null,null,8000]
[null,null,null,null,null,null,null,null,null,null,null,null,null,null,null,null,8000]
[null,null,null,null,null,null,null,null,null,null,null,null,null,null,null,null,8000]
[null,null,null,null,null,null,null,null,null,null,null,null,null,null,null,null,8000]
[null,null,null,null,null,null,null,null,null,null,null,null,null,null,null,null,8000]
[null,null,null,null,null,null,null,null,null,null,null,null,null,null,null,null,8000]
[null,null,null,null,null,null,null,null,null,null,null,null,null,null,null,null,8000]
[null,null,null,null,null,null,null,null,null,null,null,null,null,null,null,null,8000]
[null,null,null,null,null,null,null,null,null,null,null,null,null,null,null,null,8000]
[null,null,null,null,null,null,null,null,null,null,null,null,null,null,null,null,8000]
[null,null,null,null,null,null,null,null,null,null,null,null,null,null,null,null,8000]
[null,null,null,null,null,null,null,null,null,null,null,null,null,null,null,null,8000]
[null,null,null,null,null,null,null,null,null,null,null,null,null,null,null,null,8000]
[null,null,null,null,null,null,null,null,null,null,null,null,null,null,null,null,8000]
[null,null,null,null,null,null,null,null,null,null,null,null,null,null,null,null,8000]
[null,null,null,null,null,null,null,null,null,null,null,null,null,null,null,null,8000]
[null,null,null,null,null,null,null,null,null,null,null,null,null,null,null,null,8000]
[null,null,null,null,null,null,null,null,null,null,null,null,null,null,null,null,8000]
[null,null,null,null,null,null,null,null,null,null,null,null,null,null,null,null,8000]
[null,null,null,null,null,null,null,null,null,null,null,null,null,null,null,null,8000]
[null,null,null,null,null,null,null,null,null,null,null,null,null,null,null,null,8000]
[null,null,null,null,null,null,null,null,null,null,null,null,null,null,null,null,8000]
[null,null,null,null,null,null,null,null,null,null,null,null,null,null,null,null,8000]
[null,null,null,null,null,null,null,null,null,null,null,null,null,null,null,null,8000]
[null,null,null,null,null,null,null,null,null,null,null,null,null,null,null,null,8000]
[null,null,null,null,null,null,null,null,null,null,null,null,null,null,null,null,8000]
[null,null,null,null,null,null,null,null,null,null,null,null,null,null,null,null,8000]
[null,null,null,null,null,null,null,null,null,null,null,null,null,null,null,null,8000]
[null,null,null,null,null,null,null,null,null,null,null,null,null,null,null,null,8000]
[null,null,null,null,null,null,null,null,null,null,null,null,null,null,null,null,8000]
[null,null,null,null,null,null,null,null,null,null,null,null,null,null,null,null,{"$f":"Q196+H197-B197","v":8000}]
[null,null,null,null,null,null,null,null,null,null,null,null,null,null,null,null,8000]
[null,null,null,null,null,null,null,null,null,null,null,null,null,null,null,null,8000]
[null,null,null,null,null,null,null,null,null,null,null,null,null,null,null,null,8000]
[null,null,null,null,null,null,null,null,null,null,null,null,null,null,null,null,8000]
[null,null,null,null,null,null,null,null,null,null,null,null,null,null,null,null,8000]
[null,null,null,null,null,null,null,null,null,null,null,null,null,null,null,null,8000]
[null,null,null,null,null,null,null,null,null,null,null,null,null,null,null,null,8000]
[null,null,null,null,null,null,null,null,null,null,null,null,null,null,null,null,8000]
[null,null,null,null,null,null,null,null,null,null,null,null,null,null,null,null,8000]
[null,null,null,null,null,null,null,null,null,null,null,null,null,null,null,null,8000]
[null,null,null,null,null,null,null,null,null,null,null,null,null,null,null,null,8000]
[null,null,null,null,null,null,null,null,null,null,null,null,null,null,null,null,8000]
[null,null,null,null,null,null,null,null,null,null,null,null,null,null,null,null,8000]
[null,null,null,null,null,null,null,null,null,null,null,null,null,null,null,null,8000]
[null,null,null,null,null,null,null,null,null,null,null,null,null,null,null,null,8000]
[null,null,null,null,null,null,null,null,null,null,null,null,null,null,null,null,8000]
[null,null,null,null,null,null,null,null,null,null,null,null,null,null,null,null,8000]
[null,null,null,null,null,null,null,null,null,null,null,null,null,null,null,null,8000]
[null,null,null,null,null,null,null,null,null,null,null,null,null,null,null,null,8000]
[null,null,null,null,null,null,null,null,null,null,null,null,null,null,null,null,8000]
[null,null,null,null,null,null,null,null,null,null,null,null,null,null,null,null,8000]
[null,null,null,null,null,null,null,null,null,null,null,null,null,null,null,null,{"$f":"Q29+H219-B219","v":8000}]
[null,null,null,null,null,null,null,null,null,null,null,null,null,null,null,null,{"$f":"Q219+H220-B220","v":8000}]
[null,null,null,null,null,null,null,null,null,null,null,null,null,null,null,null,8000]
[null,null,null,null,null,null,null,null,null,null,null,null,null,null,null,null,8000]
[null,null,null,null,null,null,null,null,null,null,null,null,null,null,null,null,8000]
[null,null,null,null,null,null,null,null,null,null,null,null,null,null,null,null,8000]
[null,null,null,null,null,null,null,null,null,null,null,null,null,null,null,null,8000]
[null,null,null,null,null,null,null,null,null,null,null,null,null,null,null,null,8000]
[null,null,null,null,null,null,null,null,null,null,null,null,null,null,null,null,8000]
[null,null,null,null,null,null,null,null,null,null,null,null,null,null,null,null,8000]
[null,null,null,null,null,null,null,null,null,null,null,null,null,null,null,null,8000]
[null,null,null,null,null,null,null,null,null,null,null,null,null,null,null,null,8000]
[null,null,null,null,null,null,null,null,null,null,null,null,null,null,null,null,8000]
[null,null,null,null,null,null,null,null,null,null,null,null,null,null,null,null,8000]
[null,null,null,null,null,null,null,null,null,null,null,null,null,null,null,null,8000]
[null,null,null,null,null,null,null,null,null,null,null,null,null,null,null,null,8000]
[null,null,null,null,null,null,null,null,null,null,null,null,null,null,null,null,8000]
[null,null,null,null,null,null,null,null,null,null,null,null,null,null,null,null,8000]
[null,null,null,null,null,null,null,null,null,null,null,null,null,null,null,null,8000]
[null,null,null,null,null,null,null,null,null,null,null,null,null,null,null,null,8000]
[null,null,null,null,null,null,null,null,null,null,null,null,null,null,null,null,8000]
[null,null,null,null,null,null,null,null,null,null,null,null,null,null,null,null,8000]
[null,null,null,null,null,null,null,null,null,null,null,null,null,null,null,null,8000]
[null,null,null,null,null,null,null,null,null,null,null,null,null,null,null,null,8000]
[null,null,null,null,null,null,null,null,null,null,null,null,null,null,null,null,8000]
[null,null,null,null,null,null,null,null,null,null,null,null,null,null,null,null,8000]
[null,null,null,null,null,null,null,null,null,null,null,null,null,null,null,null,8000]
[null,null,null,null,null,null,null,null,null,null,null,null,null,null,null,null,8000]
[null,null,null,null,null,null,null,null,null,null,null,null,null,null,null,null,8000]
[null,null,null,null,null,null,null,null,null,null,null,null,null,null,null,null,8000]
["TOTAL",{"$f":"SUM(B4:B248)","v":500},null,null,null,null,{"$f":"SUM(G4:G248)","v":96000},{"$f":"SUM(H4:H248)","v":8500},{"$f":"SUM(I4:I248)","v":4950},{"$f":"SUM(J4:J248)","v":1},null,null,null,null,null,null,{"$f":"SUM(H249-B249)","v":8000}]

{"sheet":"tamer","index":9,"n_rows":249,"n_cols":17,"rows_kept":249,"cut":false,"hidden":false,"merged":[[0,0,0,2],[0,3,0,4],[1,13,1,14]]}
["tamer",null,null,null,null,null,null,null,null,null,null,null,null,null,null,null,"العملاء"]
[null,{"$f":"SUBTOTAL(9,B4:B248)","v":500},null,null,null,{"$f":"SUBTOTAL(9,B4:B248)","v":500},{"$f":"H2-F2","v":8000},{"$f":"SUBTOTAL(9,H4:H248)","v":8500},{"$f":"SUBTOTAL(9,I4:I248)","v":4950},{"$f":"SUBTOTAL(9,J4:J248)","v":1}]
["م","القسط","السند","تاريخ السداد","تاريخ الاستلام","الواصل","المتبقي","بيع الكميه","شراء الكمية","الكميات","العقد","تاريخ ابتداء","قيمة القسط","اسم الكفيل","صفحات الدفتر","ملاحظلات","الرصيد"]
[1,500,15,null,null,{"$f":"B4","v":500},{"$f":"H$4-F4","v":8000},8500,4950,1,1,"2018-11-26",500,"مصطفى",null,null,{"$f":"H4-B4","v":8000}]
[2,null,null,null,null,{"$f":"F4+B5","v":500},{"$f":"H$4-F5","v":8000},null,null,null,null,null,null,null,null,null,{"$f":"Q4+H5-B5","v":8000}]
[3,null,null,null,null,{"$f":"F5+B6","v":500},{"$f":"H$4-F6","v":8000},null,null,null,null,null,null,null,null,null,8000]
[4,null,null,null,null,500,8000,null,null,null,null,null,null,null,null,null,8000]
[5,null,null,null,null,500,8000,null,null,null,null,null,null,null,null,null,8000]
[6,null,null,null,null,500,8000,null,null,null,null,null,null,null,null,null,8000]
[7,null,null,null,null,500,8000,null,null,null,null,null,null,null,null,null,8000]
[8,null,null,null,null,500,8000,null,null,null,null,null,null,null,null,null,8000]
[9,null,null,null,null,500,8000,null,null,null,null,null,null,null,null,null,8000]
[10,null,null,null,null,{"$f":"F12+B13","v":500},8000,null,null,null,null,null,null,null,null,null,8000]
[11,null,null,null,null,{"$f":"F13+B14","v":500},8000,null,null,null,null,null,null,null,null,null,8000]
[12,null,null,null,null,{"$f":"F14+B15","v":500},8000,null,null,null,null,null,null,null,null,null,8000]
[null,null,null,null,null,null,null,null,null,null,null,null,null,null,null,null,8000]
[1,0,null,null,null,null,null,null,null,null,null,null,null,null,null,null,8000]
[null,null,null,null,null,null,null,null,null,null,null,null,null,null,null,null,8000]
[null,null,null,null,null,null,null,null,null,null,null,null,null,null,null,null,8000]
[null,null,null,null,null,null,null,null,null,null,null,null,null,null,null,null,8000]
[null,null,null,null,null,null,null,null,null,null,null,null,null,null,null,null,8000]
[null,null,null,null,null,null,null,null,null,null,null,null,null,null,null,null,8000]
[null,null,null,null,null,null,null,null,null,null,null,null,null,null,null,null,8000]
[null,null,null,null,null,null,null,null,null,null,null,null,null,null,null,null,8000]
[null,null,null,null,null,null,null,null,null,null,null,null,null,null,null,null,8000]
[null,null,null,null,null,null,null,null,null,null,null,null,null,null,null,null,8000]
[null,null,null,null,null,null,null,null,null,null,null,null,null,null,null,null,8000]
[null,null,null,null,null,null,null,null,null,null,null,null,null,null,null,null,8000]
[null,null,null,null,null,null,null,null,null,null,null,null,null,null,null,null,8000]
[null,null,null,null,null,null,null,null,null,null,null,null,null,null,null,null,8000]
[null,null,null,null,null,null,null,null,null,null,null,null,null,null,null,null,8000]
[null,null,null,null,null,null,null,null,null,null,null,null,null,null,null,null,8000]
[null,null,null,null,null,null,null,null,null,null,null,null,null,null,null,null,8000]
[null,null,null,null,null,null,null,null,null,null,null,null,null,null,null,null,8000]
[null,null,null,null,null,null,null,null,null,null,null,null,null,null,null,null,8000]
[null,null,null,null,null,null,null,null,null,null,null,null,null,null,null,null,8000]
[null,null,null,null,null,null,null,null,null,null,null,null,null,null,null,null,8000]
[null,null,null,null,null,null,null,null,null,null,null,null,null,null,null,null,8000]
[null,null,null,null,null,null,null,null,null,null,null,null,null,null,null,null,8000]
[null,null,null,null,null,null,null,null,null,null,null,null,null,null,null,null,8000]
[null,null,null,null,null,null,null,null,null,null,null,null,null,null,null,null,8000]
[null,null,null,null,null,null,null,null,null,null,null,null,null,null,null,null,8000]
[null,null,null,null,null,null,null,null,null,null,null,null,null,null,null,null,8000]
[null,null,null,null,null,null,null,null,null,null,null,null,null,null,null,null,8000]
[null,null,null,null,null,null,null,null,null,null,null,null,null,null,null,null,8000]
[null,null,null,null,null,null,null,null,null,null,null,null,null,null,null,null,8000]
[null,null,null,null,null,null,null,null,null,null,null,null,null,null,null,null,8000]
[null,null,null,null,null,null,null,null,null,null,null,null,null,null,null,null,8000]
[null,null,null,null,null,null,null,null,null,null,null,null,null,null,null,null,8000]
[null,null,null,null,null,null,null,null,null,null,null,null,null,null,null,null,8000]
[null,null,null,null,null,null,null,null,null,null,null,null,null,null,null,null,8000]
[null,null,null,null,null,null,null,null,null,null,null,null,null,null,null,null,8000]
[null,null,null,null,null,null,null,null,null,null,null,null,null,null,null,null,8000]
[null,null,null,null,null,null,null,null,null,null,null,null,null,null,null,null,8000]
[null,0,null,null,null,null,null,null,null,null,null,null,null,null,null,null,8000]
[null,0,null,null,null,null,null,null,null,null,null,null,null,null,null,null,8000]
[null,0,null,null,null,null,null,null,null,null,null,null,null,null,null,null,8000]
[null,null,null,null,null,null,null,null,null,null,null,null,null,null,null,null,8000]
[null,null,null,null,null,null,null,null,null,null,null,null,null,null,null,null,8000]
[null,null,null,null,null,null,null,null,null,null,null,null,null,null,null,null,8000]
[null,0,null,null,null,null,null,null,null,null,null,null,null,null,null,null,8000]
[null,0,null,null,null,null,null,null,null,null,null,null,null,null,null,null,8000]
[null,0,null,null,null,null,null,null,null,null,null,null,null,null,null,null,8000]
[null,0,null,null,null,null,null,null,null,null,null,null,null,null,null,null,8000]
[null,null,null,null,null,null,null,null,null,null,null,null,null,null,null,null,8000]
[null,null,null,null,null,null,null,null,null,null,null,null,null,null,null,null,8000]
[null,null,null,null,null,null,null,null,null,null,null,null,null,null,null,null,8000]
[null,null,null,null,null,null,null,null,null,null,null,null,null,null,null,null,8000]
[null,null,null,null,null,null,null,null,null,null,null,null,null,null,null,null,{"$f":"Q68+H69-B69","v":8000}]
[null,null,null,null,null,null,null,null,null,null,null,null,null,null,null,null,8000]
[null,null,null,null,null,null,null,null,null,null,null,null,null,null,null,null,8000]
[null,null,null,null,null,null,null,null,null,null,null,null,null,null,null,null,8000]
[null,null,null,null,null,null,null,null,null,null,null,null,null,null,null,null,8000]
[null,null,null,null,null,null,null,null,null,null,null,null,null,null,null,null,8000]
[null,null,null,null,null,null,null,null,null,null,null,null,null,null,null,null,8000]
[null,null,null,null,null,null,null,null,null,null,null,null,null,null,null,null,8000]
[null,null,null,null,null,null,null,null,null,null,null,null,null,null,null,null,8000]
[null,null,null,null,null,null,null,null,null,null,null,null,null,null,null,null,8000]
[null,null,null,null,null,null,null,null,null,null,null,null,null,null,null,null,8000]
[null,null,null,null,null,null,null,null,null,null,null,null,null,null,null,null,8000]
[null,null,null,null,null,null,null,null,null,null,null,null,null,null,null,null,8000]
[null,null,null,null,null,null,null,null,null,null,null,null,null,null,null,null,8000]
[null,null,null,null,null,null,null,null,null,null,null,null,null,null,null,null,8000]
[null,null,null,null,null,null,null,null,null,null,null,null,null,null,null,null,8000]
[null,null,null,null,null,null,null,null,null,null,null,null,null,null,null,null,8000]
[null,null,null,null,null,null,null,null,null,null,null,null,null,null,null,null,8000]
[null,null,null,null,null,null,null,null,null,null,null,null,null,null,null,null,8000]
[null,null,null,null,null,null,null,null,null,null,null,null,null,null,null,null,8000]
[null,null,null,null,null,null,null,null,null,null,null,null,null,null,null,null,8000]
[null,null,null,null,null,null,null,null,null,null,null,null,null,null,null,null,8000]
[null,null,null,null,null,null,null,null,null,null,null,null,null,null,null,null,8000]
[null,null,null,null,null,null,null,null,null,null,null,null,null,null,null,null,8000]
[null,null,null,null,null,null,null,null,null,null,null,null,null,null,null,null,8000]
[null,null,null,null,null,null,null,null,null,null,null,null,null,null,null,null,8000]
[null,null,null,null,null,null,null,null,null,null,null,null,null,null,null,null,8000]
[null,null,null,null,null,null,null,null,null,null,null,null,null,null,null,null,8000]
[null,null,null,null,null,null,null,null,null,null,null,null,null,null,null,null,8000]
[null,null,null,null,null,null,null,null,null,null,null,null,null,null,null,null,8000]
[null,null,null,null,null,null,null,null,null,null,null,null,null,null,null,null,8000]
[null,null,null,null,null,null,null,null,null,null,null,null,null,null,null,null,8000]
[null,null,null,null,null,null,null,null,null,null,null,null,null,null,null,null,8000]
[null,null,null,null,null,null,null,null,null,null,null,null,null,null,null,null,8000]
[null,null,null,null,null,null,null,null,null,null,null,null,null,null,null,null,8000]
[null,null,null,null,null,null,null,null,null,null,null,null,null,null,null,null,8000]
[null,null,null,null,null,null,null,null,null,null,null,null,null,null,null,null,8000]
[null,null,null,null,null,null,null,null,null,null,null,null,null,null,null,null,8000]
[null,null,null,null,null,null,null,null,null,null,null,null,null,null,null,null,8000]
[null,null,null,null,null,null,null,null,null,null,null,null,null,null,null,null,8000]
[null,null,null,null,null,null,null,null,null,null,null,null,null,null,null,null,8000]
[null,null,null,null,null,null,null,null,null,null,null,null,null,null,null,null,8000]
[null,null,null,null,null,null,null,null,null,null,null,null,null,null,null,null,8000]
[null,null,null,null,null,null,null,null,null,null,null,null,null,null,null,null,8000]
[null,null,null,null,null,null,null,null,null,null,null,null,null,null,null,null,8000]
[null,null,null,null,null,null,null,null,null,null,null,null,null,null,null,null,8000]
[null,null,null,null,null,null,null,null,null,null,null,null,null,null,null,null,8000]
[null,null,null,null,null,null,null,null,null,null,null,null,null,null,null,null,8000]
[null,null,null,null,null,null,null,null,null,null,null,null,null,null,null,null,8000]
[null,null,null,null,null,null,null,null,null,null,null,null,null,null,null,null,8000]
[null,null,null,null,null,null,null,null,null,null,null,null,null,null,null,null,8000]
[null,null,null,null,null,null,null,null,null,null,null,null,null,null,null,null,8000]
[null,null,null,null,null,null,null,null,null,null,null,null,null,null,null,null,8000]
[null,null,null,null,null,null,null,null,null,null,null,null,null,null,null,null,8000]
[null,null,null,null,null,null,null,null,null,null,null,null,null,null,null,null,8000]
[null,null,null,null,null,null,null,null,null,null,null,null,null,null,null,null,8000]
[null,null,null,null,null,null,null,null,null,null,null,null,null,null,null,null,8000]
[null,null,null,null,null,null,null,null,null,null,null,null,null,null,null,null,8000]
[null,null,null,null,null,null,null,null,null,null,null,null,null,null,null,null,8000]
[null,null,null,null,null,null,null,null,null,null,null,null,null,null,null,null,8000]
[null,null,null,null,null,null,null,null,null,null,null,null,null,null,null,null,8000]
[null,null,null,null,null,null,null,null,null,null,null,null,null,null,null,null,8000]
[null,null,null,null,null,null,null,null,null,null,null,null,null,null,null,null,8000]
[null,null,null,null,null,null,null,null,null,null,null,null,null,null,null,null,8000]
[null,null,null,null,null,null,null,null,null,null,null,null,null,null,null,null,{"$f":"Q132+H133-B133","v":8000}]
[null,null,null,null,null,null,null,null,null,null,null,null,null,null,null,null,8000]
[null,null,null,null,null,null,null,null,null,null,null,null,null,null,null,null,8000]
[null,null,null,null,null,null,null,null,null,null,null,null,null,null,null,null,8000]
[null,null,null,null,null,null,null,null,null,null,null,null,null,null,null,null,8000]
[null,null,null,null,null,null,null,null,null,null,null,null,null,null,null,null,8000]
[null,null,null,null,null,null,null,null,null,null,null,null,null,null,null,null,8000]
[null,null,null,null,null,null,null,null,null,null,null,null,null,null,null,null,8000]
[null,null,null,null,null,null,null,null,null,null,null,null,null,null,null,null,8000]
[null,null,null,null,null,null,null,null,null,null,null,null,null,null,null,null,8000]
[null,null,null,null,null,null,null,null,null,null,null,null,null,null,null,null,8000]
[null,null,null,null,null,null,null,null,null,null,null,null,null,null,null,null,8000]
[null,null,null,null,null,null,null,null,null,null,null,null,null,null,null,null,8000]
[null,null,null,null,null,null,null,null,null,null,null,null,null,null,null,null,8000]
[null,null,null,null,null,null,null,null,null,null,null,null,null,null,null,null,8000]
[null,null,null,null,null,null,null,null,null,null,null,null,null,null,null,null,8000]
[null,null,null,null,null,null,null,null,null,null,null,null,null,null,null,null,8000]
[null,null,null,null,null,null,null,null,null,null,null,null,null,null,null,null,8000]
[null,null,null,null,null,null,null,null,null,null,null,null,null,null,null,null,8000]
[null,null,null,null,null,null,null,null,null,null,null,null,null,null,null,null,8000]
[null,null,null,null,null,null,null,null,null,null,null,null,null,null,null,null,8000]
[null,null,null,null,null,null,null,null,null,null,null,null,null,null,null,null,8000]
[null,null,null,null,null,null,null,null,null,null,null,null,null,null,null,null,8000]
[null,null,null,null,null,null,null,null,null,null,null,null,null,null,null,null,8000]
[null,null,null,null,null,null,null,null,null,null,null,null,null,null,null,null,8000]
[null,null,null,null,null,null,null,null,null,null,null,null,null,null,null,null,8000]
[null,null,null,null,null,null,null,null,null,null,null,null,null,null,null,null,8000]
[null,null,null,null,null,null,null,null,null,null,null,null,null,null,null,null,8000]
[null,null,null,null,null,null,null,null,null,null,null,null,null,null,null,null,8000]
[null,null,null,null,null,null,null,null,null,null,null,null,null,null,null,null,8000]
[null,null,null,null,null,null,null,null,null,null,null,null,null,null,null,null,8000]
[null,null,null,null,null,null,null,null,null,null,null,null,null,null,null,null,8000]
[null,null,null,null,null,null,null,null,null,null,null,null,null,null,null,null,8000]
[null,null,null,null,null,null,null,null,null,null,null,null,null,null,null,null,8000]
[null,null,null,null,null,null,null,null,null,null,null,null,null,null,null,null,8000]
[null,null,null,null,null,null,null,null,null,null,null,null,null,null,null,null,8000]
[null,null,null,null,null,null,null,null,null,null,null,null,null,null,null,null,8000]
[null,null,null,null,null,null,null,null,null,null,null,null,null,null,null,null,8000]
[null,null,null,null,null,null,null,null,null,null,null,null,null,null,null,null,8000]
[null,null,null,null,null,null,null,null,null,null,null,null,null,null,null,null,8000]
[null,null,null,null,null,null,null,null,null,null,null,null,null,null,null,null,8000]
[null,null,null,null,null,null,null,null,null,null,null,null,null,null,null,null,8000]
[null,null,null,null,null,null,null,null,null,null,null,null,null,null,null,null,8000]
[null,null,null,null,null,null,null,null,null,null,null,null,null,null,null,null,8000]
[null,null,null,null,null,null,null,null,null,null,null,null,null,null,null,null,8000]
[null,null,null,null,null,null,null,null,null,null,null,null,null,null,null,null,8000]
[null,null,null,null,null,null,null,null,null,null,null,null,null,null,null,null,8000]
[null,null,null,null,null,null,null,null,null,null,null,null,null,null,null,null,8000]
[null,null,null,null,null,null,null,null,null,null,null,null,null,null,null,null,8000]
[null,null,null,null,null,null,null,null,null,null,null,null,null,null,null,null,8000]
[null,null,null,null,null,null,null,null,null,null,null,null,null,null,null,null,8000]
[null,null,null,null,null,null,null,null,null,null,null,null,null,null,null,null,8000]
[null,null,null,null,null,null,null,null,null,null,null,null,null,null,null,null,8000]
[null,null,null,null,null,null,null,null,null,null,null,null,null,null,null,null,8000]
[null,null,null,null,null,null,null,null,null,null,null,null,null,null,null,null,8000]
[null,null,null,null,null,null,null,null,null,null,null,null,null,null,null,null,8000]
[null,null,null,null,null,null,null,null,null,null,null,null,null,null,null,null,8000]
[null,null,null,null,null,null,null,null,null,null,null,null,null,null,null,null,8000]
[null,null,null,null,null,null,null,null,null,null,null,null,null,null,null,null,8000]
[null,null,null,null,null,null,null,null,null,null,null,null,null,null,null,null,8000]
[null,null,null,null,null,null,null,null,null,null,null,null,null,null,null,null,8000]
[null,null,null,null,null,null,null,null,null,null,null,null,null,null,null,null,8000]
[null,null,null,null,null,null,null,null,null,null,null,null,null,null,null,null,8000]
[null,null,null,null,null,null,null,null,null,null,null,null,null,null,null,null,8000]
[null,null,null,null,null,null,null,null,null,null,null,null,null,null,null,null,{"$f":"Q196+H197-B197","v":8000}]
[null,null,null,null,null,null,null,null,null,null,null,null,null,null,null,null,8000]
[null,null,null,null,null,null,null,null,null,null,null,null,null,null,null,null,8000]
[null,null,null,null,null,null,null,null,null,null,null,null,null,null,null,null,8000]
[null,null,null,null,null,null,null,null,null,null,null,null,null,null,null,null,8000]
[null,null,null,null,null,null,null,null,null,null,null,null,null,null,null,null,8000]
[null,null,null,null,null,null,null,null,null,null,null,null,null,null,null,null,8000]
[null,null,null,null,null,null,null,null,null,null,null,null,null,null,null,null,8000]
[null,null,null,null,null,null,null,null,null,null,null,null,null,null,null,null,8000]
[null,null,null,null,null,null,null,null,null,null,null,null,null,null,null,null,8000]
[null,null,null,null,null,null,null,null,null,null,null,null,null,null,null,null,8000]
[null,null,null,null,null,null,null,null,null,null,null,null,null,null,null,null,8000]
[null,null,null,null,null,null,null,null,null,null,null,null,null,null,null,null,8000]
[null,null,null,null,null,null,null,null,null,null,null,null,null,null,null,null,8000]
[null,null,null,null,null,null,null,null,null,null,null,null,null,null,null,null,8000]
[null,null,null,null,null,null,null,null,null,null,null,null,null,null,null,null,8000]
[null,null,null,null,null,null,null,null,null,null,null,null,null,null,null,null,8000]
[null,null,null,null,null,null,null,null,null,null,null,null,null,null,null,null,8000]
[null,null,null,null,null,null,null,null,null,null,null,null,null,null,null,null,8000]
[null,null,null,null,null,null,null,null,null,null,null,null,null,null,null,null,8000]
[null,null,null,null,null,null,null,null,null,null,null,null,null,null,null,null,8000]
[null,null,null,null,null,null,null,null,null,null,null,null,null,null,null,null,8000]
[null,null,null,null,null,null,null,null,null,null,null,null,null,null,null,null,{"$f":"Q29+H219-B219","v":8000}]
[null,null,null,null,null,null,null,null,null,null,null,null,null,null,null,null,{"$f":"Q219+H220-B220","v":8000}]
[null,null,null,null,null,null,null,null,null,null,null,null,null,null,null,null,8000]
[null,null,null,null,null,null,null,null,null,null,null,null,null,null,null,null,8000]
[null,null,null,null,null,null,null,null,null,null,null,null,null,null,null,null,8000]
[null,null,null,null,null,null,null,null,null,null,null,null,null,null,null,null,8000]
[null,null,null,null,null,null,null,null,null,null,null,null,null,null,null,null,8000]
[null,null,null,null,null,null,null,null,null,null,null,null,null,null,null,null,8000]
[null,null,null,null,null,null,null,null,null,null,null,null,null,null,null,null,8000]
[null,null,null,null,null,null,null,null,null,null,null,null,null,null,null,null,8000]
[null,null,null,null,null,null,null,null,null,null,null,null,null,null,null,null,8000]
[null,null,null,null,null,null,null,null,null,null,null,null,null,null,null,null,8000]
[null,null,null,null,null,null,null,null,null,null,null,null,null,null,null,null,8000]
[null,null,null,null,null,null,null,null,null,null,null,null,null,null,null,null,8000]
[null,null,null,null,null,null,null,null,null,null,null,null,null,null,null,null,8000]
[null,null,null,null,null,null,null,null,null,null,null,null,null,null,null,null,8000]
[null,null,null,null,null,null,null,null,null,null,null,null,null,null,null,null,8000]
[null,null,null,null,null,null,null,null,null,null,null,null,null,null,null,null,8000]
[null,null,null,null,null,null,null,null,null,null,null,null,null,null,null,null,8000]
[null,null,null,null,null,null,null,null,null,null,null,null,null,null,null,null,8000]
[null,null,null,null,null,null,null,null,null,null,null,null,null,null,null,null,8000]
[null,null,null,null,null,null,null,null,null,null,null,null,null,null,null,null,8000]
[null,null,null,null,null,null,null,null,null,null,null,null,null,null,null,null,8000]
[null,null,null,null,null,null,null,null,null,null,null,null,null,null,null,null,8000]
[null,null,null,null,null,null,null,null,null,null,null,null,null,null,null,null,8000]
[null,null,null,null,null,null,null,null,null,null,null,null,null,null,null,null,8000]
[null,null,null,null,null,null,null,null,null,null,null,null,null,null,null,null,8000]
[null,null,null,null,null,null,null,null,null,null,null,null,null,null,null,null,8000]
[null,null,null,null,null,null,null,null,null,null,null,null,null,null,null,null,8000]
[null,null,null,null,null,null,null,null,null,null,null,null,null,null,null,null,8000]
["TOTAL",{"$f":"SUM(B4:B248)","v":500},null,null,null,null,{"$f":"SUM(G4:G248)","v":96000},{"$f":"SUM(H4:H248)","v":8500},{"$f":"SUM(I4:I248)","v":4950},{"$f":"SUM(J4:J248)","v":1},null,null,null,null,null,null,{"$f":"SUM(H249-B249)","v":8000}]

{"sheet":"أدخل اسم العميل","index":10,"n_rows":249,"n_cols":17,"rows_kept":249,"cut":false,"hidden":false,"merged":[[0,0,0,2],[0,3,0,4],[1,13,1,14]]}
["أدخل اسم العميل",null,null,null,null,null,null,null,null,null,null,null,null,null,null,null,"العملاء"]
[null,{"$f":"SUBTOTAL(9,B4:B248)","v":500},null,null,null,{"$f":"SUBTOTAL(9,B4:B248)","v":500},{"$f":"H2-F2","v":8000},{"$f":"SUBTOTAL(9,H4:H248)","v":8500},{"$f":"SUBTOTAL(9,I4:I248)","v":4950},{"$f":"SUBTOTAL(9,J4:J248)","v":1}]
["م","القسط","السند","تاريخ السداد","تاريخ الاستلام","الواصل","المتبقي","بيع الكميه","شراء الكمية","الكميات","العقد","تاريخ ابتداء","قيمة القسط","اسم الكفيل","صفحات الدفتر","ملاحظلات","الرصيد"]
[1,500,15,null,null,{"$f":"B4","v":500},{"$f":"H$4-F4","v":8000},8500,4950,1,1,"2018-11-26",500,"مصطفى",null,null,{"$f":"H4-B4","v":8000}]
[2,null,null,null,null,{"$f":"F4+B5","v":500},{"$f":"H$4-F5","v":8000},null,null,null,null,null,null,null,null,null,{"$f":"Q4+H5-B5","v":8000}]
[3,null,null,null,null,{"$f":"F5+B6","v":500},{"$f":"H$4-F6","v":8000},null,null,null,null,null,null,null,null,null,8000]
[4,null,null,null,null,500,8000,null,null,null,null,null,null,null,null,null,8000]
[5,null,null,null,null,500,8000,null,null,null,null,null,null,null,null,null,8000]
[6,null,null,null,null,500,8000,null,null,null,null,null,null,null,null,null,8000]
[7,null,null,null,null,500,8000,null,null,null,null,null,null,null,null,null,8000]
[8,null,null,null,null,500,8000,null,null,null,null,null,null,null,null,null,8000]
[9,null,null,null,null,500,8000,null,null,null,null,null,null,null,null,null,8000]
[10,null,null,null,null,{"$f":"F12+B13","v":500},8000,null,null,null,null,null,null,null,null,null,8000]
[11,null,null,null,null,{"$f":"F13+B14","v":500},8000,null,null,null,null,null,null,null,null,null,8000]
[12,null,null,null,null,{"$f":"F14+B15","v":500},8000,null,null,null,null,null,null,null,null,null,8000]
[null,null,null,null,null,null,null,null,null,null,null,null,null,null,null,null,8000]
[1,0,null,null,null,null,null,null,null,null,null,null,null,null,null,null,8000]
[null,null,null,null,null,null,null,null,null,null,null,null,null,null,null,null,8000]
[null,null,null,null,null,null,null,null,null,null,null,null,null,null,null,null,8000]
[null,null,null,null,null,null,null,null,null,null,null,null,null,null,null,null,8000]
[null,null,null,null,null,null,null,null,null,null,null,null,null,null,null,null,8000]
[null,null,null,null,null,null,null,null,null,null,null,null,null,null,null,null,8000]
[null,null,null,null,null,null,null,null,null,null,null,null,null,null,null,null,8000]
[null,null,null,null,null,null,null,null,null,null,null,null,null,null,null,null,8000]
[null,null,null,null,null,null,null,null,null,null,null,null,null,null,null,null,8000]
[null,null,null,null,null,null,null,null,null,null,null,null,null,null,null,null,8000]
[null,null,null,null,null,null,null,null,null,null,null,null,null,null,null,null,8000]
[null,null,null,null,null,null,null,null,null,null,null,null,null,null,null,null,8000]
[null,null,null,null,null,null,null,null,null,null,null,null,null,null,null,null,8000]
[null,null,null,null,null,null,null,null,null,null,null,null,null,null,null,null,8000]
[null,null,null,null,null,null,null,null,null,null,null,null,null,null,null,null,8000]
[null,null,null,null,null,null,null,null,null,null,null,null,null,null,null,null,8000]
[null,null,null,null,null,null,null,null,null,null,null,null,null,null,null,null,8000]
[null,null,null,null,null,null,null,null,null,null,null,null,null,null,null,null,8000]
[null,null,null,null,null,null,null,null,null,null,null,null,null,null,null,null,8000]
[null,null,null,null,null,null,null,null,null,null,null,null,null,null,null,null,8000]
[null,null,null,null,null,null,null,null,null,null,null,null,null,null,null,null,8000]
[null,null,null,null,null,null,null,null,null,null,null,null,null,null,null,null,8000]
[null,null,null,null,null,null,null,null,null,null,null,null,null,null,null,null,8000]
[null,null,null,null,null,null,null,null,null,null,null,null,null,null,null,null,8000]
[null,null,null,null,null,null,null,null,null,null,null,null,null,null,null,null,8000]
[null,null,null,null,null,null,null,null,null,null,null,null,null,null,null,null,8000]
[null,null,null,null,null,null,null,null,null,null,null,null,null,null,null,null,8000]
[null,null,null,null,null,null,null,null,null,null,null,null,null,null,null,null,8000]
[null,null,null,null,null,null,null,null,null,null,null,null,null,null,null,null,8000]
[null,null,null,null,null,null,null,null,null,null,null,null,null,null,null,null,8000]
[null,null,null,null,null,null,null,null,null,null,null,null,null,null,null,null,8000]
[null,null,null,null,null,null,null,null,null,null,null,null,null,null,null,null,8000]
[null,null,null,null,null,null,null,null,null,null,null,null,null,null,null,null,8000]
[null,null,null,null,null,null,null,null,null,null,null,null,null,null,null,null,8000]
[null,null,null,null,null,null,null,null,null,null,null,null,null,null,null,null,8000]
[null,null,null,null,null,null,null,null,null,null,null,null,null,null,null,null,8000]
[null,null,null,null,null,null,null,null,null,null,null,null,null,null,null,null,8000]
[null,null,null,null,null,null,null,null,null,null,null,null,null,null,null,null,8000]
[null,0,null,null,null,null,null,null,null,null,null,null,null,null,null,null,8000]
[null,0,null,null,null,null,null,null,null,null,null,null,null,null,null,null,8000]
[null,0,null,null,null,null,null,null,null,null,null,null,null,null,null,null,8000]
[null,null,null,null,null,null,null,null,null,null,null,null,null,null,null,null,8000]
[null,null,null,null,null,null,null,null,null,null,null,null,null,null,null,null,8000]
[null,null,null,null,null,null,null,null,null,null,null,null,null,null,null,null,8000]
[null,0,null,null,null,null,null,null,null,null,null,null,null,null,null,null,8000]
[null,0,null,null,null,null,null,null,null,null,null,null,null,null,null,null,8000]
[null,0,null,null,null,null,null,null,null,null,null,null,null,null,null,null,8000]
[null,0,null,null,null,null,null,null,null,null,null,null,null,null,null,null,8000]
[null,null,null,null,null,null,null,null,null,null,null,null,null,null,null,null,8000]
[null,null,null,null,null,null,null,null,null,null,null,null,null,null,null,null,8000]
[null,null,null,null,null,null,null,null,null,null,null,null,null,null,null,null,8000]
[null,null,null,null,null,null,null,null,null,null,null,null,null,null,null,null,8000]
[null,null,null,null,null,null,null,null,null,null,null,null,null,null,null,null,{"$f":"Q68+H69-B69","v":8000}]
[null,null,null,null,null,null,null,null,null,null,null,null,null,null,null,null,8000]
[null,null,null,null,null,null,null,null,null,null,null,null,null,null,null,null,8000]
[null,null,null,null,null,null,null,null,null,null,null,null,null,null,null,null,8000]
[null,null,null,null,null,null,null,null,null,null,null,null,null,null,null,null,8000]
[null,null,null,null,null,null,null,null,null,null,null,null,null,null,null,null,8000]
[null,null,null,null,null,null,null,null,null,null,null,null,null,null,null,null,8000]
[null,null,null,null,null,null,null,null,null,null,null,null,null,null,null,null,8000]
[null,null,null,null,null,null,null,null,null,null,null,null,null,null,null,null,8000]
[null,null,null,null,null,null,null,null,null,null,null,null,null,null,null,null,8000]
[null,null,null,null,null,null,null,null,null,null,null,null,null,null,null,null,8000]
[null,null,null,null,null,null,null,null,null,null,null,null,null,null,null,null,8000]
[null,null,null,null,null,null,null,null,null,null,null,null,null,null,null,null,8000]
[null,null,null,null,null,null,null,null,null,null,null,null,null,null,null,null,8000]
[null,null,null,null,null,null,null,null,null,null,null,null,null,null,null,null,8000]
[null,null,null,null,null,null,null,null,null,null,null,null,null,null,null,null,8000]
[null,null,null,null,null,null,null,null,null,null,null,null,null,null,null,null,8000]
[null,null,null,null,null,null,null,null,null,null,null,null,null,null,null,null,8000]
[null,null,null,null,null,null,null,null,null,null,null,null,null,null,null,null,8000]
[null,null,null,null,null,null,null,null,null,null,null,null,null,null,null,null,8000]
[null,null,null,null,null,null,null,null,null,null,null,null,null,null,null,null,8000]
[null,null,null,null,null,null,null,null,null,null,null,null,null,null,null,null,8000]
[null,null,null,null,null,null,null,null,null,null,null,null,null,null,null,null,8000]
[null,null,null,null,null,null,null,null,null,null,null,null,null,null,null,null,8000]
[null,null,null,null,null,null,null,null,null,null,null,null,null,null,null,null,8000]
[null,null,null,null,null,null,null,null,null,null,null,null,null,null,null,null,8000]
[null,null,null,null,null,null,null,null,null,null,null,null,null,null,null,null,8000]
[null,null,null,null,null,null,null,null,null,null,null,null,null,null,null,null,8000]
[null,null,null,null,null,null,null,null,null,null,null,null,null,null,null,null,8000]
[null,null,null,null,null,null,null,null,null,null,null,null,null,null,null,null,8000]
[null,null,null,null,null,null,null,null,null,null,null,null,null,null,null,null,8000]
[null,null,null,null,null,null,null,null,null,null,null,null,null,null,null,null,8000]
[null,null,null,null,null,null,null,null,null,null,null,null,null,null,null,null,8000]
[null,null,null,null,null,null,null,null,null,null,null,null,null,null,null,null,8000]
[null,null,null,null,null,null,null,null,null,null,null,null,null,null,null,null,8000]
[null,null,null,null,null,null,null,null,null,null,null,null,null,null,null,null,8000]
[null,null,null,null,null,null,null,null,null,null,null,null,null,null,null,null,8000]
[null,null,null,null,null,null,null,null,null,null,null,null,null,null,null,null,8000]
[null,null,null,null,null,null,null,null,null,null,null,null,null,null,null,null,8000]
[null,null,null,null,null,null,null,null,null,null,null,null,null,null,null,null,8000]
[null,null,null,null,null,null,null,null,null,null,null,null,null,null,null,null,8000]
[null,null,null,null,null,null,null,null,null,null,null,null,null,null,null,null,8000]
[null,null,null,null,null,null,null,null,null,null,null,null,null,null,null,null,8000]
[null,null,null,null,null,null,null,null,null,null,null,null,null,null,null,null,8000]
[null,null,null,null,null,null,null,null,null,null,null,null,null,null,null,null,8000]
[null,null,null,null,null,null,null,null,null,null,null,null,null,null,null,null,8000]
[null,null,null,null,null,null,null,null,null,null,null,null,null,null,null,null,8000]
[null,null,null,null,null,null,null,null,null,null,null,null,null,null,null,null,8000]
[null,null,null,null,null,null,null,null,null,null,null,null,null,null,null,null,8000]
[null,null,null,null,null,null,null,null,null,null,null,null,null,null,null,null,8000]
[null,null,null,null,null,null,null,null,null,null,null,null,null,null,null,null,8000]
[null,null,null,null,null,null,null,null,null,null,null,null,null,null,null,null,8000]
[null,null,null,null,null,null,null,null,null,null,null,null,null,null,null,null,8000]
[null,null,null,null,null,null,null,null,null,null,null,null,null,null,null,null,8000]
[null,null,null,null,null,null,null,null,null,null,null,null,null,null,null,null,8000]
[null,null,null,null,null,null,null,null,null,null,null,null,null,null,null,null,8000]
[null,null,null,null,null,null,null,null,null,null,null,null,null,null,null,null,8000]
[null,null,null,null,null,null,null,null,null,null,null,null,null,null,null,null,8000]
[null,null,null,null,null,null,null,null,null,null,null,null,null,null,null,null,8000]
[null,null,null,null,null,null,null,null,null,null,null,null,null,null,null,null,8000]
[null,null,null,null,null,null,null,null,null,null,null,null,null,null,null,null,8000]
[null,null,null,null,null,null,null,null,null,null,null,null,null,null,null,null,8000]
[null,null,null,null,null,null,null,null,null,null,null,null,null,null,null,null,8000]
[null,null,null,null,null,null,null,null,null,null,null,null,null,null,null,null,8000]
[null,null,null,null,null,null,null,null,null,null,null,null,null,null,null,null,{"$f":"Q132+H133-B133","v":8000}]
[null,null,null,null,null,null,null,null,null,null,null,null,null,null,null,null,8000]
[null,null,null,null,null,null,null,null,null,null,null,null,null,null,null,null,8000]
[null,null,null,null,null,null,null,null,null,null,null,null,null,null,null,null,8000]
[null,null,null,null,null,null,null,null,null,null,null,null,null,null,null,null,8000]
[null,null,null,null,null,null,null,null,null,null,null,null,null,null,null,null,8000]
[null,null,null,null,null,null,null,null,null,null,null,null,null,null,null,null,8000]
[null,null,null,null,null,null,null,null,null,null,null,null,null,null,null,null,8000]
[null,null,null,null,null,null,null,null,null,null,null,null,null,null,null,null,8000]
[null,null,null,null,null,null,null,null,null,null,null,null,null,null,null,null,8000]
[null,null,null,null,null,null,null,null,null,null,null,null,null,null,null,null,8000]
[null,null,null,null,null,null,null,null,null,null,null,null,null,null,null,null,8000]
[null,null,null,null,null,null,null,null,null,null,null,null,null,null,null,null,8000]
[null,null,null,null,null,null,null,null,null,null,null,null,null,null,null,null,8000]
[null,null,null,null,null,null,null,null,null,null,null,null,null,null,null,null,8000]
[null,null,null,null,null,null,null,null,null,null,null,null,null,null,null,null,8000]
[null,null,null,null,null,null,null,null,null,null,null,null,null,null,null,null,8000]
[null,null,null,null,null,null,null,null,null,null,null,null,null,null,null,null,8000]
[null,null,null,null,null,null,null,null,null,null,null,null,null,null,null,null,8000]
[null,null,null,null,null,null,null,null,null,null,null,null,null,null,null,null,8000]
[null,null,null,null,null,null,null,null,null,null,null,null,null,null,null,null,8000]
[null,null,null,null,null,null,null,null,null,null,null,null,null,null,null,null,8000]
[null,null,null,null,null,null,null,null,null,null,null,null,null,null,null,null,8000]
[null,null,null,null,null,null,null,null,null,null,null,null,null,null,null,null,8000]
[null,null,null,null,null,null,null,null,null,null,null,null,null,null,null,null,8000]
[null,null,null,null,null,null,null,null,null,null,null,null,null,null,null,null,8000]
[null,null,null,null,null,null,null,null,null,null,null,null,null,null,null,null,8000]
[null,null,null,null,null,null,null,null,null,null,null,null,null,null,null,null,8000]
[null,null,null,null,null,null,null,null,null,null,null,null,null,null,null,null,8000]
[null,null,null,null,null,null,null,null,null,null,null,null,null,null,null,null,8000]
[null,null,null,null,null,null,null,null,null,null,null,null,null,null,null,null,8000]
[null,null,null,null,null,null,null,null,null,null,null,null,null,null,null,null,8000]
[null,null,null,null,null,null,null,null,null,null,null,null,null,null,null,null,8000]
[null,null,null,null,null,null,null,null,null,null,null,null,null,null,null,null,8000]
[null,null,null,null,null,null,null,null,null,null,null,null,null,null,null,null,8000]
[null,null,null,null,null,null,null,null,null,null,null,null,null,null,null,null,8000]
[null,null,null,null,null,null,null,null,null,null,null,null,null,null,null,null,8000]
[null,null,null,null,null,null,null,null,null,null,null,null,null,null,null,null,8000]
[null,null,null,null,null,null,null,null,null,null,null,null,null,null,null,null,8000]
[null,null,null,null,null,null,null,null,null,null,null,null,null,null,null,null,8000]
[null,null,null,null,null,null,null,null,null,null,null,null,null,null,null,null,8000]
[null,null,null,null,null,null,null,null,null,null,null,null,null,null,null,null,8000]
[null,null,null,null,null,null,null,null,null,null,null,null,null,null,null,null,8000]
[null,null,null,null,null,null,null,null,null,null,null,null,null,null,null,null,8000]
[null,null,null,null,null,null,null,null,null,null,null,null,null,null,null,null,8000]
[null,null,null,null,null,null,null,null,null,null,null,null,null,null,null,null,8000]
[null,null,null,null,null,null,null,null,null,null,null,null,null,null,null,null,8000]
[null,null,null,null,null,null,null,null,null,null,null,null,null,null,null,null,8000]
[null,null,null,null,null,null,null,null,null,null,null,null,null,null,null,null,8000]
[null,null,null,null,null,null,null,null,null,null,null,null,null,null,null,null,8000]
[null,null,null,null,null,null,null,null,null,null,null,null,null,null,null,null,8000]
[null,null,null,null,null,null,null,null,null,null,null,null,null,null,null,null,8000]
[null,null,null,null,null,null,null,null,null,null,null,null,null,null,null,null,8000]
[null,null,null,null,null,null,null,null,null,null,null,null,null,null,null,null,8000]
[null,null,null,null,null,null,null,null,null,null,null,null,null,null,null,null,8000]
[null,null,null,null,null,null,null,null,null,null,null,null,null,null,null,null,8000]
[null,null,null,null,null,null,null,null,null,null,null,null,null,null,null,null,8000]
[null,null,null,null,null,null,null,null,null,null,null,null,null,null,null,null,8000]
[null,null,null,null,null,null,null,null,null,null,null,null,null,null,null,null,8000]
[null,null,null,null,null,null,null,null,null,null,null,null,null,null,null,null,8000]
[null,null,null,null,null,null,null,null,null,null,null,null,null,null,null,null,8000]
[null,null,null,null,null,null,null,null,null,null,null,null,null,null,null,null,8000]
[null,null,null,null,null,null,null,null,null,null,null,null,null,null,null,null,8000]
[null,null,null,null,null,null,null,null,null,null,null,null,null,null,null,null,8000]
[null,null,null,null,null,null,null,null,null,null,null,null,null,null,null,null,{"$f":"Q196+H197-B197","v":8000}]
[null,null,null,null,null,null,null,null,null,null,null,null,null,null,null,null,8000]
[null,null,null,null,null,null,null,null,null,null,null,null,null,null,null,null,8000]
[null,null,null,null,null,null,null,null,null,null,null,null,null,null,null,null,8000]
[null,null,null,null,null,null,null,null,null,null,null,null,null,null,null,null,8000]
[null,null,null,null,null,null,null,null,null,null,null,null,null,null,null,null,8000]
[null,null,null,null,null,null,null,null,null,null,null,null,null,null,null,null,8000]
[null,null,null,null,null,null,null,null,null,null,null,null,null,null,null,null,8000]
[null,null,null,null,null,null,null,null,null,null,null,null,null,null,null,null,8000]
[null,null,null,null,null,null,null,null,null,null,null,null,null,null,null,null,8000]
[null,null,null,null,null,null,null,null,null,null,null,null,null,null,null,null,8000]
[null,null,null,null,null,null,null,null,null,null,null,null,null,null,null,null,8000]
[null,null,null,null,null,null,null,null,null,null,null,null,null,null,null,null,8000]
[null,null,null,null,null,null,null,null,null,null,null,null,null,null,null,null,8000]
[null,null,null,null,null,null,null,null,null,null,null,null,null,null,null,null,8000]
[null,null,null,null,null,null,null,null,null,null,null,null,null,null,null,null,8000]
[null,null,null,null,null,null,null,null,null,null,null,null,null,null,null,null,8000]
[null,null,null,null,null,null,null,null,null,null,null,null,null,null,null,null,8000]
[null,null,null,null,null,null,null,null,null,null,null,null,null,null,null,null,8000]
[null,null,null,null,null,null,null,null,null,null,null,null,null,null,null,null,8000]
[null,null,null,null,null,null,null,null,null,null,null,null,null,null,null,null,8000]
[null,null,null,null,null,null,null,null,null,null,null,null,null,null,null,null,8000]
[null,null,null,null,null,null,null,null,null,null,null,null,null,null,null,null,{"$f":"Q29+H219-B219","v":8000}]
[null,null,null,null,null,null,null,null,null,null,null,null,null,null,null,null,{"$f":"Q219+H220-B220","v":8000}]
[null,null,null,null,null,null,null,null,null,null,null,null,null,null,null,null,8000]
[null,null,null,null,null,null,null,null,null,null,null,null,null,null,null,null,8000]
[null,null,null,null,null,null,null,null,null,null,null,null,null,null,null,null,8000]
[null,null,null,null,null,null,null,null,null,null,null,null,null,null,null,null,8000]
[null,null,null,null,null,null,null,null,null,null,null,null,null,null,null,null,8000]
[null,null,null,null,null,null,null,null,null,null,null,null,null,null,null,null,8000]
[null,null,null,null,null,null,null,null,null,null,null,null,null,null,null,null,8000]
[null,null,null,null,null,null,null,null,null,null,null,null,null,null,null,null,8000]
[null,null,null,null,null,null,null,null,null,null,null,null,null,null,null,null,8000]
[null,null,null,null,null,null,null,null,null,null,null,null,null,null,null,null,8000]
[null,null,null,null,null,null,null,null,null,null,null,null,null,null,null,null,8000]
[null,null,null,null,null,null,null,null,null,null,null,null,null,null,null,null,8000]
[null,null,null,null,null,null,null,null,null,null,null,null,null,null,null,null,8000]
[null,null,null,null,null,null,null,null,null,null,null,null,null,null,null,null,8000]
[null,null,null,null,null,null,null,null,null,null,null,null,null,null,null,null,8000]
[null,null,null,null,null,null,null,null,null,null,null,null,null,null,null,null,8000]
[null,null,null,null,null,null,null,null,null,null,null,null,null,null,null,null,8000]
[null,null,null,null,null,null,null,null,null,null,null,null,null,null,null,null,8000]
[null,null,null,null,null,null,null,null,null,null,null,null,null,null,null,null,8000]
[null,null,null,null,null,null,null,null,null,null,null,null,null,null,null,null,8000]
[null,null,null,null,null,null,null,null,null,null,null,null,null,null,null,null,8000]
[null,null,null,null,null,null,null,null,null,null,null,null,null,null,null,null,8000]
[null,null,null,null,null,null,null,null,null,null,null,null,null,null,null,null,8000]
[null,null,null,null,null,null,null,null,null,null,null,null,null,null,null,null,8000]
[null,null,null,null,null,null,null,null,null,null,null,null,null,null,null,null,8000]
[null,null,null,null,null,null,null,null,null,null,null,null,null,null,null,null,8000]
[null,null,null,null,null,null,null,null,null,null,null,null,null,null,null,null,8000]
[null,null,null,null,null,null,null,null,null,null,null,null,null,null,null,null,8000]
["TOTAL",{"$f":"SUM(B4:B248)","v":500},null,null,null,null,{"$f":"SUM(G4:G248)","v":96000},{"$f":"SUM(H4:H248)","v":8500},{"$f":"SUM(I4:I248)","v":4950},{"$f":"SUM(J4:J248)","v":1},null,null,null,null,null,null,{"$f":"SUM(H249-B249)","v":8000}]